Body,Body Name,Date,Transaction Number,Invoice Number,Amount,Supplier Name,Supplier ID,Expense Area,Expense Type,Expense Code
http://statistics.data.gov.uk/id/local-authority/47UD,Redditch Borough Council,05/10/2012,170114,BE096,"10,545.82",B Evans & Son,103,Rbc Balance Sheet,Dlo,8130
http://statistics.data.gov.uk/id/local-authority/47UD,Redditch Borough Council,26/10/2012,171270,BE097,"10,989.55",B Evans & Son,103,Rbc Balance Sheet,Dlo,8130
http://statistics.data.gov.uk/id/local-authority/47UD,Redditch Borough Council,19/10/2012,172214,CA001738,"39,269.96",Superior Plumbing Installations Ltd,1030,Rbc Balance Sheet,Contract Payments,8131
http://statistics.data.gov.uk/id/local-authority/47UD,Redditch Borough Council,26/10/2012,172794,CA001852,"31,238.38",Superior Plumbing Installations Ltd,1030,Rbc Balance Sheet,Contract Payments,8131
http://statistics.data.gov.uk/id/local-authority/47UD,Redditch Borough Council,26/10/2012,172795,P598 CERT2,"55,863.31",Superior Plumbing Installations Ltd,1030,Rbc Balance Sheet,Contract Payments,8131
http://statistics.data.gov.uk/id/local-authority/47UD,Redditch Borough Council,19/10/2012,172009,9001135043,723.69,Birmingham City Council,1035,Chief Executive,Recharge To Services,6409
http://statistics.data.gov.uk/id/local-authority/47UD,Redditch Borough Council,12/10/2012,171700,3RD QTR 2012/13,"3,295.00",Jestaminute Community Theatre C.I.C.,1040,Executive Director Lec,Grants To Voluntary Bodies,4661
http://statistics.data.gov.uk/id/local-authority/47UD,Redditch Borough Council,26/10/2012,172775,JCT047,375.00,Jestaminute Community Theatre C.I.C.,1040,Executive Director Lec,Agency Staff,3020
http://statistics.data.gov.uk/id/local-authority/47UD,Redditch Borough Council,26/10/2012,172775,JCT047,375.00,Jestaminute Community Theatre C.I.C.,1040,Executive Director Lec,Agency Staff,3020
http://statistics.data.gov.uk/id/local-authority/47UD,Redditch Borough Council,26/10/2012,172775,JCT047,105.00,Jestaminute Community Theatre C.I.C.,1040,Executive Director Lec,Agency Staff,3020
http://statistics.data.gov.uk/id/local-authority/47UD,Redditch Borough Council,26/10/2012,172775,JCT047,142.00,Jestaminute Community Theatre C.I.C.,1040,Executive Director Lec,Agency Staff,3020
http://statistics.data.gov.uk/id/local-authority/47UD,Redditch Borough Council,26/10/2012,172775,JCT047,450.00,Jestaminute Community Theatre C.I.C.,1040,Executive Director Lec,Agency Staff,3020
http://statistics.data.gov.uk/id/local-authority/47UD,Redditch Borough Council,26/10/2012,171785,91755016,100.00,Service Point Uk Accounts,1047,Exec. Director Fin. & Resource,Misc. Expenses,4730
http://statistics.data.gov.uk/id/local-authority/47UD,Redditch Borough Council,26/10/2012,171785,91755016,330.00,Service Point Uk Accounts,1047,Executive Director Lec,External Printing,4302
http://statistics.data.gov.uk/id/local-authority/47UD,Redditch Borough Council,12/10/2012,170152,8114652,"3,141.12",Bromsgrove District Council,1114,Exec. Director Fin. & Resource,Training,3043
http://statistics.data.gov.uk/id/local-authority/47UD,Redditch Borough Council,05/10/2012,170355,8114651,"11,188.53",Bromsgrove District Council,1114,Exec. Director Prrh,B'Grove Shared Services Cost,5012
http://statistics.data.gov.uk/id/local-authority/47UD,Redditch Borough Council,12/10/2012,170356,8114673,"114,352.32",Bromsgrove District Council,1114,Executive Director Lec,B'Grove Shared Services Cost,5012
http://statistics.data.gov.uk/id/local-authority/47UD,Redditch Borough Council,12/10/2012,170356,8114673,"2,784.90",Bromsgrove District Council,1114,Executive Director Lec,B'Grove Shared Services Cost,5012
http://statistics.data.gov.uk/id/local-authority/47UD,Redditch Borough Council,12/10/2012,171753,OCT 2012,"50,330.00",Bromsgrove District Council,1114,Exec. Director Prrh,Wett Shared Service Cost,5013
http://statistics.data.gov.uk/id/local-authority/47UD,Redditch Borough Council,05/10/2012,171219,RED/121764,880.00,Cef - City Electrical Factors Ltd,113,Exec. Director Fin. & Resource,Materials,4170
http://statistics.data.gov.uk/id/local-authority/47UD,Redditch Borough Council,05/10/2012,171219,RED/121764,80.00,Cef - City Electrical Factors Ltd,113,Exec. Director Fin. & Resource,Rent Deposit Scheme,4701
http://statistics.data.gov.uk/id/local-authority/47UD,Redditch Borough Council,05/10/2012,171219,RED/121764,0.00,Cef - City Electrical Factors Ltd,113,Exec. Director Fin. & Resource,Materials,4170
http://statistics.data.gov.uk/id/local-authority/47UD,Redditch Borough Council,26/10/2012,172186,PSI877313,392.90,Mila Hardware,1159,Crossgate Stocks,Stock Variance,1201
http://statistics.data.gov.uk/id/local-authority/47UD,Redditch Borough Council,26/10/2012,172186,PSI877313,25.45,Mila Hardware,1159,Crossgate Stocks,Stock Variance,1203
http://statistics.data.gov.uk/id/local-authority/47UD,Redditch Borough Council,26/10/2012,172186,PSI877313,0.00,Mila Hardware,1159,Crossgate Stocks,Stock Account (Cedar),1201
http://statistics.data.gov.uk/id/local-authority/47UD,Redditch Borough Council,12/10/2012,171684,DFG/9261,-154.50,Dolphin Lifts Midlands Ltd,1162,Executive Director Lec,Administration Fee,6364
http://statistics.data.gov.uk/id/local-authority/47UD,Redditch Borough Council,12/10/2012,171684,DFG/9261,"1,699.50",Dolphin Lifts Midlands Ltd,1162,Rbc Balance Sheet,Disabled Facilities Grant,8701
http://statistics.data.gov.uk/id/local-authority/47UD,Redditch Borough Council,26/10/2012,172768,DFG/9260,-391.50,Dolphin Lifts Midlands Ltd,1162,Executive Director Lec,Administration Fee,6364
http://statistics.data.gov.uk/id/local-authority/47UD,Redditch Borough Council,26/10/2012,172768,DFG/9260,"4,266.50",Dolphin Lifts Midlands Ltd,1162,Rbc Balance Sheet,Disabled Facilities Grant,8701
http://statistics.data.gov.uk/id/local-authority/47UD,Redditch Borough Council,26/10/2012,172021,49686,729.01,Townley Network Solutions Ltd,1177,Exec. Director Fin. & Resource,Telephone Rental,4451
http://statistics.data.gov.uk/id/local-authority/47UD,Redditch Borough Council,12/10/2012,155252,C/NO107646,166.67,Civica Uk Limited,1233,Chief Executive,Office Equip Repairs & Maint,4002
http://statistics.data.gov.uk/id/local-authority/47UD,Redditch Borough Council,12/10/2012,155252,C/NO107646,333.33,Civica Uk Limited,1233,Exec. Director Prrh,Office Consumables,4304
http://statistics.data.gov.uk/id/local-authority/47UD,Redditch Borough Council,19/10/2012,165809,M/RB011748,461.94,Civica Uk Limited,1233,Exec. Director Fin. & Resource,Lease Contract,4507
http://statistics.data.gov.uk/id/local-authority/47UD,Redditch Borough Council,19/10/2012,171187,M/RB012720,"1,658.73",Civica Uk Limited,1233,Exec. Director Fin. & Resource,Software Licences,4501
http://statistics.data.gov.uk/id/local-authority/47UD,Redditch Borough Council,12/10/2012,171277,C/RB112528,"2,007.24",Civica Uk Limited,1233,Exec. Director Fin. & Resource,Meetings,4602
http://statistics.data.gov.uk/id/local-authority/47UD,Redditch Borough Council,12/10/2012,171278,C/RB112529,"1,400.00",Civica Uk Limited,1233,Exec. Director Fin. & Resource,Software Enhancements,4502
http://statistics.data.gov.uk/id/local-authority/47UD,Redditch Borough Council,26/10/2012,172522,C/RB112775,468.75,Civica Uk Limited,1233,Exec. Director Fin. & Resource,Software Maintenance,4503
http://statistics.data.gov.uk/id/local-authority/47UD,Redditch Borough Council,26/10/2012,172522,C/RB112775,468.75,Civica Uk Limited,1233,Exec. Director Fin. & Resource,Software Maintenance,4503
http://statistics.data.gov.uk/id/local-authority/47UD,Redditch Borough Council,26/10/2012,172522,C/RB112775,468.75,Civica Uk Limited,1233,Exec. Director Fin. & Resource,Software Maintenance,4503
http://statistics.data.gov.uk/id/local-authority/47UD,Redditch Borough Council,26/10/2012,172522,C/RB112775,468.75,Civica Uk Limited,1233,Exec. Director Fin. & Resource,Software Maintenance,4503
http://statistics.data.gov.uk/id/local-authority/47UD,Redditch Borough Council,12/10/2012,171704,3RD QTR 2012/13,"2,000.00",Relate Worcestershire,1271,Executive Director Lec,Grants To Voluntary Bodies,4661
http://statistics.data.gov.uk/id/local-authority/47UD,Redditch Borough Council,19/10/2012,172287,2939,"18,801.00",Abritas Ltd,1310,Exec. Director Prrh,Network Maintenance,4505
http://statistics.data.gov.uk/id/local-authority/47UD,Redditch Borough Council,19/10/2012,172283,3072443,683.75,Cipfa,1359,Exec. Director Fin. & Resource,Books & Publications,4303
http://statistics.data.gov.uk/id/local-authority/47UD,Redditch Borough Council,19/10/2012,172298,3071478,590.00,Cipfa,1359,Exec. Director Fin. & Resource,Training,3043
http://statistics.data.gov.uk/id/local-authority/47UD,Redditch Borough Council,19/10/2012,171964,IR 84003114,458.85,Buxtons Ltd,138,Executive Director Lec,Protective Clothing,4250
http://statistics.data.gov.uk/id/local-authority/47UD,Redditch Borough Council,05/10/2012,169607,3152,450.00,Reeves Tree Surgeons,1410,Housing Repairs Account,Repairs In House Team,3107
http://statistics.data.gov.uk/id/local-authority/47UD,Redditch Borough Council,05/10/2012,170112,3162,"5,900.00",Reeves Tree Surgeons,1410,Executive Director Lec,Contractors,5158
http://statistics.data.gov.uk/id/local-authority/47UD,Redditch Borough Council,05/10/2012,171218,3168,"1,360.00",Reeves Tree Surgeons,1410,Rbc Balance Sheet,Contract Payments,8131
http://statistics.data.gov.uk/id/local-authority/47UD,Redditch Borough Council,12/10/2012,171588,3172,"2,750.00",Reeves Tree Surgeons,1410,Rbc Balance Sheet,Contract Payments,8131
http://statistics.data.gov.uk/id/local-authority/47UD,Redditch Borough Council,12/10/2012,171716,1040949,"7,476.25",Gva Grimley Llp,1491,Exec. Director Prrh,Consultants Fees,4351
http://statistics.data.gov.uk/id/local-authority/47UD,Redditch Borough Council,26/10/2012,172541,SIN002388,530.00,Trojan Hardware Design Ltd,1502,Crossgate Stocks,Stock Variance,1201
http://statistics.data.gov.uk/id/local-authority/47UD,Redditch Borough Council,19/10/2012,172202,263,"6,143.90",No Third Entertainments,1511,Executive Director Lec,Professional Fees,4352
http://statistics.data.gov.uk/id/local-authority/47UD,Redditch Borough Council,12/10/2012,171169,VP63913270,"9,863.18",British Telecommunications Plc,153,Exec. Director Fin. & Resource,Telephone Rental,4451
http://statistics.data.gov.uk/id/local-authority/47UD,Redditch Borough Council,26/10/2012,172000,25399349Q004,"1,397.50",British Telecommunications Plc,153,Exec. Director Fin. & Resource,Telephone Rental,4451
http://statistics.data.gov.uk/id/local-authority/47UD,Redditch Borough Council,12/10/2012,171693,121150,648.39,Bristow  & Sutor,157,Vat Control Account,Vat Input Tax Adjustments,2994
http://statistics.data.gov.uk/id/local-authority/47UD,Redditch Borough Council,26/10/2012,172741,121556,567.33,Bristow  & Sutor,157,Vat Control Account,Vat Input Tax Adjustments,2994
http://statistics.data.gov.uk/id/local-authority/47UD,Redditch Borough Council,26/10/2012,172555,4551,"1,850.00",Blythe Valley Limited,165,Rbc Balance Sheet,Contract Payments,8131
http://statistics.data.gov.uk/id/local-authority/47UD,Redditch Borough Council,26/10/2012,172556,4552,873.00,Blythe Valley Limited,165,Rbc Balance Sheet,Contract Payments,8131
http://statistics.data.gov.uk/id/local-authority/47UD,Redditch Borough Council,05/10/2012,171404,1030,"2,396.77",M.A Promotions Ltd,1674,Executive Director Lec,Professional Fees,4352
http://statistics.data.gov.uk/id/local-authority/47UD,Redditch Borough Council,05/10/2012,171404,1030,-98.54,M.A Promotions Ltd,1674,Executive Director Lec,Other Fees & Charges(Vatable),6302
http://statistics.data.gov.uk/id/local-authority/47UD,Redditch Borough Council,16/10/2012,172113,1030 MUSICALS,-98.54,M.A Promotions Ltd,1674,Executive Director Lec,Other Fees & Charges(Vatable),6302
http://statistics.data.gov.uk/id/local-authority/47UD,Redditch Borough Council,16/10/2012,172113,1030 MUSICALS,"2,388.44",M.A Promotions Ltd,1674,Executive Director Lec,Professional Fees,4352
http://statistics.data.gov.uk/id/local-authority/47UD,Redditch Borough Council,05/10/2012,171402,1252,"3,252.20",Entertainers Promotions Limited,1708,Executive Director Lec,Professional Fees,4352
http://statistics.data.gov.uk/id/local-authority/47UD,Redditch Borough Council,05/10/2012,171402,1252,-126.10,Entertainers Promotions Limited,1708,Executive Director Lec,Other Fees & Charges(Vatable),6302
http://statistics.data.gov.uk/id/local-authority/47UD,Redditch Borough Council,05/10/2012,171402,1252,-126.10,Entertainers Promotions Limited,1708,Executive Director Lec,Other Receipts (Non Vat),6209
http://statistics.data.gov.uk/id/local-authority/47UD,Redditch Borough Council,19/10/2012,170701,67133,"1,883.34",Wyre Forest District Council,1922,Exec. Director Prrh,Other Local Authorities,5009
http://statistics.data.gov.uk/id/local-authority/47UD,Redditch Borough Council,19/10/2012,171121,67305,"-1,883.34",Wyre Forest District Council,1922,Exec. Director Prrh,Other Local Authorities,5009
http://statistics.data.gov.uk/id/local-authority/47UD,Redditch Borough Council,19/10/2012,171763,67413,"44,899.64",Wyre Forest District Council,1922,Executive Director Lec,Other Local Authorities,5009
http://statistics.data.gov.uk/id/local-authority/47UD,Redditch Borough Council,26/10/2012,171649,2450015620,"1,228.75",Worcestershire County Council,195,Exec. Director Fin. & Resource,Hire Of Premises,3351
http://statistics.data.gov.uk/id/local-authority/47UD,Redditch Borough Council,19/10/2012,170654,0899,"1,750.00",E & J Contractors Ltd,201,Executive Director Lec,General Repairs,3100
http://statistics.data.gov.uk/id/local-authority/47UD,Redditch Borough Council,26/10/2012,170655,0900,656.00,E & J Contractors Ltd,201,Rbc Balance Sheet,Contract Payments,8131
http://statistics.data.gov.uk/id/local-authority/47UD,Redditch Borough Council,26/10/2012,171176,0903,512.00,E & J Contractors Ltd,201,Rbc Balance Sheet,Contract Payments,8131
http://statistics.data.gov.uk/id/local-authority/47UD,Redditch Borough Council,26/10/2012,171177,0901,"1,642.20",E & J Contractors Ltd,201,Rbc Balance Sheet,Dlo,8130
http://statistics.data.gov.uk/id/local-authority/47UD,Redditch Borough Council,26/10/2012,171246,64297,515.68,Durolas (Contractors) Ltd,205,Rbc Balance Sheet,Direct Payments,8132
http://statistics.data.gov.uk/id/local-authority/47UD,Redditch Borough Council,05/10/2012,171367,7634,"1,797.99",Kaizen Consultants,2161,Exec. Director Fin. & Resource,Photocopying  & Int Print R/C,4300
http://statistics.data.gov.uk/id/local-authority/47UD,Redditch Borough Council,12/10/2012,171108,0677,230.00,Abbeyclean,2367,Surestart Project,Contract Cleaning,3600
http://statistics.data.gov.uk/id/local-authority/47UD,Redditch Borough Council,12/10/2012,171108,0677,230.00,Abbeyclean,2367,Surestart Project,Contract Cleaning,3600
http://statistics.data.gov.uk/id/local-authority/47UD,Redditch Borough Council,12/10/2012,171108,0677,230.00,Abbeyclean,2367,Surestart Project,Contract Cleaning,3600
http://statistics.data.gov.uk/id/local-authority/47UD,Redditch Borough Council,26/10/2012,172337,0678,200.00,Abbeyclean,2367,Surestart Project,Contract Cleaning,3600
http://statistics.data.gov.uk/id/local-authority/47UD,Redditch Borough Council,26/10/2012,172337,0678,200.00,Abbeyclean,2367,Surestart Project,Contract Cleaning,3600
http://statistics.data.gov.uk/id/local-authority/47UD,Redditch Borough Council,26/10/2012,172337,0678,200.00,Abbeyclean,2367,Surestart Project,Contract Cleaning,3600
http://statistics.data.gov.uk/id/local-authority/47UD,Redditch Borough Council,05/10/2012,171426,RC20106,"1,470.00",Rockford Consultants,2370,Exec. Director Prrh,Other Government Grants,6056
http://statistics.data.gov.uk/id/local-authority/47UD,Redditch Borough Council,19/10/2012,172296,966201209001,"3,230.14",Martin Brokers (Uk) Ltd,2375,Notional Deprn And Financing,Commission - Short Term Borrow,5801
http://statistics.data.gov.uk/id/local-authority/47UD,Redditch Borough Council,12/10/2012,171292,305617984,"1,452.90",Eurocell Building Plastics Ltd,24,Crossgate Stocks,Stock Variance,1201
http://statistics.data.gov.uk/id/local-authority/47UD,Redditch Borough Council,05/10/2012,171183,10146,500.00,Fools Paradise Ltd,2400,Executive Director Lec,Professional Fees,4352
http://statistics.data.gov.uk/id/local-authority/47UD,Redditch Borough Council,19/10/2012,172150,337 005 8531,4.45,Severn Trent Water,2411,Exec. Director Fin. & Resource,Water Charges,3450
http://statistics.data.gov.uk/id/local-authority/47UD,Redditch Borough Council,19/10/2012,172150,337 005 8531,49.59,Severn Trent Water,2411,Exec. Director Fin. & Resource,Water Charges,3450
http://statistics.data.gov.uk/id/local-authority/47UD,Redditch Borough Council,19/10/2012,172150,337 005 8531,119.08,Severn Trent Water,2411,Executive Director Lec,Water Charges,3450
http://statistics.data.gov.uk/id/local-authority/47UD,Redditch Borough Council,19/10/2012,172150,337 005 8531,39.70,Severn Trent Water,2411,Executive Director Lec,Water Charges,3450
http://statistics.data.gov.uk/id/local-authority/47UD,Redditch Borough Council,19/10/2012,172150,337 005 8531,93.11,Severn Trent Water,2411,Exec. Director Fin. & Resource,Water Charges,3450
http://statistics.data.gov.uk/id/local-authority/47UD,Redditch Borough Council,19/10/2012,172150,337 005 8531,51.53,Severn Trent Water,2411,Housing Revenue Account,Water Charges,3450
http://statistics.data.gov.uk/id/local-authority/47UD,Redditch Borough Council,19/10/2012,172150,337 005 8531,49.59,Severn Trent Water,2411,Exec. Director Prrh,Water Charges,3450
http://statistics.data.gov.uk/id/local-authority/47UD,Redditch Borough Council,19/10/2012,172150,337 005 8531,69.45,Severn Trent Water,2411,Exec. Director Fin. & Resource,Water Charges,3450
http://statistics.data.gov.uk/id/local-authority/47UD,Redditch Borough Council,19/10/2012,172150,337 005 8531,930.04,Severn Trent Water,2411,Exec. Director Fin. & Resource,Water Charges,3450
http://statistics.data.gov.uk/id/local-authority/47UD,Redditch Borough Council,19/10/2012,172150,337 005 8531,343.34,Severn Trent Water,2411,Executive Director Lec,Water Charges,3450
http://statistics.data.gov.uk/id/local-authority/47UD,Redditch Borough Council,19/10/2012,172152,731 002 8031,"1,031.36",Severn Trent Water,2411,Housing Revenue Account,Water Charges,3450
http://statistics.data.gov.uk/id/local-authority/47UD,Redditch Borough Council,19/10/2012,172152,731 002 8031,28.13,Severn Trent Water,2411,Housing Revenue Account,Water Charges,3450
http://statistics.data.gov.uk/id/local-authority/47UD,Redditch Borough Council,26/10/2012,172791,353040,823.00,Facelift Gb Ltd,2535,Executive Director Lec,Training,3043
http://statistics.data.gov.uk/id/local-authority/47UD,Redditch Borough Council,26/10/2012,171101,07053/9426,423.00,Maxwell Jones Studios Ltd,256,Executive Director Lec,Operational Equip- Purchase,4150
http://statistics.data.gov.uk/id/local-authority/47UD,Redditch Borough Council,26/10/2012,171798,07113/9185,"2,249.50",Maxwell Jones Studios Ltd,256,Executive Director Lec,Operational Equip- Purchase,4150
http://statistics.data.gov.uk/id/local-authority/47UD,Redditch Borough Council,12/10/2012,171448,3197,570.00,Ridgeway Marquees Hire,2578,Executive Director Lec,Operational Equip- Purchase,4150
http://statistics.data.gov.uk/id/local-authority/47UD,Redditch Borough Council,19/10/2012,171275,15534,750.00,Rns Publications,2584,Exec. Director Fin. & Resource,External Printing,4302
http://statistics.data.gov.uk/id/local-authority/47UD,Redditch Borough Council,05/10/2012,169935,6440,459.27,M & D Carpentry & Bldng Contractor Ltd,265,Rbc Balance Sheet,Dlo,8130
http://statistics.data.gov.uk/id/local-authority/47UD,Redditch Borough Council,05/10/2012,169936,6439,"1,068.88",M & D Carpentry & Bldng Contractor Ltd,265,Rbc Balance Sheet,Contract Payments,8131
http://statistics.data.gov.uk/id/local-authority/47UD,Redditch Borough Council,05/10/2012,169983,6477,"4,154.99",M & D Carpentry & Bldng Contractor Ltd,265,Rbc Balance Sheet,Contract Payments,8131
http://statistics.data.gov.uk/id/local-authority/47UD,Redditch Borough Council,05/10/2012,170728,6482,"4,160.13",M & D Carpentry & Bldng Contractor Ltd,265,Rbc Balance Sheet,Direct Payments,8132
http://statistics.data.gov.uk/id/local-authority/47UD,Redditch Borough Council,05/10/2012,170738,6481,"6,418.46",M & D Carpentry & Bldng Contractor Ltd,265,Rbc Balance Sheet,Contract Payments,8131
http://statistics.data.gov.uk/id/local-authority/47UD,Redditch Borough Council,05/10/2012,170741,6496,"2,004.30",M & D Carpentry & Bldng Contractor Ltd,265,Rbc Balance Sheet,Contract Payments,8131
http://statistics.data.gov.uk/id/local-authority/47UD,Redditch Borough Council,05/10/2012,170748,6491,"1,050.00",M & D Carpentry & Bldng Contractor Ltd,265,Rbc Balance Sheet,Contract Payments,8131
http://statistics.data.gov.uk/id/local-authority/47UD,Redditch Borough Council,26/10/2012,170749,6494,"5,336.10",M & D Carpentry & Bldng Contractor Ltd,265,Rbc Balance Sheet,Dlo,8130
http://statistics.data.gov.uk/id/local-authority/47UD,Redditch Borough Council,05/10/2012,170750,6495,"2,004.30",M & D Carpentry & Bldng Contractor Ltd,265,Rbc Balance Sheet,Contract Payments,8131
http://statistics.data.gov.uk/id/local-authority/47UD,Redditch Borough Council,19/10/2012,171179,6510,"2,579.39",M & D Carpentry & Bldng Contractor Ltd,265,Rbc Balance Sheet,Contract Payments,8131
http://statistics.data.gov.uk/id/local-authority/47UD,Redditch Borough Council,19/10/2012,171180,6509,"2,875.06",M & D Carpentry & Bldng Contractor Ltd,265,Rbc Balance Sheet,Contract Payments,8131
http://statistics.data.gov.uk/id/local-authority/47UD,Redditch Borough Council,12/10/2012,171695,6479,980.00,M & D Carpentry & Bldng Contractor Ltd,265,Rbc Balance Sheet,Contract Payments,8131
http://statistics.data.gov.uk/id/local-authority/47UD,Redditch Borough Council,26/10/2012,172333,6535,"4,711.33",M & D Carpentry & Bldng Contractor Ltd,265,Rbc Balance Sheet,Contract Payments,8131
http://statistics.data.gov.uk/id/local-authority/47UD,Redditch Borough Council,26/10/2012,172335,6519,980.00,M & D Carpentry & Bldng Contractor Ltd,265,Rbc Balance Sheet,Contract Payments,8131
http://statistics.data.gov.uk/id/local-authority/47UD,Redditch Borough Council,26/10/2012,172336,6518,"3,157.14",M & D Carpentry & Bldng Contractor Ltd,265,Rbc Balance Sheet,Contract Payments,8131
http://statistics.data.gov.uk/id/local-authority/47UD,Redditch Borough Council,26/10/2012,172217,08295,"1,760.00",Recycling Organic Matter,2701,Executive Director Lec,Trade Waste Disposal,5000
http://statistics.data.gov.uk/id/local-authority/47UD,Redditch Borough Council,12/10/2012,171685,DFG/4626,-449.90,Liftability Limited,272,Executive Director Lec,Administration Fee,6364
http://statistics.data.gov.uk/id/local-authority/47UD,Redditch Borough Council,12/10/2012,171685,DFG/4626,"2,168.90",Liftability Limited,272,Rbc Balance Sheet,Disabled Facilities Grant,8701
http://statistics.data.gov.uk/id/local-authority/47UD,Redditch Borough Council,26/10/2012,172766,DFG/4617,-346.10,Liftability Limited,272,Executive Director Lec,Administration Fee,6364
http://statistics.data.gov.uk/id/local-authority/47UD,Redditch Borough Council,26/10/2012,172766,DFG/4617,"3,767.10",Liftability Limited,272,Rbc Balance Sheet,Disabled Facilities Grant,8701
http://statistics.data.gov.uk/id/local-authority/47UD,Redditch Borough Council,26/10/2012,172767,DFG/8762,"1,693.00",Liftability Limited,272,Rbc Balance Sheet,Disabled Facilities Grant,8701
http://statistics.data.gov.uk/id/local-authority/47UD,Redditch Borough Council,19/10/2012,171131,46910,"2,156.10",Supra Uk Limited,2728,Executive Director Lec,Operational Equip- Purchase,4150
http://statistics.data.gov.uk/id/local-authority/47UD,Redditch Borough Council,05/10/2012,171401,120906B,"25,000.00",Jordan Productions Ltd,2820,Executive Director Lec,Professional Fees,4352
http://statistics.data.gov.uk/id/local-authority/47UD,Redditch Borough Council,26/10/2012,172331,D12/8049,565.68,Djt & Son Ltd,2947,Housing Repairs Account,Contractors,5158
http://statistics.data.gov.uk/id/local-authority/47UD,Redditch Borough Council,26/10/2012,172332,D12/8050,565.68,Djt & Son Ltd,2947,Housing Repairs Account,Contractors,5158
http://statistics.data.gov.uk/id/local-authority/47UD,Redditch Borough Council,26/10/2012,171973,29433,"2,004.30",Robert Bruce Construction  Limited,2950,Rbc Balance Sheet,Contract Payments,8131
http://statistics.data.gov.uk/id/local-authority/47UD,Redditch Borough Council,05/10/2012,170754,57256,"1,000.00",Smartwater Technology Ltd,2957,Executive Director Lec,Project Work,4733
http://statistics.data.gov.uk/id/local-authority/47UD,Redditch Borough Council,26/10/2012,172543,20560,449.48,Janitorial Direct Ltd,302,Crossgate Stocks,Stock Variance,1201
http://statistics.data.gov.uk/id/local-authority/47UD,Redditch Borough Council,26/10/2012,170351,26005,563.28,Plastic Data Cards,3044,Executive Director Lec,Operational Equip- Purchase,4150
http://statistics.data.gov.uk/id/local-authority/47UD,Redditch Borough Council,26/10/2012,171139,26071,440.61,Plastic Data Cards,3044,Executive Director Lec,Recreational Equip - Purchase,4100
http://statistics.data.gov.uk/id/local-authority/47UD,Redditch Borough Council,12/10/2012,171631,226986,"3,585.41",Jack Hobbs Plumbing & Heating Suppl,306,Crossgate Stocks,Stock Variance,1201
http://statistics.data.gov.uk/id/local-authority/47UD,Redditch Borough Council,12/10/2012,171631,226986,17.89,Jack Hobbs Plumbing & Heating Suppl,306,Crossgate Stocks,Stock Variance,1203
http://statistics.data.gov.uk/id/local-authority/47UD,Redditch Borough Council,05/10/2012,171145,954934279,786.40,Office Depot (Uk) Ltd,3098,Print Room Stocks,Stock Account (Cedar),1201
http://statistics.data.gov.uk/id/local-authority/47UD,Redditch Borough Council,05/10/2012,171390,87073759,523.16,Office Depot (Uk) Ltd,3098,Chief Executive,Office Consumables,4304
http://statistics.data.gov.uk/id/local-authority/47UD,Redditch Borough Council,05/10/2012,171390,87073759,48.94,Office Depot (Uk) Ltd,3098,Exec. Director Fin. & Resource,Office Consumables,4304
http://statistics.data.gov.uk/id/local-authority/47UD,Redditch Borough Council,05/10/2012,171390,87073759,15.13,Office Depot (Uk) Ltd,3098,Exec. Director Fin. & Resource,Office Consumables,4304
http://statistics.data.gov.uk/id/local-authority/47UD,Redditch Borough Council,05/10/2012,171390,87073759,2.30,Office Depot (Uk) Ltd,3098,Exec. Director Fin. & Resource,Office Consumables,4304
http://statistics.data.gov.uk/id/local-authority/47UD,Redditch Borough Council,05/10/2012,171390,87073759,102.46,Office Depot (Uk) Ltd,3098,Exec. Director Fin. & Resource,Office Consumables,4304
http://statistics.data.gov.uk/id/local-authority/47UD,Redditch Borough Council,05/10/2012,171390,87073759,102.98,Office Depot (Uk) Ltd,3098,Executive Director Lec,Office Consumables,4304
http://statistics.data.gov.uk/id/local-authority/47UD,Redditch Borough Council,05/10/2012,171390,87073759,12.56,Office Depot (Uk) Ltd,3098,Executive Director Lec,Office Consumables,4304
http://statistics.data.gov.uk/id/local-authority/47UD,Redditch Borough Council,05/10/2012,171390,87073759,146.63,Office Depot (Uk) Ltd,3098,Executive Director Lec,Office Consumables,4304
http://statistics.data.gov.uk/id/local-authority/47UD,Redditch Borough Council,05/10/2012,171390,87073759,16.59,Office Depot (Uk) Ltd,3098,Executive Director Lec,Office Consumables,4304
http://statistics.data.gov.uk/id/local-authority/47UD,Redditch Borough Council,05/10/2012,171390,87073759,44.59,Office Depot (Uk) Ltd,3098,Executive Director Lec,Computer Consumables,4500
http://statistics.data.gov.uk/id/local-authority/47UD,Redditch Borough Council,05/10/2012,171390,87073759,54.53,Office Depot (Uk) Ltd,3098,Executive Director Lec,Office Consumables,4304
http://statistics.data.gov.uk/id/local-authority/47UD,Redditch Borough Council,05/10/2012,171390,87073759,39.83,Office Depot (Uk) Ltd,3098,Executive Director Lec,Office Consumables,4304
http://statistics.data.gov.uk/id/local-authority/47UD,Redditch Borough Council,05/10/2012,171390,87073759,0.10,Office Depot (Uk) Ltd,3098,Executive Director Lec,Office Consumables,4304
http://statistics.data.gov.uk/id/local-authority/47UD,Redditch Borough Council,05/10/2012,171390,87073759,101.24,Office Depot (Uk) Ltd,3098,Housing Revenue Account,Office Consumables,4304
http://statistics.data.gov.uk/id/local-authority/47UD,Redditch Borough Council,05/10/2012,171390,87073759,1.04,Office Depot (Uk) Ltd,3098,Surestart Project,Office Consumables,4304
http://statistics.data.gov.uk/id/local-authority/47UD,Redditch Borough Council,26/10/2012,170373,32930452,591.75,Life Fitness (Uk) Ltd,3120,Executive Director Lec,Operational Equip- Purchase,4150
http://statistics.data.gov.uk/id/local-authority/47UD,Redditch Borough Council,26/10/2012,170668,32930749,538.41,Life Fitness (Uk) Ltd,3120,Executive Director Lec,Operational Equip- Purchase,4150
http://statistics.data.gov.uk/id/local-authority/47UD,Redditch Borough Council,12/10/2012,171293,386679,607.04,Instarmac Group Plc,315,Crossgate Stocks,Stock Variance,1201
http://statistics.data.gov.uk/id/local-authority/47UD,Redditch Borough Council,12/10/2012,171686,DFG/8759,-247.00,Iso Property Developments,3154,Executive Director Lec,Administration Fee,6364
http://statistics.data.gov.uk/id/local-authority/47UD,Redditch Borough Council,12/10/2012,171686,DFG/8759,"2,677.00",Iso Property Developments,3154,Rbc Balance Sheet,Disabled Facilities Grant,8701
http://statistics.data.gov.uk/id/local-authority/47UD,Redditch Borough Council,12/10/2012,171688,DFG/9161,-270.00,Iso Property Developments,3154,Executive Director Lec,Administration Fee,6364
http://statistics.data.gov.uk/id/local-authority/47UD,Redditch Borough Council,12/10/2012,171688,DFG/9161,"2,930.00",Iso Property Developments,3154,Rbc Balance Sheet,Disabled Facilities Grant,8701
http://statistics.data.gov.uk/id/local-authority/47UD,Redditch Borough Council,26/10/2012,172769,DFG/8860,-322.00,Iso Property Developments,3154,Executive Director Lec,Administration Fee,6364
http://statistics.data.gov.uk/id/local-authority/47UD,Redditch Borough Council,26/10/2012,172769,DFG/8860,"3,542.00",Iso Property Developments,3154,Rbc Balance Sheet,Disabled Facilities Grant,8701
http://statistics.data.gov.uk/id/local-authority/47UD,Redditch Borough Council,26/10/2012,172770,DFG/9160,-325.00,Iso Property Developments,3154,Executive Director Lec,Administration Fee,6364
http://statistics.data.gov.uk/id/local-authority/47UD,Redditch Borough Council,26/10/2012,172770,DFG/9160,"3,535.00",Iso Property Developments,3154,Rbc Balance Sheet,Disabled Facilities Grant,8701
http://statistics.data.gov.uk/id/local-authority/47UD,Redditch Borough Council,12/10/2012,171301,068531,731.50,Imperial Polythene Products Ltd,3246,Crossgate Stocks,Stock Variance,1201
http://statistics.data.gov.uk/id/local-authority/47UD,Redditch Borough Council,26/10/2012,168173,S1080166,591.71,Smurfit Kappa Recycling,328,Executive Director Lec,Contractors,5158
http://statistics.data.gov.uk/id/local-authority/47UD,Redditch Borough Council,26/10/2012,170052,SI081005,477.25,Smurfit Kappa Recycling,328,Executive Director Lec,Contractors,5158
http://statistics.data.gov.uk/id/local-authority/47UD,Redditch Borough Council,19/10/2012,171271,003547,37.93,Smith Bellerby,329,Exec. Director Fin. & Resource,Water Charges,3450
http://statistics.data.gov.uk/id/local-authority/47UD,Redditch Borough Council,19/10/2012,171271,003547,119.22,Smith Bellerby,329,Executive Director Lec,Electricity,3300
http://statistics.data.gov.uk/id/local-authority/47UD,Redditch Borough Council,19/10/2012,171271,003547,151.73,Smith Bellerby,329,Executive Director Lec,Gas,3301
http://statistics.data.gov.uk/id/local-authority/47UD,Redditch Borough Council,19/10/2012,171271,003547,199.38,Smith Bellerby,329,Executive Director Lec,Water Charges,3450
http://statistics.data.gov.uk/id/local-authority/47UD,Redditch Borough Council,19/10/2012,171271,003547,16.25,Smith Bellerby,329,Executive Director Lec,Water Charges,3450
http://statistics.data.gov.uk/id/local-authority/47UD,Redditch Borough Council,19/10/2012,171271,003547,10.85,Smith Bellerby,329,Housing Revenue Account,Water Charges,3450
http://statistics.data.gov.uk/id/local-authority/47UD,Redditch Borough Council,19/10/2012,171271,003547,21.69,Smith Bellerby,329,Housing Revenue Account,Gas,3301
http://statistics.data.gov.uk/id/local-authority/47UD,Redditch Borough Council,26/10/2012,172720,16,"2,500.00",Newstarts,3311,Exec. Director Prrh,Project Work,4733
http://statistics.data.gov.uk/id/local-authority/47UD,Redditch Borough Council,19/10/2012,171637,0000154247,590.89,Sheldon Industrial Holding Ltd,334,Executive Director Lec,Contract Cleaning,3600
http://statistics.data.gov.uk/id/local-authority/47UD,Redditch Borough Council,19/10/2012,170115,166747,679.93,Securit World Ltd,339,Exec. Director Fin. & Resource,Operation Equip -Rep & Maint,4152
http://statistics.data.gov.uk/id/local-authority/47UD,Redditch Borough Council,19/10/2012,172027,0000206136,450.00,Bullivant Media Ltd,3652,Executive Director Lec,Advertising,4735
http://statistics.data.gov.uk/id/local-authority/47UD,Redditch Borough Council,12/10/2012,171707,50915,579.50,Force 3 Security Limited,3658,Exec. Director Fin. & Resource,Security Costs,3500
http://statistics.data.gov.uk/id/local-authority/47UD,Redditch Borough Council,05/10/2012,170795,0201/00120134,719.95,Harlow Timber,3667,Housing Repairs Account,Materials,4170
http://statistics.data.gov.uk/id/local-authority/47UD,Redditch Borough Council,26/10/2012,172793,216768,900.00,Shelter Publications,3681,Exec. Director Prrh,Training,3043
http://statistics.data.gov.uk/id/local-authority/47UD,Redditch Borough Council,12/10/2012,171172,00224,"1,428.00",Rainbow Cleaning,369,Housing Repairs Account,Contractors,5158
http://statistics.data.gov.uk/id/local-authority/47UD,Redditch Borough Council,26/10/2012,171776,00225,952.00,Rainbow Cleaning,369,Housing Repairs Account,Contractors,5158
http://statistics.data.gov.uk/id/local-authority/47UD,Redditch Borough Council,05/10/2012,170358,1000/766,"1,062.59",R S T S Landscaping Limited,370,Executive Director Lec,Contractors,5158
http://statistics.data.gov.uk/id/local-authority/47UD,Redditch Borough Council,05/10/2012,170359,1000/765,"1,270.00",R S T S Landscaping Limited,370,Executive Director Lec,Agency Staff,3020
http://statistics.data.gov.uk/id/local-authority/47UD,Redditch Borough Council,05/10/2012,170369,1000/772,920.06,R S T S Landscaping Limited,370,Rbc Balance Sheet,Contract Payments,8131
http://statistics.data.gov.uk/id/local-authority/47UD,Redditch Borough Council,19/10/2012,170771,1000/775,"3,808.00",R S T S Landscaping Limited,370,Executive Director Lec,Contractors,5158
http://statistics.data.gov.uk/id/local-authority/47UD,Redditch Borough Council,05/10/2012,170773,1000/777,"1,069.00",R S T S Landscaping Limited,370,Rbc Balance Sheet,Contract Payments,8131
http://statistics.data.gov.uk/id/local-authority/47UD,Redditch Borough Council,05/10/2012,170843,1000/778,951.00,R S T S Landscaping Limited,370,Executive Director Lec,Routine Grounds Maintenance,3200
http://statistics.data.gov.uk/id/local-authority/47UD,Redditch Borough Council,05/10/2012,171385,RE-PAY INVOICE,951.00,R S T S Landscaping Limited,370,Executive Director Lec,Routine Grounds Maintenance,3200
http://statistics.data.gov.uk/id/local-authority/47UD,Redditch Borough Council,05/10/2012,171386,CREDIT INV,-951.00,R S T S Landscaping Limited,370,Executive Director Lec,Routine Grounds Maintenance,3200
http://statistics.data.gov.uk/id/local-authority/47UD,Redditch Borough Council,05/10/2012,171387,RE-PAY INVOICE,920.06,R S T S Landscaping Limited,370,Rbc Balance Sheet,Contract Payments,8131
http://statistics.data.gov.uk/id/local-authority/47UD,Redditch Borough Council,05/10/2012,171388,CREDIT INVOICE,-920.06,R S T S Landscaping Limited,370,Rbc Balance Sheet,Contract Payments,8131
http://statistics.data.gov.uk/id/local-authority/47UD,Redditch Borough Council,19/10/2012,172014,1000/ 780,798.47,R S T S Landscaping Limited,370,Rbc Balance Sheet,Contract Payments,8131
http://statistics.data.gov.uk/id/local-authority/47UD,Redditch Borough Council,26/10/2012,172506,1000/ 782,540.90,R S T S Landscaping Limited,370,Rbc Balance Sheet,Contract Payments,8131
http://statistics.data.gov.uk/id/local-authority/47UD,Redditch Borough Council,26/10/2012,172507,1000/ 784,554.00,R S T S Landscaping Limited,370,Rbc Balance Sheet,Contract Payments,8131
http://statistics.data.gov.uk/id/local-authority/47UD,Redditch Borough Council,26/10/2012,172729,1000/779,"2,600.00",R S T S Landscaping Limited,370,Housing Repairs Account,Materials,4170
http://statistics.data.gov.uk/id/local-authority/47UD,Redditch Borough Council,05/10/2012,171348,079180,715.37,R D Rogers Butchers,373,Housing Revenue Account,Catering Provisions(Vat Exempt,4200
http://statistics.data.gov.uk/id/local-authority/47UD,Redditch Borough Council,26/10/2012,160722,INV53314,450.00,Psw Paper & Print Ltd,381,Executive Director Lec,Contractors,5158
http://statistics.data.gov.uk/id/local-authority/47UD,Redditch Borough Council,12/10/2012,171340,8053,656.00,Practical Care Products Ltd,391,Housing Repairs Account,Materials,4170
http://statistics.data.gov.uk/id/local-authority/47UD,Redditch Borough Council,26/10/2012,172099,8098,450.00,Practical Care Products Ltd,391,Housing Repairs Account,Materials,4170
http://statistics.data.gov.uk/id/local-authority/47UD,Redditch Borough Council,26/10/2012,172115,8100,622.50,Practical Care Products Ltd,391,Housing Repairs Account,Materials,4170
http://statistics.data.gov.uk/id/local-authority/47UD,Redditch Borough Council,26/10/2012,172481,8128,677.28,Practical Care Products Ltd,391,Housing Repairs Account,Materials,4170
http://statistics.data.gov.uk/id/local-authority/47UD,Redditch Borough Council,12/10/2012,171699,3RD QTR 2012/13,"5,000.00",Where Next Association,418,Executive Director Lec,Grants To Voluntary Bodies,4661
http://statistics.data.gov.uk/id/local-authority/47UD,Redditch Borough Council,19/10/2012,172213,25738,450.00,Whats On Magazine,419,Executive Director Lec,Advertising,4735
http://statistics.data.gov.uk/id/local-authority/47UD,Redditch Borough Council,19/10/2012,171114,0989,"4,250.00",West Midlands Councils,422,Exec. Director Fin. & Resource,Agency Staff,3020
http://statistics.data.gov.uk/id/local-authority/47UD,Redditch Borough Council,05/10/2012,170730,1537,"2,500.00",W D Ornamental Ironwork,440,Rbc Balance Sheet,Contract Payments,8131
http://statistics.data.gov.uk/id/local-authority/47UD,Redditch Borough Council,26/10/2012,172806,5692,"1,711.67",Pfb Self Drive,441,Executive Director Lec,Contract Hire,3850
http://statistics.data.gov.uk/id/local-authority/47UD,Redditch Borough Council,05/10/2012,171375,580126,136.30,Baby Bottles Wholesale Limited,4430,Executive Director Lec,Catering Provisions(Vat Exempt,4200
http://statistics.data.gov.uk/id/local-authority/47UD,Redditch Borough Council,05/10/2012,171375,580126,59.54,Baby Bottles Wholesale Limited,4430,Executive Director Lec,Catering Provisions(Vat Exempt,4200
http://statistics.data.gov.uk/id/local-authority/47UD,Redditch Borough Council,05/10/2012,171375,580126,23.10,Baby Bottles Wholesale Limited,4430,Executive Director Lec,Catering Provisions(Vat Exempt,4200
http://statistics.data.gov.uk/id/local-authority/47UD,Redditch Borough Council,05/10/2012,171375,580126,184.10,Baby Bottles Wholesale Limited,4430,Executive Director Lec,Catering Provisions(Vat Exempt,4200
http://statistics.data.gov.uk/id/local-authority/47UD,Redditch Borough Council,05/10/2012,171375,580126,146.52,Baby Bottles Wholesale Limited,4430,Executive Director Lec,Catering Provisions(Vat Exempt,4200
http://statistics.data.gov.uk/id/local-authority/47UD,Redditch Borough Council,19/10/2012,171374,21333719,118.14,3663 First For Foodservice,4449,Executive Director Lec,Catering Provisions(Vat Exempt,4200
http://statistics.data.gov.uk/id/local-authority/47UD,Redditch Borough Council,19/10/2012,171374,21333719,227.88,3663 First For Foodservice,4449,Executive Director Lec,Catering Provisions(Vat Exempt,4200
http://statistics.data.gov.uk/id/local-authority/47UD,Redditch Borough Council,19/10/2012,171374,21333719,63.92,3663 First For Foodservice,4449,Executive Director Lec,Catering Provisions(Vat Exempt,4200
http://statistics.data.gov.uk/id/local-authority/47UD,Redditch Borough Council,19/10/2012,171374,21333719,11.99,3663 First For Foodservice,4449,Executive Director Lec,Consumable Cleaning Materials,3605
http://statistics.data.gov.uk/id/local-authority/47UD,Redditch Borough Council,19/10/2012,171159,I2139601,"1,382.00",Northgate Arinso Uk Limited,4454,Exec. Director Fin. & Resource,Consultants Fees,4351
http://statistics.data.gov.uk/id/local-authority/47UD,Redditch Borough Council,12/10/2012,171739,100183,520.00,Dhc Services,4574,Rbc Balance Sheet,Contract Payments,8131
http://statistics.data.gov.uk/id/local-authority/47UD,Redditch Borough Council,19/10/2012,172224,100184,"2,150.00",Dhc Services,4574,Rbc Balance Sheet,Contract Payments,8131
http://statistics.data.gov.uk/id/local-authority/47UD,Redditch Borough Council,19/10/2012,172141,SEP-12,309.38,Lex Autolease Ltd,4578,Housing Repairs Account,Operating Leases,3851
http://statistics.data.gov.uk/id/local-authority/47UD,Redditch Borough Council,19/10/2012,172141,SEP-12,309.38,Lex Autolease Ltd,4578,Housing Repairs Account,Operating Leases,3851
http://statistics.data.gov.uk/id/local-authority/47UD,Redditch Borough Council,19/10/2012,172141,SEP-12,309.38,Lex Autolease Ltd,4578,Housing Repairs Account,Operating Leases,3851
http://statistics.data.gov.uk/id/local-authority/47UD,Redditch Borough Council,19/10/2012,172141,SEP-12,309.38,Lex Autolease Ltd,4578,Housing Repairs Account,Operating Leases,3851
http://statistics.data.gov.uk/id/local-authority/47UD,Redditch Borough Council,19/10/2012,172141,SEP-12,309.38,Lex Autolease Ltd,4578,Housing Repairs Account,Operating Leases,3851
http://statistics.data.gov.uk/id/local-authority/47UD,Redditch Borough Council,19/10/2012,172141,SEP-12,309.38,Lex Autolease Ltd,4578,Housing Repairs Account,Operating Leases,3851
http://statistics.data.gov.uk/id/local-authority/47UD,Redditch Borough Council,19/10/2012,172141,SEP-12,309.38,Lex Autolease Ltd,4578,Housing Repairs Account,Operating Leases,3851
http://statistics.data.gov.uk/id/local-authority/47UD,Redditch Borough Council,19/10/2012,172141,SEP-12,309.38,Lex Autolease Ltd,4578,Housing Repairs Account,Operating Leases,3851
http://statistics.data.gov.uk/id/local-authority/47UD,Redditch Borough Council,19/10/2012,172141,SEP-12,309.38,Lex Autolease Ltd,4578,Housing Repairs Account,Operating Leases,3851
http://statistics.data.gov.uk/id/local-authority/47UD,Redditch Borough Council,19/10/2012,172141,SEP-12,309.38,Lex Autolease Ltd,4578,Housing Repairs Account,Operating Leases,3851
http://statistics.data.gov.uk/id/local-authority/47UD,Redditch Borough Council,19/10/2012,172141,SEP-12,309.38,Lex Autolease Ltd,4578,Housing Repairs Account,Operating Leases,3851
http://statistics.data.gov.uk/id/local-authority/47UD,Redditch Borough Council,19/10/2012,172141,SEP-12,309.38,Lex Autolease Ltd,4578,Housing Repairs Account,Operating Leases,3851
http://statistics.data.gov.uk/id/local-authority/47UD,Redditch Borough Council,19/10/2012,172141,SEP-12,309.38,Lex Autolease Ltd,4578,Housing Repairs Account,Operating Leases,3851
http://statistics.data.gov.uk/id/local-authority/47UD,Redditch Borough Council,19/10/2012,172141,SEP-12,309.38,Lex Autolease Ltd,4578,Housing Repairs Account,Operating Leases,3851
http://statistics.data.gov.uk/id/local-authority/47UD,Redditch Borough Council,19/10/2012,172141,SEP-12,309.38,Lex Autolease Ltd,4578,Housing Repairs Account,Operating Leases,3851
http://statistics.data.gov.uk/id/local-authority/47UD,Redditch Borough Council,19/10/2012,172141,SEP-12,384.81,Lex Autolease Ltd,4578,Executive Director Lec,Operating Leases,3851
http://statistics.data.gov.uk/id/local-authority/47UD,Redditch Borough Council,19/10/2012,172141,SEP-12,384.81,Lex Autolease Ltd,4578,Executive Director Lec,Operating Leases,3851
http://statistics.data.gov.uk/id/local-authority/47UD,Redditch Borough Council,19/10/2012,172141,SEP-12,384.81,Lex Autolease Ltd,4578,Executive Director Lec,Operating Leases,3851
http://statistics.data.gov.uk/id/local-authority/47UD,Redditch Borough Council,19/10/2012,172141,SEP-12,384.81,Lex Autolease Ltd,4578,Executive Director Lec,Operating Leases,3851
http://statistics.data.gov.uk/id/local-authority/47UD,Redditch Borough Council,19/10/2012,172141,SEP-12,382.34,Lex Autolease Ltd,4578,Housing Repairs Account,Operating Leases,3851
http://statistics.data.gov.uk/id/local-authority/47UD,Redditch Borough Council,19/10/2012,172141,SEP-12,382.34,Lex Autolease Ltd,4578,Housing Repairs Account,Operating Leases,3851
http://statistics.data.gov.uk/id/local-authority/47UD,Redditch Borough Council,19/10/2012,172141,SEP-12,382.34,Lex Autolease Ltd,4578,Executive Director Lec,Operating Leases,3851
http://statistics.data.gov.uk/id/local-authority/47UD,Redditch Borough Council,19/10/2012,172141,SEP-12,382.34,Lex Autolease Ltd,4578,Executive Director Lec,Operating Leases,3851
http://statistics.data.gov.uk/id/local-authority/47UD,Redditch Borough Council,19/10/2012,172141,SEP-12,382.34,Lex Autolease Ltd,4578,Executive Director Lec,Operating Leases,3851
http://statistics.data.gov.uk/id/local-authority/47UD,Redditch Borough Council,19/10/2012,172141,SEP-12,382.34,Lex Autolease Ltd,4578,Executive Director Lec,Operating Leases,3851
http://statistics.data.gov.uk/id/local-authority/47UD,Redditch Borough Council,19/10/2012,172141,SEP-12,237.63,Lex Autolease Ltd,4578,Executive Director Lec,Operating Leases,3851
http://statistics.data.gov.uk/id/local-authority/47UD,Redditch Borough Council,19/10/2012,172141,SEP-12,384.81,Lex Autolease Ltd,4578,Executive Director Lec,Operating Leases,3851
http://statistics.data.gov.uk/id/local-authority/47UD,Redditch Borough Council,19/10/2012,172141,SEP-12,270.88,Lex Autolease Ltd,4578,Executive Director Lec,Operating Leases,3851
http://statistics.data.gov.uk/id/local-authority/47UD,Redditch Borough Council,19/10/2012,172141,SEP-12,319.19,Lex Autolease Ltd,4578,Executive Director Lec,Operating Leases,3851
http://statistics.data.gov.uk/id/local-authority/47UD,Redditch Borough Council,19/10/2012,172141,SEP-12,243.09,Lex Autolease Ltd,4578,Housing Repairs Account,Operating Leases,3851
http://statistics.data.gov.uk/id/local-authority/47UD,Redditch Borough Council,19/10/2012,172141,SEP-12,249.29,Lex Autolease Ltd,4578,Executive Director Lec,Operating Leases,3851
http://statistics.data.gov.uk/id/local-authority/47UD,Redditch Borough Council,19/10/2012,172141,SEP-12,243.09,Lex Autolease Ltd,4578,Housing Repairs Account,Operating Leases,3851
http://statistics.data.gov.uk/id/local-authority/47UD,Redditch Borough Council,19/10/2012,172141,SEP-12,243.09,Lex Autolease Ltd,4578,Housing Repairs Account,Operating Leases,3851
http://statistics.data.gov.uk/id/local-authority/47UD,Redditch Borough Council,19/10/2012,172141,SEP-12,243.09,Lex Autolease Ltd,4578,Executive Director Lec,Operating Leases,3851
http://statistics.data.gov.uk/id/local-authority/47UD,Redditch Borough Council,19/10/2012,172141,SEP-12,243.09,Lex Autolease Ltd,4578,Housing Repairs Account,Operating Leases,3851
http://statistics.data.gov.uk/id/local-authority/47UD,Redditch Borough Council,19/10/2012,172141,SEP-12,400.99,Lex Autolease Ltd,4578,Housing Repairs Account,Operating Leases,3851
http://statistics.data.gov.uk/id/local-authority/47UD,Redditch Borough Council,19/10/2012,172141,SEP-12,489.02,Lex Autolease Ltd,4578,Executive Director Lec,Operating Leases,3851
http://statistics.data.gov.uk/id/local-authority/47UD,Redditch Borough Council,19/10/2012,172141,SEP-12,261.00,Lex Autolease Ltd,4578,Executive Director Lec,Operating Leases,3851
http://statistics.data.gov.uk/id/local-authority/47UD,Redditch Borough Council,19/10/2012,172141,SEP-12,243.09,Lex Autolease Ltd,4578,Housing Repairs Account,Operating Leases,3851
http://statistics.data.gov.uk/id/local-authority/47UD,Redditch Borough Council,19/10/2012,172141,SEP-12,261.00,Lex Autolease Ltd,4578,Housing Repairs Account,Operating Leases,3851
http://statistics.data.gov.uk/id/local-authority/47UD,Redditch Borough Council,19/10/2012,172141,SEP-12,170.45,Lex Autolease Ltd,4578,Executive Director Lec,Operating Leases,3851
http://statistics.data.gov.uk/id/local-authority/47UD,Redditch Borough Council,19/10/2012,172141,SEP-12,170.45,Lex Autolease Ltd,4578,Executive Director Lec,Operating Leases,3851
http://statistics.data.gov.uk/id/local-authority/47UD,Redditch Borough Council,19/10/2012,172141,SEP-12,170.45,Lex Autolease Ltd,4578,Executive Director Lec,Operating Leases,3851
http://statistics.data.gov.uk/id/local-authority/47UD,Redditch Borough Council,19/10/2012,172141,SEP-12,353.00,Lex Autolease Ltd,4578,Executive Director Lec,Operating Leases,3851
http://statistics.data.gov.uk/id/local-authority/47UD,Redditch Borough Council,19/10/2012,172141,SEP-12,353.00,Lex Autolease Ltd,4578,Executive Director Lec,Operating Leases,3851
http://statistics.data.gov.uk/id/local-authority/47UD,Redditch Borough Council,19/10/2012,172141,SEP-12,240.62,Lex Autolease Ltd,4578,Executive Director Lec,Operating Leases,3851
http://statistics.data.gov.uk/id/local-authority/47UD,Redditch Borough Council,19/10/2012,172141,SEP-12,353.00,Lex Autolease Ltd,4578,Executive Director Lec,Operating Leases,3851
http://statistics.data.gov.uk/id/local-authority/47UD,Redditch Borough Council,19/10/2012,172141,SEP-12,353.00,Lex Autolease Ltd,4578,Executive Director Lec,Operating Leases,3851
http://statistics.data.gov.uk/id/local-authority/47UD,Redditch Borough Council,19/10/2012,172141,SEP-12,240.62,Lex Autolease Ltd,4578,Exec. Director Fin. & Resource,Operating Leases,3851
http://statistics.data.gov.uk/id/local-authority/47UD,Redditch Borough Council,19/10/2012,172141,SEP-12,353.00,Lex Autolease Ltd,4578,Executive Director Lec,Operating Leases,3851
http://statistics.data.gov.uk/id/local-authority/47UD,Redditch Borough Council,19/10/2012,172141,SEP-12,243.09,Lex Autolease Ltd,4578,Housing Repairs Account,Operating Leases,3851
http://statistics.data.gov.uk/id/local-authority/47UD,Redditch Borough Council,19/10/2012,172141,SEP-12,514.95,Lex Autolease Ltd,4578,Housing Repairs Account,Operating Leases,3851
http://statistics.data.gov.uk/id/local-authority/47UD,Redditch Borough Council,19/10/2012,172141,SEP-12,461.92,Lex Autolease Ltd,4578,Executive Director Lec,Operating Leases,3851
http://statistics.data.gov.uk/id/local-authority/47UD,Redditch Borough Council,19/10/2012,172141,SEP-12,461.92,Lex Autolease Ltd,4578,Executive Director Lec,Operating Leases,3851
http://statistics.data.gov.uk/id/local-authority/47UD,Redditch Borough Council,19/10/2012,172141,SEP-12,461.92,Lex Autolease Ltd,4578,Executive Director Lec,Operating Leases,3851
http://statistics.data.gov.uk/id/local-authority/47UD,Redditch Borough Council,19/10/2012,172141,SEP-12,461.92,Lex Autolease Ltd,4578,Executive Director Lec,Operating Leases,3851
http://statistics.data.gov.uk/id/local-authority/47UD,Redditch Borough Council,19/10/2012,171590,3IN/10208490,749.40,Tunstall  Limited,459,Executive Director Lec,Operational Equip- Purchase,4150
http://statistics.data.gov.uk/id/local-authority/47UD,Redditch Borough Council,12/10/2012,171214,3220027,"34,958.97",Danwood Group Limited,4599,Chief Executive,Operating Leases,4153
http://statistics.data.gov.uk/id/local-authority/47UD,Redditch Borough Council,05/10/2012,171379,0823,"5,709.87",Derek Block Artistes Agency,4693,Executive Director Lec,Professional Fees,4352
http://statistics.data.gov.uk/id/local-authority/47UD,Redditch Borough Council,12/10/2012,171679,5630,426.40,Clarke Oil Ltd,4735,Executive Director Lec,Operational Equip- Purchase,4150
http://statistics.data.gov.uk/id/local-authority/47UD,Redditch Borough Council,02/10/2012,169681,2004,"34,895.74",Kelbec Civils Ltd,4794,Housing Revenue Account,Paved Area Maintenance,3202
http://statistics.data.gov.uk/id/local-authority/47UD,Redditch Borough Council,05/10/2012,170059,2013,"1,302.16",Kelbec Civils Ltd,4794,Executive Director Lec,Contractors,5158
http://statistics.data.gov.uk/id/local-authority/47UD,Redditch Borough Council,26/10/2012,170060,2005,"2,579.62",Kelbec Civils Ltd,4794,Housing Repairs Account,Drainage,3201
http://statistics.data.gov.uk/id/local-authority/47UD,Redditch Borough Council,05/10/2012,170704,2020,"4,180.06",Kelbec Civils Ltd,4794,Other Recharges,Payments Expenditure,2981
http://statistics.data.gov.uk/id/local-authority/47UD,Redditch Borough Council,05/10/2012,170761,2022,465.08,Kelbec Civils Ltd,4794,Rbc Balance Sheet,Direct Payments,8132
http://statistics.data.gov.uk/id/local-authority/47UD,Redditch Borough Council,05/10/2012,170786,2026,"4,250.07",Kelbec Civils Ltd,4794,Executive Director Lec,Response R&M,3104
http://statistics.data.gov.uk/id/local-authority/47UD,Redditch Borough Council,26/10/2012,171635,2057,"7,276.59",Kelbec Civils Ltd,4794,Executive Director Lec,Contractors,5158
http://statistics.data.gov.uk/id/local-authority/47UD,Redditch Borough Council,19/10/2012,170826,3669603,"1,766.72",The Performing Right Society Ltd,488,Executive Director Lec,Project Work,4733
http://statistics.data.gov.uk/id/local-authority/47UD,Redditch Borough Council,05/10/2012,170803,186886,479.00,The Helping Hand Company Ledbury Lt,494,Crossgate Stocks,Stock Variance,1201
http://statistics.data.gov.uk/id/local-authority/47UD,Redditch Borough Council,05/10/2012,169703,13138,524.66,The Glasshouse,495,Rbc Balance Sheet,Contract Payments,8131
http://statistics.data.gov.uk/id/local-authority/47UD,Redditch Borough Council,05/10/2012,169705,13137,466.04,The Glasshouse,495,Rbc Balance Sheet,Contract Payments,8131
http://statistics.data.gov.uk/id/local-authority/47UD,Redditch Borough Council,05/10/2012,169927,13097,470.39,The Glasshouse,495,Rbc Balance Sheet,Contract Payments,8131
http://statistics.data.gov.uk/id/local-authority/47UD,Redditch Borough Council,26/10/2012,172726,13206,464.13,The Glasshouse,495,Housing Repairs Account,Repairs In House Team,3107
http://statistics.data.gov.uk/id/local-authority/47UD,Redditch Borough Council,26/10/2012,172726,13206,"4,505.14",The Glasshouse,495,Rbc Balance Sheet,Contract Payments,8131
http://statistics.data.gov.uk/id/local-authority/47UD,Redditch Borough Council,26/10/2012,172727,13153,884.48,The Glasshouse,495,Housing Repairs Account,Contractors,5158
http://statistics.data.gov.uk/id/local-authority/47UD,Redditch Borough Council,26/10/2012,172727,13153,63.18,The Glasshouse,495,Housing Repairs Account,Repairs In House Team,3107
http://statistics.data.gov.uk/id/local-authority/47UD,Redditch Borough Council,26/10/2012,172727,13153,299.43,The Glasshouse,495,Housing Repairs Account,R&M Reharges Exp-Other,3113
http://statistics.data.gov.uk/id/local-authority/47UD,Redditch Borough Council,26/10/2012,172728,13205,568.26,The Glasshouse,495,Housing Repairs Account,Contractors,5158
http://statistics.data.gov.uk/id/local-authority/47UD,Redditch Borough Council,05/10/2012,171403,114 BJE 120929,"1,456.51",Morningside Management Ltd,4957,Executive Director Lec,Professional Fees,4352
http://statistics.data.gov.uk/id/local-authority/47UD,Redditch Borough Council,05/10/2012,171403,114 BJE 120929,-54.21,Morningside Management Ltd,4957,Executive Director Lec,Other Fees & Charges(Vatable),6302
http://statistics.data.gov.uk/id/local-authority/47UD,Redditch Borough Council,26/10/2012,172712,989619,250.00,Nationwide Crash Repair Centre Ltd,4974,Housing Repairs Account,Contractors,3701
http://statistics.data.gov.uk/id/local-authority/47UD,Redditch Borough Council,26/10/2012,172712,989619,447.40,Nationwide Crash Repair Centre Ltd,4974,Vat Control Account,Vat Input Tax Adjustments,2994
http://statistics.data.gov.uk/id/local-authority/47UD,Redditch Borough Council,26/10/2012,172713,5508,250.00,Nationwide Crash Repair Centre Ltd,4974,Executive Director Lec,Contractors,3701
http://statistics.data.gov.uk/id/local-authority/47UD,Redditch Borough Council,26/10/2012,172713,5508,323.08,Nationwide Crash Repair Centre Ltd,4974,Vat Control Account,Vat Input Tax Adjustments,2994
http://statistics.data.gov.uk/id/local-authority/47UD,Redditch Borough Council,26/10/2012,172733,34600,250.00,Nationwide Crash Repair Centre Ltd,4974,Housing Repairs Account,Contractors,3701
http://statistics.data.gov.uk/id/local-authority/47UD,Redditch Borough Council,26/10/2012,172733,34600,341.50,Nationwide Crash Repair Centre Ltd,4974,Vat Control Account,Vat Input Tax Adjustments,2994
http://statistics.data.gov.uk/id/local-authority/47UD,Redditch Borough Council,26/10/2012,172805,106124,250.00,Nationwide Crash Repair Centre Ltd,4974,Housing Repairs Account,Mechanics Recharge,3702
http://statistics.data.gov.uk/id/local-authority/47UD,Redditch Borough Council,26/10/2012,172805,106124,308.07,Nationwide Crash Repair Centre Ltd,4974,Vat Control Account,Vat Input Tax Adjustments,2994
http://statistics.data.gov.uk/id/local-authority/47UD,Redditch Borough Council,12/10/2012,171701,3RD QTR 2012/13,"2,000.00",St Basils,5038,Executive Director Lec,Grants To Voluntary Bodies,4661
http://statistics.data.gov.uk/id/local-authority/47UD,Redditch Borough Council,05/10/2012,171358,479,600.00,Early Years Solutions,5069,Surestart Project,Training,3043
http://statistics.data.gov.uk/id/local-authority/47UD,Redditch Borough Council,05/10/2012,166806,913158-031,"-2,546.85",Virgin Media Payments Limited,507,Chief Executive,Network Security,4508
http://statistics.data.gov.uk/id/local-authority/47UD,Redditch Borough Council,26/10/2012,171209,INV2985,"1,468.00",Green Brothers Ltd,5152,Executive Director Lec,Contractors,5158
http://statistics.data.gov.uk/id/local-authority/47UD,Redditch Borough Council,26/10/2012,172797,3461,"1,059.40",Fews Marquees,5166,Executive Director Lec,Operational Equip- Purchase,4150
http://statistics.data.gov.uk/id/local-authority/47UD,Redditch Borough Council,26/10/2012,172797,3461,335.00,Fews Marquees,5166,Executive Director Lec,Project Work,4733
http://statistics.data.gov.uk/id/local-authority/47UD,Redditch Borough Council,19/10/2012,172211,207,"13,000.00",Pro-Teq Surfacing (Uk) Ltd,5253,Executive Director Lec,Operational Equip- Purchase,4150
http://statistics.data.gov.uk/id/local-authority/47UD,Redditch Borough Council,05/10/2012,170903,POM POMS,215.00,Samantha Bayles,5301,Executive Director Lec,Casual Staff,3022
http://statistics.data.gov.uk/id/local-authority/47UD,Redditch Borough Council,05/10/2012,170903,POM POMS,550.00,Samantha Bayles,5301,Executive Director Lec,Casual Staff,3022
http://statistics.data.gov.uk/id/local-authority/47UD,Redditch Borough Council,05/10/2012,171281,IN4028,661.24,Matrix Scm Ltd,5367,Exec. Director Fin. & Resource,Agency Staff,3020
http://statistics.data.gov.uk/id/local-authority/47UD,Redditch Borough Council,05/10/2012,171281,IN4028,171.68,Matrix Scm Ltd,5367,Exec. Director Fin. & Resource,Agency Staff,3020
http://statistics.data.gov.uk/id/local-authority/47UD,Redditch Borough Council,05/10/2012,171281,IN4028,697.08,Matrix Scm Ltd,5367,Exec. Director Prrh,Agency Staff,3020
http://statistics.data.gov.uk/id/local-authority/47UD,Redditch Borough Council,05/10/2012,171281,IN4028,"4,908.75",Matrix Scm Ltd,5367,Executive Director Lec,Agency Staff,3020
http://statistics.data.gov.uk/id/local-authority/47UD,Redditch Borough Council,05/10/2012,171281,IN4028,"1,521.75",Matrix Scm Ltd,5367,Executive Director Lec,Agency Staff,3020
http://statistics.data.gov.uk/id/local-authority/47UD,Redditch Borough Council,05/10/2012,171281,IN4028,"3,965.31",Matrix Scm Ltd,5367,Executive Director Lec,Agency Staff,3020
http://statistics.data.gov.uk/id/local-authority/47UD,Redditch Borough Council,05/10/2012,171281,IN4028,812.22,Matrix Scm Ltd,5367,Executive Director Lec,Agency Staff,3020
http://statistics.data.gov.uk/id/local-authority/47UD,Redditch Borough Council,05/10/2012,171281,IN4028,731.11,Matrix Scm Ltd,5367,Housing Repairs Account,Agency Staff,3020
http://statistics.data.gov.uk/id/local-authority/47UD,Redditch Borough Council,05/10/2012,171281,IN4028,"1,188.72",Matrix Scm Ltd,5367,Housing Revenue Account,Agency Staff,3020
http://statistics.data.gov.uk/id/local-authority/47UD,Redditch Borough Council,05/10/2012,171281,IN4028,663.41,Matrix Scm Ltd,5367,Housing Revenue Account,Agency Staff,3020
http://statistics.data.gov.uk/id/local-authority/47UD,Redditch Borough Council,12/10/2012,171754,TEMP STAFF,954.49,Matrix Scm Ltd,5367,Exec. Director Fin. & Resource,Agency Staff,3020
http://statistics.data.gov.uk/id/local-authority/47UD,Redditch Borough Council,12/10/2012,171754,TEMP STAFF,"1,144.53",Matrix Scm Ltd,5367,Exec. Director Prrh,Agency Staff,3020
http://statistics.data.gov.uk/id/local-authority/47UD,Redditch Borough Council,12/10/2012,171754,TEMP STAFF,"1,027.69",Matrix Scm Ltd,5367,Executive Director Lec,Agency Staff,3020
http://statistics.data.gov.uk/id/local-authority/47UD,Redditch Borough Council,12/10/2012,171754,TEMP STAFF,"6,230.45",Matrix Scm Ltd,5367,Executive Director Lec,Agency Staff,3020
http://statistics.data.gov.uk/id/local-authority/47UD,Redditch Borough Council,12/10/2012,171754,TEMP STAFF,"3,579.57",Matrix Scm Ltd,5367,Executive Director Lec,Agency Staff,3020
http://statistics.data.gov.uk/id/local-authority/47UD,Redditch Borough Council,12/10/2012,171754,TEMP STAFF,273.88,Matrix Scm Ltd,5367,Executive Director Lec,Agency Staff,3020
http://statistics.data.gov.uk/id/local-authority/47UD,Redditch Borough Council,12/10/2012,171754,TEMP STAFF,812.22,Matrix Scm Ltd,5367,Executive Director Lec,Agency Staff,3020
http://statistics.data.gov.uk/id/local-authority/47UD,Redditch Borough Council,12/10/2012,171754,TEMP STAFF,"1,152.18",Matrix Scm Ltd,5367,Housing Repairs Account,Agency Staff,3020
http://statistics.data.gov.uk/id/local-authority/47UD,Redditch Borough Council,12/10/2012,171754,TEMP STAFF,984.48,Matrix Scm Ltd,5367,Housing Revenue Account,Agency Staff,3020
http://statistics.data.gov.uk/id/local-authority/47UD,Redditch Borough Council,12/10/2012,171754,TEMP STAFF,448.25,Matrix Scm Ltd,5367,Housing Revenue Account,Agency Staff,3020
http://statistics.data.gov.uk/id/local-authority/47UD,Redditch Borough Council,26/10/2012,172486,IN4145,343.36,Matrix Scm Ltd,5367,Exec. Director Fin. & Resource,Agency Staff,3020
http://statistics.data.gov.uk/id/local-authority/47UD,Redditch Borough Council,26/10/2012,172486,IN4145,593.46,Matrix Scm Ltd,5367,Exec. Director Prrh,Agency Staff,3020
http://statistics.data.gov.uk/id/local-authority/47UD,Redditch Borough Council,26/10/2012,172486,IN4145,138.69,Matrix Scm Ltd,5367,Executive Director Lec,Agency Staff,3020
http://statistics.data.gov.uk/id/local-authority/47UD,Redditch Borough Council,26/10/2012,172486,IN4145,447.62,Matrix Scm Ltd,5367,Executive Director Lec,Agency Staff,3020
http://statistics.data.gov.uk/id/local-authority/47UD,Redditch Borough Council,26/10/2012,172486,IN4145,"1,164.76",Matrix Scm Ltd,5367,Housing Repairs Account,Agency Staff,3020
http://statistics.data.gov.uk/id/local-authority/47UD,Redditch Borough Council,26/10/2012,172486,IN4145,"1,184.21",Matrix Scm Ltd,5367,Housing Revenue Account,Agency Staff,3020
http://statistics.data.gov.uk/id/local-authority/47UD,Redditch Borough Council,26/10/2012,172486,IN4145,663.43,Matrix Scm Ltd,5367,Housing Revenue Account,Agency Staff,3020
http://statistics.data.gov.uk/id/local-authority/47UD,Redditch Borough Council,26/10/2012,172488,IN4201,382.38,Matrix Scm Ltd,5367,Exec. Director Fin. & Resource,Agency Staff,3020
http://statistics.data.gov.uk/id/local-authority/47UD,Redditch Borough Council,26/10/2012,172488,IN4201,"1,342.05",Matrix Scm Ltd,5367,Executive Director Lec,Agency Staff,3020
http://statistics.data.gov.uk/id/local-authority/47UD,Redditch Borough Council,26/10/2012,172488,IN4201,"8,660.73",Matrix Scm Ltd,5367,Executive Director Lec,Agency Staff,3020
http://statistics.data.gov.uk/id/local-authority/47UD,Redditch Borough Council,26/10/2012,172488,IN4201,"5,430.63",Matrix Scm Ltd,5367,Executive Director Lec,Agency Staff,3020
http://statistics.data.gov.uk/id/local-authority/47UD,Redditch Borough Council,26/10/2012,172488,IN4201,415.24,Matrix Scm Ltd,5367,Executive Director Lec,Agency Staff,3020
http://statistics.data.gov.uk/id/local-authority/47UD,Redditch Borough Council,26/10/2012,172488,IN4201,"1,129.08",Matrix Scm Ltd,5367,Executive Director Lec,Agency Staff,3020
http://statistics.data.gov.uk/id/local-authority/47UD,Redditch Borough Council,26/10/2012,172488,IN4201,"1,164.76",Matrix Scm Ltd,5367,Housing Repairs Account,Agency Staff,3020
http://statistics.data.gov.uk/id/local-authority/47UD,Redditch Borough Council,26/10/2012,172488,IN4201,"1,149.55",Matrix Scm Ltd,5367,Housing Revenue Account,Agency Staff,3020
http://statistics.data.gov.uk/id/local-authority/47UD,Redditch Borough Council,26/10/2012,172488,IN4201,663.42,Matrix Scm Ltd,5367,Housing Revenue Account,Agency Staff,3020
http://statistics.data.gov.uk/id/local-authority/47UD,Redditch Borough Council,12/10/2012,171198,2012.50752,"1,105.83",Neopost Finance Limited,5419,Chief Executive,Office Equipment Hire & Rental,4001
http://statistics.data.gov.uk/id/local-authority/47UD,Redditch Borough Council,12/10/2012,171198,2012.50752,305.79,Neopost Finance Limited,5419,Chief Executive,Office Equip Repairs & Maint,4002
http://statistics.data.gov.uk/id/local-authority/47UD,Redditch Borough Council,19/10/2012,169366,7006810611,654.30,Speedy Asset Services Limited,543,Executive Director Lec,Operation Equip- Hire & Rental,4151
http://statistics.data.gov.uk/id/local-authority/47UD,Redditch Borough Council,26/10/2012,168457,00017654,0.00,R & R Bassett Engineering Ltd,5441,Rbc Balance Sheet,Contract Payments,8131
http://statistics.data.gov.uk/id/local-authority/47UD,Redditch Borough Council,26/10/2012,168457,00017654,0.00,R & R Bassett Engineering Ltd,5441,Rbc Balance Sheet,Contract Payments,8131
http://statistics.data.gov.uk/id/local-authority/47UD,Redditch Borough Council,26/10/2012,168457,00017654,0.00,R & R Bassett Engineering Ltd,5441,Rbc Balance Sheet,Contract Payments,8131
http://statistics.data.gov.uk/id/local-authority/47UD,Redditch Borough Council,26/10/2012,168457,00017654,0.00,R & R Bassett Engineering Ltd,5441,Rbc Balance Sheet,Contract Payments,8131
http://statistics.data.gov.uk/id/local-authority/47UD,Redditch Borough Council,26/10/2012,168457,00017654,590.00,R & R Bassett Engineering Ltd,5441,Rbc Balance Sheet,Contract Payments,8131
http://statistics.data.gov.uk/id/local-authority/47UD,Redditch Borough Council,26/10/2012,172188,00017735,0.00,R & R Bassett Engineering Ltd,5441,Rbc Balance Sheet,Contract Payments,8131
http://statistics.data.gov.uk/id/local-authority/47UD,Redditch Borough Council,26/10/2012,172188,00017735,0.00,R & R Bassett Engineering Ltd,5441,Rbc Balance Sheet,Contract Payments,8131
http://statistics.data.gov.uk/id/local-authority/47UD,Redditch Borough Council,26/10/2012,172188,00017735,0.00,R & R Bassett Engineering Ltd,5441,Rbc Balance Sheet,Contract Payments,8131
http://statistics.data.gov.uk/id/local-authority/47UD,Redditch Borough Council,26/10/2012,172188,00017735,0.00,R & R Bassett Engineering Ltd,5441,Rbc Balance Sheet,Contract Payments,8131
http://statistics.data.gov.uk/id/local-authority/47UD,Redditch Borough Council,26/10/2012,172188,00017735,"1,202.00",R & R Bassett Engineering Ltd,5441,Rbc Balance Sheet,Contract Payments,8131
http://statistics.data.gov.uk/id/local-authority/47UD,Redditch Borough Council,26/10/2012,172188,00017735,0.00,R & R Bassett Engineering Ltd,5441,Rbc Balance Sheet,Contract Payments,8131
http://statistics.data.gov.uk/id/local-authority/47UD,Redditch Borough Council,26/10/2012,172189,00017737,0.00,R & R Bassett Engineering Ltd,5441,Rbc Balance Sheet,Contract Payments,8131
http://statistics.data.gov.uk/id/local-authority/47UD,Redditch Borough Council,26/10/2012,172189,00017737,0.00,R & R Bassett Engineering Ltd,5441,Rbc Balance Sheet,Contract Payments,8131
http://statistics.data.gov.uk/id/local-authority/47UD,Redditch Borough Council,26/10/2012,172189,00017737,0.00,R & R Bassett Engineering Ltd,5441,Rbc Balance Sheet,Contract Payments,8131
http://statistics.data.gov.uk/id/local-authority/47UD,Redditch Borough Council,26/10/2012,172189,00017737,0.00,R & R Bassett Engineering Ltd,5441,Rbc Balance Sheet,Contract Payments,8131
http://statistics.data.gov.uk/id/local-authority/47UD,Redditch Borough Council,26/10/2012,172189,00017737,"1,396.00",R & R Bassett Engineering Ltd,5441,Rbc Balance Sheet,Contract Payments,8131
http://statistics.data.gov.uk/id/local-authority/47UD,Redditch Borough Council,26/10/2012,172189,00017737,0.00,R & R Bassett Engineering Ltd,5441,Rbc Balance Sheet,Contract Payments,8131
http://statistics.data.gov.uk/id/local-authority/47UD,Redditch Borough Council,26/10/2012,172190,00017738,0.00,R & R Bassett Engineering Ltd,5441,Rbc Balance Sheet,Contract Payments,8131
http://statistics.data.gov.uk/id/local-authority/47UD,Redditch Borough Council,26/10/2012,172190,00017738,0.00,R & R Bassett Engineering Ltd,5441,Rbc Balance Sheet,Contract Payments,8131
http://statistics.data.gov.uk/id/local-authority/47UD,Redditch Borough Council,26/10/2012,172190,00017738,0.00,R & R Bassett Engineering Ltd,5441,Rbc Balance Sheet,Contract Payments,8131
http://statistics.data.gov.uk/id/local-authority/47UD,Redditch Borough Council,26/10/2012,172190,00017738,0.00,R & R Bassett Engineering Ltd,5441,Rbc Balance Sheet,Contract Payments,8131
http://statistics.data.gov.uk/id/local-authority/47UD,Redditch Borough Council,26/10/2012,172190,00017738,423.00,R & R Bassett Engineering Ltd,5441,Rbc Balance Sheet,Contract Payments,8131
http://statistics.data.gov.uk/id/local-authority/47UD,Redditch Borough Council,26/10/2012,172190,00017738,0.00,R & R Bassett Engineering Ltd,5441,Rbc Balance Sheet,Contract Payments,8131
http://statistics.data.gov.uk/id/local-authority/47UD,Redditch Borough Council,26/10/2012,172192,00017740,0.00,R & R Bassett Engineering Ltd,5441,Rbc Balance Sheet,Contract Payments,8131
http://statistics.data.gov.uk/id/local-authority/47UD,Redditch Borough Council,26/10/2012,172192,00017740,0.00,R & R Bassett Engineering Ltd,5441,Rbc Balance Sheet,Contract Payments,8131
http://statistics.data.gov.uk/id/local-authority/47UD,Redditch Borough Council,26/10/2012,172192,00017740,0.00,R & R Bassett Engineering Ltd,5441,Rbc Balance Sheet,Contract Payments,8131
http://statistics.data.gov.uk/id/local-authority/47UD,Redditch Borough Council,26/10/2012,172192,00017740,0.00,R & R Bassett Engineering Ltd,5441,Rbc Balance Sheet,Contract Payments,8131
http://statistics.data.gov.uk/id/local-authority/47UD,Redditch Borough Council,26/10/2012,172192,00017740,698.00,R & R Bassett Engineering Ltd,5441,Rbc Balance Sheet,Contract Payments,8131
http://statistics.data.gov.uk/id/local-authority/47UD,Redditch Borough Council,26/10/2012,172192,00017740,0.00,R & R Bassett Engineering Ltd,5441,Rbc Balance Sheet,Contract Payments,8131
http://statistics.data.gov.uk/id/local-authority/47UD,Redditch Borough Council,12/10/2012,171605,4646,"1,950.00",Maid Marions,5543,Housing Revenue Account,Contract Cleaning,3600
http://statistics.data.gov.uk/id/local-authority/47UD,Redditch Borough Council,12/10/2012,171605,4646,877.50,Maid Marions,5543,Housing Revenue Account,Caretaking,3603
http://statistics.data.gov.uk/id/local-authority/47UD,Redditch Borough Council,12/10/2012,171605,4646,975.00,Maid Marions,5543,Housing Revenue Account,Contract Cleaning,3600
http://statistics.data.gov.uk/id/local-authority/47UD,Redditch Borough Council,12/10/2012,171702,3RD QTR 2012/13,"2,000.00",Carers Careline,5549,Executive Director Lec,Grants To Voluntary Bodies,4661
http://statistics.data.gov.uk/id/local-authority/47UD,Redditch Borough Council,19/10/2012,172226,118549,500.00,Pete Burton,556,Executive Director Lec,Project Work,4733
http://statistics.data.gov.uk/id/local-authority/47UD,Redditch Borough Council,26/10/2012,171764,SL01418842INV,472.00,Northgate Vehicle Hire Ltd,5573,Executive Director Lec,Contract Hire,3850
http://statistics.data.gov.uk/id/local-authority/47UD,Redditch Borough Council,26/10/2012,171765,SL01418843INV,472.00,Northgate Vehicle Hire Ltd,5573,Executive Director Lec,Contract Hire,3850
http://statistics.data.gov.uk/id/local-authority/47UD,Redditch Borough Council,26/10/2012,171766,SL01418841INV,472.00,Northgate Vehicle Hire Ltd,5573,Executive Director Lec,Contract Hire,3850
http://statistics.data.gov.uk/id/local-authority/47UD,Redditch Borough Council,26/10/2012,171767,SL01418840INV,472.00,Northgate Vehicle Hire Ltd,5573,Executive Director Lec,Contract Hire,3850
http://statistics.data.gov.uk/id/local-authority/47UD,Redditch Borough Council,26/10/2012,172721,SL01369096INV,620.00,Northgate Vehicle Hire Ltd,5573,Executive Director Lec,Contract Hire,3850
http://statistics.data.gov.uk/id/local-authority/47UD,Redditch Borough Council,26/10/2012,172722,SL01369097INV,542.80,Northgate Vehicle Hire Ltd,5573,Executive Director Lec,Contract Hire,3850
http://statistics.data.gov.uk/id/local-authority/47UD,Redditch Borough Council,26/10/2012,172723,SL01369095INV,542.80,Northgate Vehicle Hire Ltd,5573,Executive Director Lec,Contract Hire,3850
http://statistics.data.gov.uk/id/local-authority/47UD,Redditch Borough Council,26/10/2012,172725,SL01369094INV,542.80,Northgate Vehicle Hire Ltd,5573,Executive Director Lec,Contract Hire,3850
http://statistics.data.gov.uk/id/local-authority/47UD,Redditch Borough Council,05/10/2012,170751,8661,"2,068.00",Pauls Electrical Services Ltd,559,Rbc Balance Sheet,Contract Payments,8131
http://statistics.data.gov.uk/id/local-authority/47UD,Redditch Borough Council,05/10/2012,170752,8662,"2,068.00",Pauls Electrical Services Ltd,559,Rbc Balance Sheet,Contract Payments,8131
http://statistics.data.gov.uk/id/local-authority/47UD,Redditch Borough Council,05/10/2012,170753,8663,"2,068.00",Pauls Electrical Services Ltd,559,Rbc Balance Sheet,Contract Payments,8131
http://statistics.data.gov.uk/id/local-authority/47UD,Redditch Borough Council,12/10/2012,171136,8665,"2,068.00",Pauls Electrical Services Ltd,559,Rbc Balance Sheet,Contract Payments,8131
http://statistics.data.gov.uk/id/local-authority/47UD,Redditch Borough Council,12/10/2012,171137,8666,"2,068.00",Pauls Electrical Services Ltd,559,Rbc Balance Sheet,Contract Payments,8131
http://statistics.data.gov.uk/id/local-authority/47UD,Redditch Borough Council,12/10/2012,171138,8664,"2,068.00",Pauls Electrical Services Ltd,559,Rbc Balance Sheet,Contract Payments,8131
http://statistics.data.gov.uk/id/local-authority/47UD,Redditch Borough Council,12/10/2012,171161,8700,"4,291.00",Pauls Electrical Services Ltd,559,Housing Repairs Account,Contractors,5158
http://statistics.data.gov.uk/id/local-authority/47UD,Redditch Borough Council,12/10/2012,171162,8701,662.92,Pauls Electrical Services Ltd,559,Housing Repairs Account,Contractors,5158
http://statistics.data.gov.uk/id/local-authority/47UD,Redditch Borough Council,12/10/2012,171163,8702,"3,094.00",Pauls Electrical Services Ltd,559,Housing Repairs Account,Contractors,5158
http://statistics.data.gov.uk/id/local-authority/47UD,Redditch Borough Council,12/10/2012,171164,8699,"3,267.00",Pauls Electrical Services Ltd,559,Rbc Balance Sheet,Contract Payments,8131
http://statistics.data.gov.uk/id/local-authority/47UD,Redditch Borough Council,12/10/2012,171165,8668,"2,068.00",Pauls Electrical Services Ltd,559,Rbc Balance Sheet,Contract Payments,8131
http://statistics.data.gov.uk/id/local-authority/47UD,Redditch Borough Council,12/10/2012,171166,8667,"2,068.00",Pauls Electrical Services Ltd,559,Rbc Balance Sheet,Contract Payments,8131
http://statistics.data.gov.uk/id/local-authority/47UD,Redditch Borough Council,12/10/2012,171167,8669,"2,068.00",Pauls Electrical Services Ltd,559,Rbc Balance Sheet,Contract Payments,8131
http://statistics.data.gov.uk/id/local-authority/47UD,Redditch Borough Council,26/10/2012,171265,8655,"1,520.40",Pauls Electrical Services Ltd,559,Housing Repairs Account,Contractors,5158
http://statistics.data.gov.uk/id/local-authority/47UD,Redditch Borough Council,26/10/2012,171266,8658,"2,054.20",Pauls Electrical Services Ltd,559,Housing Repairs Account,Repairs In House Team,3107
http://statistics.data.gov.uk/id/local-authority/47UD,Redditch Borough Council,26/10/2012,171267,8653,990.83,Pauls Electrical Services Ltd,559,Housing Repairs Account,Repairs In House Team,3107
http://statistics.data.gov.uk/id/local-authority/47UD,Redditch Borough Council,19/10/2012,171268,8654,"1,587.85",Pauls Electrical Services Ltd,559,Housing Repairs Account,Contractors,5158
http://statistics.data.gov.uk/id/local-authority/47UD,Redditch Borough Council,19/10/2012,171269,8657,"3,780.26",Pauls Electrical Services Ltd,559,Housing Repairs Account,Contractors,5158
http://statistics.data.gov.uk/id/local-authority/47UD,Redditch Borough Council,26/10/2012,171961,8792,808.90,Pauls Electrical Services Ltd,559,Rbc Balance Sheet,Contract Payments,8131
http://statistics.data.gov.uk/id/local-authority/47UD,Redditch Borough Council,26/10/2012,172049,8825,"1,981.03",Pauls Electrical Services Ltd,559,Rbc Balance Sheet,Contract Payments,8131
http://statistics.data.gov.uk/id/local-authority/47UD,Redditch Borough Council,26/10/2012,172051,8824,"2,225.01",Pauls Electrical Services Ltd,559,Rbc Balance Sheet,Contract Payments,8131
http://statistics.data.gov.uk/id/local-authority/47UD,Redditch Borough Council,26/10/2012,172053,8827,"2,051.48",Pauls Electrical Services Ltd,559,Rbc Balance Sheet,Contract Payments,8131
http://statistics.data.gov.uk/id/local-authority/47UD,Redditch Borough Council,12/10/2012,171440,18698,470.88,Groundsman,5596,Crossgate Stocks,Stock Variance,1201
http://statistics.data.gov.uk/id/local-authority/47UD,Redditch Borough Council,26/10/2012,172161,3417/01013107,640.02,Gibbs & Dandy Timber,5603,Crossgate Stocks,Stock Variance,1201
http://statistics.data.gov.uk/id/local-authority/47UD,Redditch Borough Council,12/10/2012,171444,8287571,"4,110.69",Pace Fuelcare Limited,564,Crossgate Stocks,Stock Variance,1201
http://statistics.data.gov.uk/id/local-authority/47UD,Redditch Borough Council,26/10/2012,172765,DFG/8936,-177.50,Candor Care Ltd,5642,Executive Director Lec,Administration Fee,6364
http://statistics.data.gov.uk/id/local-authority/47UD,Redditch Borough Council,26/10/2012,172765,DFG/8936,"1,912.50",Candor Care Ltd,5642,Rbc Balance Sheet,Disabled Facilities Grant,8701
http://statistics.data.gov.uk/id/local-authority/47UD,Redditch Borough Council,19/10/2012,172306,UN0920789,0.00,Gamma Business Communications Ltd,5650,Executive Director Lec,Telephone Calls,4452
http://statistics.data.gov.uk/id/local-authority/47UD,Redditch Borough Council,19/10/2012,172306,UN0920789,10.70,Gamma Business Communications Ltd,5650,Executive Director Lec,Telephone Rental,4451
http://statistics.data.gov.uk/id/local-authority/47UD,Redditch Borough Council,19/10/2012,172306,UN0920789,0.00,Gamma Business Communications Ltd,5650,Housing Revenue Account,Telephone Calls,4452
http://statistics.data.gov.uk/id/local-authority/47UD,Redditch Borough Council,19/10/2012,172306,UN0920789,10.70,Gamma Business Communications Ltd,5650,Housing Revenue Account,Telephone Rental,4451
http://statistics.data.gov.uk/id/local-authority/47UD,Redditch Borough Council,19/10/2012,172306,UN0920789,6.06,Gamma Business Communications Ltd,5650,Housing Revenue Account,Telephone Calls,4452
http://statistics.data.gov.uk/id/local-authority/47UD,Redditch Borough Council,19/10/2012,172306,UN0920789,10.70,Gamma Business Communications Ltd,5650,Housing Revenue Account,Telephone Rental,4451
http://statistics.data.gov.uk/id/local-authority/47UD,Redditch Borough Council,19/10/2012,172306,UN0920789,7.19,Gamma Business Communications Ltd,5650,Housing Revenue Account,Telephone Calls,4452
http://statistics.data.gov.uk/id/local-authority/47UD,Redditch Borough Council,19/10/2012,172306,UN0920789,10.70,Gamma Business Communications Ltd,5650,Housing Revenue Account,Telephone Rental,4451
http://statistics.data.gov.uk/id/local-authority/47UD,Redditch Borough Council,19/10/2012,172306,UN0920789,7.41,Gamma Business Communications Ltd,5650,Executive Director Lec,Telephone Calls,4452
http://statistics.data.gov.uk/id/local-authority/47UD,Redditch Borough Council,19/10/2012,172306,UN0920789,20.22,Gamma Business Communications Ltd,5650,Executive Director Lec,Telephone Rental,4451
http://statistics.data.gov.uk/id/local-authority/47UD,Redditch Borough Council,19/10/2012,172306,UN0920789,10.23,Gamma Business Communications Ltd,5650,Exec. Director Prrh,Telephone Calls,4452
http://statistics.data.gov.uk/id/local-authority/47UD,Redditch Borough Council,19/10/2012,172306,UN0920789,20.22,Gamma Business Communications Ltd,5650,Exec. Director Prrh,Telephone Rental,4451
http://statistics.data.gov.uk/id/local-authority/47UD,Redditch Borough Council,19/10/2012,172306,UN0920789,2.64,Gamma Business Communications Ltd,5650,Executive Director Lec,Telephone Calls,4452
http://statistics.data.gov.uk/id/local-authority/47UD,Redditch Borough Council,19/10/2012,172306,UN0920789,10.70,Gamma Business Communications Ltd,5650,Executive Director Lec,Telephone Rental,4451
http://statistics.data.gov.uk/id/local-authority/47UD,Redditch Borough Council,19/10/2012,172306,UN0920789,0.00,Gamma Business Communications Ltd,5650,Chief Executive,Telephone Calls,4452
http://statistics.data.gov.uk/id/local-authority/47UD,Redditch Borough Council,19/10/2012,172306,UN0920789,24.30,Gamma Business Communications Ltd,5650,Chief Executive,Telephone Rental,4451
http://statistics.data.gov.uk/id/local-authority/47UD,Redditch Borough Council,19/10/2012,172306,UN0920789,0.04,Gamma Business Communications Ltd,5650,Executive Director Lec,Telephone Calls,4452
http://statistics.data.gov.uk/id/local-authority/47UD,Redditch Borough Council,19/10/2012,172306,UN0920789,14.00,Gamma Business Communications Ltd,5650,Executive Director Lec,Telephone Rental,4451
http://statistics.data.gov.uk/id/local-authority/47UD,Redditch Borough Council,19/10/2012,172306,UN0920789,0.00,Gamma Business Communications Ltd,5650,Exec. Director Fin. & Resource,Telephone Calls,4452
http://statistics.data.gov.uk/id/local-authority/47UD,Redditch Borough Council,19/10/2012,172306,UN0920789,10.70,Gamma Business Communications Ltd,5650,Exec. Director Fin. & Resource,Telephone Rental,4451
http://statistics.data.gov.uk/id/local-authority/47UD,Redditch Borough Council,19/10/2012,172306,UN0920789,0.00,Gamma Business Communications Ltd,5650,Executive Director Lec,Telephone Calls,4452
http://statistics.data.gov.uk/id/local-authority/47UD,Redditch Borough Council,19/10/2012,172306,UN0920789,10.70,Gamma Business Communications Ltd,5650,Executive Director Lec,Telephone Rental,4451
http://statistics.data.gov.uk/id/local-authority/47UD,Redditch Borough Council,19/10/2012,172306,UN0920789,0.01,Gamma Business Communications Ltd,5650,Executive Director Lec,Telephone Calls,4452
http://statistics.data.gov.uk/id/local-authority/47UD,Redditch Borough Council,19/10/2012,172306,UN0920789,10.70,Gamma Business Communications Ltd,5650,Executive Director Lec,Telephone Rental,4451
http://statistics.data.gov.uk/id/local-authority/47UD,Redditch Borough Council,19/10/2012,172306,UN0920789,0.00,Gamma Business Communications Ltd,5650,Executive Director Lec,Telephone Calls,4452
http://statistics.data.gov.uk/id/local-authority/47UD,Redditch Borough Council,19/10/2012,172306,UN0920789,10.70,Gamma Business Communications Ltd,5650,Executive Director Lec,Telephone Rental,4451
http://statistics.data.gov.uk/id/local-authority/47UD,Redditch Borough Council,19/10/2012,172306,UN0920789,0.00,Gamma Business Communications Ltd,5650,Executive Director Lec,Telephone Calls,4452
http://statistics.data.gov.uk/id/local-authority/47UD,Redditch Borough Council,19/10/2012,172306,UN0920789,10.70,Gamma Business Communications Ltd,5650,Executive Director Lec,Telephone Rental,4451
http://statistics.data.gov.uk/id/local-authority/47UD,Redditch Borough Council,19/10/2012,172306,UN0920789,0.07,Gamma Business Communications Ltd,5650,Executive Director Lec,Telephone Calls,4452
http://statistics.data.gov.uk/id/local-authority/47UD,Redditch Borough Council,19/10/2012,172306,UN0920789,10.70,Gamma Business Communications Ltd,5650,Executive Director Lec,Telephone Rental,4451
http://statistics.data.gov.uk/id/local-authority/47UD,Redditch Borough Council,19/10/2012,172306,UN0920789,0.00,Gamma Business Communications Ltd,5650,Executive Director Lec,Telephone Calls,4452
http://statistics.data.gov.uk/id/local-authority/47UD,Redditch Borough Council,19/10/2012,172306,UN0920789,10.70,Gamma Business Communications Ltd,5650,Executive Director Lec,Telephone Rental,4451
http://statistics.data.gov.uk/id/local-authority/47UD,Redditch Borough Council,19/10/2012,172306,UN0920789,0.26,Gamma Business Communications Ltd,5650,Exec. Director Fin. & Resource,Telephone Calls,4452
http://statistics.data.gov.uk/id/local-authority/47UD,Redditch Borough Council,19/10/2012,172306,UN0920789,10.70,Gamma Business Communications Ltd,5650,Exec. Director Fin. & Resource,Telephone Rental,4451
http://statistics.data.gov.uk/id/local-authority/47UD,Redditch Borough Council,19/10/2012,172306,UN0920789,0.00,Gamma Business Communications Ltd,5650,Housing Repairs Account,Telephone Calls,4452
http://statistics.data.gov.uk/id/local-authority/47UD,Redditch Borough Council,19/10/2012,172306,UN0920789,10.70,Gamma Business Communications Ltd,5650,Housing Repairs Account,Telephone Rental,4451
http://statistics.data.gov.uk/id/local-authority/47UD,Redditch Borough Council,19/10/2012,172306,UN0920789,0.00,Gamma Business Communications Ltd,5650,Exec. Director Fin. & Resource,Telephone Calls,4452
http://statistics.data.gov.uk/id/local-authority/47UD,Redditch Borough Council,19/10/2012,172306,UN0920789,10.70,Gamma Business Communications Ltd,5650,Exec. Director Fin. & Resource,Telephone Rental,4451
http://statistics.data.gov.uk/id/local-authority/47UD,Redditch Borough Council,19/10/2012,172306,UN0920789,0.06,Gamma Business Communications Ltd,5650,Housing Revenue Account,Telephone Calls,4452
http://statistics.data.gov.uk/id/local-authority/47UD,Redditch Borough Council,19/10/2012,172306,UN0920789,10.70,Gamma Business Communications Ltd,5650,Housing Revenue Account,Telephone Rental,4451
http://statistics.data.gov.uk/id/local-authority/47UD,Redditch Borough Council,19/10/2012,172306,UN0920789,0.00,Gamma Business Communications Ltd,5650,Chief Executive,Telephone Calls,4452
http://statistics.data.gov.uk/id/local-authority/47UD,Redditch Borough Council,19/10/2012,172306,UN0920789,10.70,Gamma Business Communications Ltd,5650,Chief Executive,Telephone Rental,4451
http://statistics.data.gov.uk/id/local-authority/47UD,Redditch Borough Council,19/10/2012,172306,UN0920789,0.00,Gamma Business Communications Ltd,5650,Chief Executive,Telephone Calls,4452
http://statistics.data.gov.uk/id/local-authority/47UD,Redditch Borough Council,19/10/2012,172306,UN0920789,10.70,Gamma Business Communications Ltd,5650,Chief Executive,Telephone Rental,4451
http://statistics.data.gov.uk/id/local-authority/47UD,Redditch Borough Council,19/10/2012,172306,UN0920789,0.00,Gamma Business Communications Ltd,5650,Executive Director Lec,Telephone Calls,4452
http://statistics.data.gov.uk/id/local-authority/47UD,Redditch Borough Council,19/10/2012,172306,UN0920789,10.70,Gamma Business Communications Ltd,5650,Executive Director Lec,Telephone Rental,4451
http://statistics.data.gov.uk/id/local-authority/47UD,Redditch Borough Council,19/10/2012,172306,UN0920789,10.09,Gamma Business Communications Ltd,5650,Exec. Director Prrh,Telephone Calls,4452
http://statistics.data.gov.uk/id/local-authority/47UD,Redditch Borough Council,19/10/2012,172306,UN0920789,34.22,Gamma Business Communications Ltd,5650,Exec. Director Prrh,Telephone Rental,4451
http://statistics.data.gov.uk/id/local-authority/47UD,Redditch Borough Council,19/10/2012,172306,UN0920789,7.92,Gamma Business Communications Ltd,5650,Surestart Project,Telephone Calls,4452
http://statistics.data.gov.uk/id/local-authority/47UD,Redditch Borough Council,19/10/2012,172306,UN0920789,10.70,Gamma Business Communications Ltd,5650,Surestart Project,Telephone Rental,4451
http://statistics.data.gov.uk/id/local-authority/47UD,Redditch Borough Council,19/10/2012,172306,UN0920789,0.02,Gamma Business Communications Ltd,5650,Executive Director Lec,Telephone Calls,4452
http://statistics.data.gov.uk/id/local-authority/47UD,Redditch Borough Council,19/10/2012,172306,UN0920789,10.70,Gamma Business Communications Ltd,5650,Executive Director Lec,Telephone Rental,4451
http://statistics.data.gov.uk/id/local-authority/47UD,Redditch Borough Council,19/10/2012,172306,UN0920789,0.62,Gamma Business Communications Ltd,5650,Exec. Director Prrh,Telephone Calls,4452
http://statistics.data.gov.uk/id/local-authority/47UD,Redditch Borough Council,19/10/2012,172306,UN0920789,10.70,Gamma Business Communications Ltd,5650,Exec. Director Prrh,Telephone Rental,4451
http://statistics.data.gov.uk/id/local-authority/47UD,Redditch Borough Council,19/10/2012,172306,UN0920789,0.00,Gamma Business Communications Ltd,5650,Executive Director Lec,Telephone Calls,4452
http://statistics.data.gov.uk/id/local-authority/47UD,Redditch Borough Council,19/10/2012,172306,UN0920789,10.70,Gamma Business Communications Ltd,5650,Executive Director Lec,Telephone Rental,4451
http://statistics.data.gov.uk/id/local-authority/47UD,Redditch Borough Council,19/10/2012,172306,UN0920789,0.18,Gamma Business Communications Ltd,5650,Executive Director Lec,Telephone Calls,4452
http://statistics.data.gov.uk/id/local-authority/47UD,Redditch Borough Council,19/10/2012,172306,UN0920789,14.00,Gamma Business Communications Ltd,5650,Executive Director Lec,Telephone Rental,4451
http://statistics.data.gov.uk/id/local-authority/47UD,Redditch Borough Council,19/10/2012,172306,UN0920789,1.62,Gamma Business Communications Ltd,5650,Surestart Project,Telephone Calls,4452
http://statistics.data.gov.uk/id/local-authority/47UD,Redditch Borough Council,19/10/2012,172306,UN0920789,21.40,Gamma Business Communications Ltd,5650,Surestart Project,Telephone Rental,4451
http://statistics.data.gov.uk/id/local-authority/47UD,Redditch Borough Council,19/10/2012,172306,UN0920789,17.04,Gamma Business Communications Ltd,5650,Surestart Project,Telephone Calls,4452
http://statistics.data.gov.uk/id/local-authority/47UD,Redditch Borough Council,19/10/2012,172306,UN0920789,10.70,Gamma Business Communications Ltd,5650,Surestart Project,Telephone Rental,4451
http://statistics.data.gov.uk/id/local-authority/47UD,Redditch Borough Council,19/10/2012,172306,UN0920789,0.52,Gamma Business Communications Ltd,5650,Executive Director Lec,Telephone Calls,4452
http://statistics.data.gov.uk/id/local-authority/47UD,Redditch Borough Council,19/10/2012,172306,UN0920789,14.00,Gamma Business Communications Ltd,5650,Executive Director Lec,Telephone Rental,4451
http://statistics.data.gov.uk/id/local-authority/47UD,Redditch Borough Council,19/10/2012,172306,UN0920789,0.02,Gamma Business Communications Ltd,5650,Executive Director Lec,Telephone Calls,4452
http://statistics.data.gov.uk/id/local-authority/47UD,Redditch Borough Council,19/10/2012,172306,UN0920789,10.70,Gamma Business Communications Ltd,5650,Executive Director Lec,Telephone Rental,4451
http://statistics.data.gov.uk/id/local-authority/47UD,Redditch Borough Council,19/10/2012,172306,UN0920789,0.71,Gamma Business Communications Ltd,5650,Surestart Project,Telephone Calls,4452
http://statistics.data.gov.uk/id/local-authority/47UD,Redditch Borough Council,19/10/2012,172306,UN0920789,10.70,Gamma Business Communications Ltd,5650,Surestart Project,Telephone Rental,4451
http://statistics.data.gov.uk/id/local-authority/47UD,Redditch Borough Council,19/10/2012,172306,UN0920789,0.45,Gamma Business Communications Ltd,5650,Executive Director Lec,Telephone Calls,4452
http://statistics.data.gov.uk/id/local-authority/47UD,Redditch Borough Council,19/10/2012,172306,UN0920789,14.00,Gamma Business Communications Ltd,5650,Executive Director Lec,Telephone Rental,4451
http://statistics.data.gov.uk/id/local-authority/47UD,Redditch Borough Council,19/10/2012,172306,UN0920789,0.90,Gamma Business Communications Ltd,5650,Executive Director Lec,Telephone Calls,4452
http://statistics.data.gov.uk/id/local-authority/47UD,Redditch Borough Council,19/10/2012,172306,UN0920789,14.00,Gamma Business Communications Ltd,5650,Executive Director Lec,Telephone Rental,4451
http://statistics.data.gov.uk/id/local-authority/47UD,Redditch Borough Council,19/10/2012,172306,UN0920789,0.00,Gamma Business Communications Ltd,5650,Exec. Director Fin. & Resource,Telephone Calls,4452
http://statistics.data.gov.uk/id/local-authority/47UD,Redditch Borough Council,19/10/2012,172306,UN0920789,10.70,Gamma Business Communications Ltd,5650,Exec. Director Fin. & Resource,Telephone Rental,4451
http://statistics.data.gov.uk/id/local-authority/47UD,Redditch Borough Council,19/10/2012,172306,UN0920789,0.00,Gamma Business Communications Ltd,5650,Executive Director Lec,Telephone Calls,4452
http://statistics.data.gov.uk/id/local-authority/47UD,Redditch Borough Council,19/10/2012,172306,UN0920789,0.00,Gamma Business Communications Ltd,5650,Executive Director Lec,Telephone Rental,4451
http://statistics.data.gov.uk/id/local-authority/47UD,Redditch Borough Council,19/10/2012,172306,UN0920789,0.02,Gamma Business Communications Ltd,5650,Executive Director Lec,Telephone Calls,4452
http://statistics.data.gov.uk/id/local-authority/47UD,Redditch Borough Council,19/10/2012,172306,UN0920789,14.00,Gamma Business Communications Ltd,5650,Executive Director Lec,Telephone Rental,4451
http://statistics.data.gov.uk/id/local-authority/47UD,Redditch Borough Council,19/10/2012,172306,UN0920789,0.50,Gamma Business Communications Ltd,5650,Executive Director Lec,Telephone Calls,4452
http://statistics.data.gov.uk/id/local-authority/47UD,Redditch Borough Council,19/10/2012,172306,UN0920789,14.00,Gamma Business Communications Ltd,5650,Executive Director Lec,Telephone Rental,4451
http://statistics.data.gov.uk/id/local-authority/47UD,Redditch Borough Council,19/10/2012,172306,UN0920789,1.03,Gamma Business Communications Ltd,5650,Executive Director Lec,Telephone Calls,4452
http://statistics.data.gov.uk/id/local-authority/47UD,Redditch Borough Council,19/10/2012,172306,UN0920789,14.00,Gamma Business Communications Ltd,5650,Executive Director Lec,Telephone Rental,4451
http://statistics.data.gov.uk/id/local-authority/47UD,Redditch Borough Council,19/10/2012,172306,UN0920789,0.10,Gamma Business Communications Ltd,5650,Executive Director Lec,Telephone Calls,4452
http://statistics.data.gov.uk/id/local-authority/47UD,Redditch Borough Council,19/10/2012,172306,UN0920789,14.00,Gamma Business Communications Ltd,5650,Executive Director Lec,Telephone Rental,4451
http://statistics.data.gov.uk/id/local-authority/47UD,Redditch Borough Council,19/10/2012,172306,UN0920789,0.00,Gamma Business Communications Ltd,5650,Exec. Director Prrh,Telephone Calls,4452
http://statistics.data.gov.uk/id/local-authority/47UD,Redditch Borough Council,19/10/2012,172306,UN0920789,10.70,Gamma Business Communications Ltd,5650,Exec. Director Prrh,Telephone Rental,4451
http://statistics.data.gov.uk/id/local-authority/47UD,Redditch Borough Council,19/10/2012,172306,UN0920789,0.00,Gamma Business Communications Ltd,5650,Executive Director Lec,Telephone Calls,4452
http://statistics.data.gov.uk/id/local-authority/47UD,Redditch Borough Council,19/10/2012,172306,UN0920789,10.70,Gamma Business Communications Ltd,5650,Executive Director Lec,Telephone Rental,4451
http://statistics.data.gov.uk/id/local-authority/47UD,Redditch Borough Council,19/10/2012,172306,UN0920789,0.89,Gamma Business Communications Ltd,5650,Housing Revenue Account,Telephone Calls,4452
http://statistics.data.gov.uk/id/local-authority/47UD,Redditch Borough Council,19/10/2012,172306,UN0920789,10.70,Gamma Business Communications Ltd,5650,Housing Revenue Account,Telephone Rental,4451
http://statistics.data.gov.uk/id/local-authority/47UD,Redditch Borough Council,19/10/2012,172306,UN0920789,7.43,Gamma Business Communications Ltd,5650,Executive Director Lec,Telephone Calls,4452
http://statistics.data.gov.uk/id/local-authority/47UD,Redditch Borough Council,19/10/2012,172306,UN0920789,10.70,Gamma Business Communications Ltd,5650,Executive Director Lec,Telephone Rental,4451
http://statistics.data.gov.uk/id/local-authority/47UD,Redditch Borough Council,19/10/2012,172306,UN0920789,0.36,Gamma Business Communications Ltd,5650,Exec. Director Prrh,Telephone Calls,4452
http://statistics.data.gov.uk/id/local-authority/47UD,Redditch Borough Council,19/10/2012,172306,UN0920789,10.70,Gamma Business Communications Ltd,5650,Exec. Director Prrh,Telephone Rental,4451
http://statistics.data.gov.uk/id/local-authority/47UD,Redditch Borough Council,19/10/2012,172306,UN0920789,0.00,Gamma Business Communications Ltd,5650,Exec. Director Fin. & Resource,Telephone Calls,4452
http://statistics.data.gov.uk/id/local-authority/47UD,Redditch Borough Council,19/10/2012,172306,UN0920789,10.70,Gamma Business Communications Ltd,5650,Exec. Director Fin. & Resource,Telephone Rental,4451
http://statistics.data.gov.uk/id/local-authority/47UD,Redditch Borough Council,19/10/2012,172306,UN0920789,0.00,Gamma Business Communications Ltd,5650,Exec. Director Prrh,Telephone Calls,4452
http://statistics.data.gov.uk/id/local-authority/47UD,Redditch Borough Council,19/10/2012,172306,UN0920789,10.70,Gamma Business Communications Ltd,5650,Exec. Director Prrh,Telephone Rental,4451
http://statistics.data.gov.uk/id/local-authority/47UD,Redditch Borough Council,19/10/2012,172306,UN0920789,0.00,Gamma Business Communications Ltd,5650,Chief Executive,Telephone Calls,4452
http://statistics.data.gov.uk/id/local-authority/47UD,Redditch Borough Council,19/10/2012,172306,UN0920789,10.70,Gamma Business Communications Ltd,5650,Chief Executive,Telephone Rental,4451
http://statistics.data.gov.uk/id/local-authority/47UD,Redditch Borough Council,19/10/2012,172306,UN0920789,0.76,Gamma Business Communications Ltd,5650,Executive Director Lec,Telephone Calls,4452
http://statistics.data.gov.uk/id/local-authority/47UD,Redditch Borough Council,19/10/2012,172306,UN0920789,14.00,Gamma Business Communications Ltd,5650,Executive Director Lec,Telephone Rental,4451
http://statistics.data.gov.uk/id/local-authority/47UD,Redditch Borough Council,19/10/2012,172306,UN0920789,0.31,Gamma Business Communications Ltd,5650,Executive Director Lec,Telephone Calls,4452
http://statistics.data.gov.uk/id/local-authority/47UD,Redditch Borough Council,19/10/2012,172306,UN0920789,14.00,Gamma Business Communications Ltd,5650,Executive Director Lec,Telephone Rental,4451
http://statistics.data.gov.uk/id/local-authority/47UD,Redditch Borough Council,19/10/2012,172306,UN0920789,1.54,Gamma Business Communications Ltd,5650,Executive Director Lec,Telephone Calls,4452
http://statistics.data.gov.uk/id/local-authority/47UD,Redditch Borough Council,19/10/2012,172306,UN0920789,14.00,Gamma Business Communications Ltd,5650,Executive Director Lec,Telephone Rental,4451
http://statistics.data.gov.uk/id/local-authority/47UD,Redditch Borough Council,19/10/2012,172306,UN0920789,0.07,Gamma Business Communications Ltd,5650,Executive Director Lec,Telephone Calls,4452
http://statistics.data.gov.uk/id/local-authority/47UD,Redditch Borough Council,19/10/2012,172306,UN0920789,14.00,Gamma Business Communications Ltd,5650,Executive Director Lec,Telephone Rental,4451
http://statistics.data.gov.uk/id/local-authority/47UD,Redditch Borough Council,19/10/2012,172306,UN0920789,0.08,Gamma Business Communications Ltd,5650,Executive Director Lec,Telephone Calls,4452
http://statistics.data.gov.uk/id/local-authority/47UD,Redditch Borough Council,19/10/2012,172306,UN0920789,14.00,Gamma Business Communications Ltd,5650,Executive Director Lec,Telephone Rental,4451
http://statistics.data.gov.uk/id/local-authority/47UD,Redditch Borough Council,19/10/2012,172306,UN0920789,0.00,Gamma Business Communications Ltd,5650,Executive Director Lec,Telephone Calls,4452
http://statistics.data.gov.uk/id/local-authority/47UD,Redditch Borough Council,19/10/2012,172306,UN0920789,10.70,Gamma Business Communications Ltd,5650,Executive Director Lec,Telephone Rental,4451
http://statistics.data.gov.uk/id/local-authority/47UD,Redditch Borough Council,19/10/2012,172306,UN0920789,0.00,Gamma Business Communications Ltd,5650,Exec. Director Prrh,Telephone Calls,4452
http://statistics.data.gov.uk/id/local-authority/47UD,Redditch Borough Council,19/10/2012,172306,UN0920789,10.70,Gamma Business Communications Ltd,5650,Exec. Director Prrh,Telephone Rental,4451
http://statistics.data.gov.uk/id/local-authority/47UD,Redditch Borough Council,19/10/2012,172306,UN0920789,9.57,Gamma Business Communications Ltd,5650,Executive Director Lec,Telephone Calls,4452
http://statistics.data.gov.uk/id/local-authority/47UD,Redditch Borough Council,19/10/2012,172306,UN0920789,16.92,Gamma Business Communications Ltd,5650,Executive Director Lec,Telephone Rental,4451
http://statistics.data.gov.uk/id/local-authority/47UD,Redditch Borough Council,19/10/2012,172306,UN0920789,5.44,Gamma Business Communications Ltd,5650,Executive Director Lec,Telephone Calls,4452
http://statistics.data.gov.uk/id/local-authority/47UD,Redditch Borough Council,19/10/2012,172306,UN0920789,10.70,Gamma Business Communications Ltd,5650,Executive Director Lec,Telephone Rental,4451
http://statistics.data.gov.uk/id/local-authority/47UD,Redditch Borough Council,19/10/2012,172306,UN0920789,10.74,Gamma Business Communications Ltd,5650,Executive Director Lec,Telephone Calls,4452
http://statistics.data.gov.uk/id/local-authority/47UD,Redditch Borough Council,19/10/2012,172306,UN0920789,10.70,Gamma Business Communications Ltd,5650,Executive Director Lec,Telephone Rental,4451
http://statistics.data.gov.uk/id/local-authority/47UD,Redditch Borough Council,19/10/2012,172306,UN0920789,1.46,Gamma Business Communications Ltd,5650,Executive Director Lec,Telephone Calls,4452
http://statistics.data.gov.uk/id/local-authority/47UD,Redditch Borough Council,19/10/2012,172306,UN0920789,14.00,Gamma Business Communications Ltd,5650,Executive Director Lec,Telephone Rental,4451
http://statistics.data.gov.uk/id/local-authority/47UD,Redditch Borough Council,19/10/2012,172306,UN0920789,0.25,Gamma Business Communications Ltd,5650,Executive Director Lec,Telephone Calls,4452
http://statistics.data.gov.uk/id/local-authority/47UD,Redditch Borough Council,19/10/2012,172306,UN0920789,14.00,Gamma Business Communications Ltd,5650,Executive Director Lec,Telephone Rental,4451
http://statistics.data.gov.uk/id/local-authority/47UD,Redditch Borough Council,19/10/2012,172306,UN0920789,0.42,Gamma Business Communications Ltd,5650,Executive Director Lec,Telephone Calls,4452
http://statistics.data.gov.uk/id/local-authority/47UD,Redditch Borough Council,19/10/2012,172306,UN0920789,14.00,Gamma Business Communications Ltd,5650,Executive Director Lec,Telephone Rental,4451
http://statistics.data.gov.uk/id/local-authority/47UD,Redditch Borough Council,19/10/2012,172306,UN0920789,0.49,Gamma Business Communications Ltd,5650,Executive Director Lec,Telephone Calls,4452
http://statistics.data.gov.uk/id/local-authority/47UD,Redditch Borough Council,19/10/2012,172306,UN0920789,14.00,Gamma Business Communications Ltd,5650,Executive Director Lec,Telephone Rental,4451
http://statistics.data.gov.uk/id/local-authority/47UD,Redditch Borough Council,19/10/2012,172306,UN0920789,0.04,Gamma Business Communications Ltd,5650,Executive Director Lec,Telephone Calls,4452
http://statistics.data.gov.uk/id/local-authority/47UD,Redditch Borough Council,19/10/2012,172306,UN0920789,14.00,Gamma Business Communications Ltd,5650,Executive Director Lec,Telephone Rental,4451
http://statistics.data.gov.uk/id/local-authority/47UD,Redditch Borough Council,19/10/2012,172306,UN0920789,0.05,Gamma Business Communications Ltd,5650,Executive Director Lec,Telephone Calls,4452
http://statistics.data.gov.uk/id/local-authority/47UD,Redditch Borough Council,19/10/2012,172306,UN0920789,14.00,Gamma Business Communications Ltd,5650,Executive Director Lec,Telephone Rental,4451
http://statistics.data.gov.uk/id/local-authority/47UD,Redditch Borough Council,19/10/2012,172306,UN0920789,0.00,Gamma Business Communications Ltd,5650,Executive Director Lec,Telephone Calls,4452
http://statistics.data.gov.uk/id/local-authority/47UD,Redditch Borough Council,19/10/2012,172306,UN0920789,10.70,Gamma Business Communications Ltd,5650,Executive Director Lec,Telephone Rental,4451
http://statistics.data.gov.uk/id/local-authority/47UD,Redditch Borough Council,19/10/2012,172306,UN0920789,0.66,Gamma Business Communications Ltd,5650,Executive Director Lec,Telephone Calls,4452
http://statistics.data.gov.uk/id/local-authority/47UD,Redditch Borough Council,19/10/2012,172306,UN0920789,14.00,Gamma Business Communications Ltd,5650,Executive Director Lec,Telephone Rental,4451
http://statistics.data.gov.uk/id/local-authority/47UD,Redditch Borough Council,19/10/2012,172306,UN0920789,0.11,Gamma Business Communications Ltd,5650,Housing Revenue Account,Telephone Calls,4452
http://statistics.data.gov.uk/id/local-authority/47UD,Redditch Borough Council,19/10/2012,172306,UN0920789,16.92,Gamma Business Communications Ltd,5650,Housing Revenue Account,Telephone Rental,4451
http://statistics.data.gov.uk/id/local-authority/47UD,Redditch Borough Council,19/10/2012,172306,UN0920789,0.05,Gamma Business Communications Ltd,5650,Executive Director Lec,Telephone Calls,4452
http://statistics.data.gov.uk/id/local-authority/47UD,Redditch Borough Council,19/10/2012,172306,UN0920789,14.00,Gamma Business Communications Ltd,5650,Executive Director Lec,Telephone Rental,4451
http://statistics.data.gov.uk/id/local-authority/47UD,Redditch Borough Council,19/10/2012,172306,UN0920789,0.11,Gamma Business Communications Ltd,5650,Executive Director Lec,Telephone Calls,4452
http://statistics.data.gov.uk/id/local-authority/47UD,Redditch Borough Council,19/10/2012,172306,UN0920789,14.00,Gamma Business Communications Ltd,5650,Executive Director Lec,Telephone Rental,4451
http://statistics.data.gov.uk/id/local-authority/47UD,Redditch Borough Council,19/10/2012,172306,UN0920789,0.04,Gamma Business Communications Ltd,5650,Executive Director Lec,Telephone Calls,4452
http://statistics.data.gov.uk/id/local-authority/47UD,Redditch Borough Council,19/10/2012,172306,UN0920789,14.00,Gamma Business Communications Ltd,5650,Executive Director Lec,Telephone Rental,4451
http://statistics.data.gov.uk/id/local-authority/47UD,Redditch Borough Council,19/10/2012,172306,UN0920789,0.11,Gamma Business Communications Ltd,5650,Executive Director Lec,Telephone Calls,4452
http://statistics.data.gov.uk/id/local-authority/47UD,Redditch Borough Council,19/10/2012,172306,UN0920789,14.00,Gamma Business Communications Ltd,5650,Executive Director Lec,Telephone Rental,4451
http://statistics.data.gov.uk/id/local-authority/47UD,Redditch Borough Council,19/10/2012,172306,UN0920789,0.47,Gamma Business Communications Ltd,5650,Executive Director Lec,Telephone Calls,4452
http://statistics.data.gov.uk/id/local-authority/47UD,Redditch Borough Council,19/10/2012,172306,UN0920789,14.00,Gamma Business Communications Ltd,5650,Executive Director Lec,Telephone Rental,4451
http://statistics.data.gov.uk/id/local-authority/47UD,Redditch Borough Council,19/10/2012,172306,UN0920789,1.68,Gamma Business Communications Ltd,5650,Executive Director Lec,Telephone Calls,4452
http://statistics.data.gov.uk/id/local-authority/47UD,Redditch Borough Council,19/10/2012,172306,UN0920789,10.70,Gamma Business Communications Ltd,5650,Executive Director Lec,Telephone Rental,4451
http://statistics.data.gov.uk/id/local-authority/47UD,Redditch Borough Council,19/10/2012,172306,UN0920789,0.55,Gamma Business Communications Ltd,5650,Executive Director Lec,Telephone Calls,4452
http://statistics.data.gov.uk/id/local-authority/47UD,Redditch Borough Council,19/10/2012,172306,UN0920789,14.00,Gamma Business Communications Ltd,5650,Executive Director Lec,Telephone Rental,4451
http://statistics.data.gov.uk/id/local-authority/47UD,Redditch Borough Council,19/10/2012,172306,UN0920789,0.60,Gamma Business Communications Ltd,5650,Executive Director Lec,Telephone Calls,4452
http://statistics.data.gov.uk/id/local-authority/47UD,Redditch Borough Council,19/10/2012,172306,UN0920789,14.00,Gamma Business Communications Ltd,5650,Executive Director Lec,Telephone Rental,4451
http://statistics.data.gov.uk/id/local-authority/47UD,Redditch Borough Council,19/10/2012,172306,UN0920789,1.16,Gamma Business Communications Ltd,5650,Executive Director Lec,Telephone Calls,4452
http://statistics.data.gov.uk/id/local-authority/47UD,Redditch Borough Council,19/10/2012,172306,UN0920789,14.00,Gamma Business Communications Ltd,5650,Executive Director Lec,Telephone Rental,4451
http://statistics.data.gov.uk/id/local-authority/47UD,Redditch Borough Council,19/10/2012,172306,UN0920789,7.24,Gamma Business Communications Ltd,5650,Executive Director Lec,Telephone Calls,4452
http://statistics.data.gov.uk/id/local-authority/47UD,Redditch Borough Council,19/10/2012,172306,UN0920789,10.70,Gamma Business Communications Ltd,5650,Executive Director Lec,Telephone Rental,4451
http://statistics.data.gov.uk/id/local-authority/47UD,Redditch Borough Council,19/10/2012,172306,UN0920789,0.00,Gamma Business Communications Ltd,5650,Chief Executive,Telephone Calls,4452
http://statistics.data.gov.uk/id/local-authority/47UD,Redditch Borough Council,19/10/2012,172306,UN0920789,0.00,Gamma Business Communications Ltd,5650,Chief Executive,Telephone Rental,4451
http://statistics.data.gov.uk/id/local-authority/47UD,Redditch Borough Council,19/10/2012,172306,UN0920789,0.00,Gamma Business Communications Ltd,5650,Executive Director Lec,Telephone Calls,4452
http://statistics.data.gov.uk/id/local-authority/47UD,Redditch Borough Council,19/10/2012,172306,UN0920789,14.00,Gamma Business Communications Ltd,5650,Executive Director Lec,Telephone Rental,4451
http://statistics.data.gov.uk/id/local-authority/47UD,Redditch Borough Council,19/10/2012,172306,UN0920789,0.54,Gamma Business Communications Ltd,5650,Executive Director Lec,Telephone Calls,4452
http://statistics.data.gov.uk/id/local-authority/47UD,Redditch Borough Council,19/10/2012,172306,UN0920789,10.70,Gamma Business Communications Ltd,5650,Executive Director Lec,Telephone Rental,4451
http://statistics.data.gov.uk/id/local-authority/47UD,Redditch Borough Council,19/10/2012,172306,UN0920789,0.72,Gamma Business Communications Ltd,5650,Exec. Director Prrh,Telephone Calls,4452
http://statistics.data.gov.uk/id/local-authority/47UD,Redditch Borough Council,19/10/2012,172306,UN0920789,10.70,Gamma Business Communications Ltd,5650,Exec. Director Prrh,Telephone Rental,4451
http://statistics.data.gov.uk/id/local-authority/47UD,Redditch Borough Council,19/10/2012,172306,UN0920789,13.28,Gamma Business Communications Ltd,5650,Surestart Project,Telephone Calls,4452
http://statistics.data.gov.uk/id/local-authority/47UD,Redditch Borough Council,19/10/2012,172306,UN0920789,10.70,Gamma Business Communications Ltd,5650,Surestart Project,Telephone Rental,4451
http://statistics.data.gov.uk/id/local-authority/47UD,Redditch Borough Council,19/10/2012,172306,UN0920789,0.00,Gamma Business Communications Ltd,5650,Executive Director Lec,Telephone Calls,4452
http://statistics.data.gov.uk/id/local-authority/47UD,Redditch Borough Council,19/10/2012,172306,UN0920789,10.70,Gamma Business Communications Ltd,5650,Executive Director Lec,Telephone Rental,4451
http://statistics.data.gov.uk/id/local-authority/47UD,Redditch Borough Council,19/10/2012,172306,UN0920789,13.12,Gamma Business Communications Ltd,5650,Housing Revenue Account,Telephone Calls,4452
http://statistics.data.gov.uk/id/local-authority/47UD,Redditch Borough Council,19/10/2012,172306,UN0920789,17.45,Gamma Business Communications Ltd,5650,Housing Revenue Account,Telephone Rental,4451
http://statistics.data.gov.uk/id/local-authority/47UD,Redditch Borough Council,19/10/2012,172306,UN0920789,0.52,Gamma Business Communications Ltd,5650,Executive Director Lec,Telephone Calls,4452
http://statistics.data.gov.uk/id/local-authority/47UD,Redditch Borough Council,19/10/2012,172306,UN0920789,10.70,Gamma Business Communications Ltd,5650,Executive Director Lec,Telephone Rental,4451
http://statistics.data.gov.uk/id/local-authority/47UD,Redditch Borough Council,19/10/2012,172306,UN0920789,0.00,Gamma Business Communications Ltd,5650,Exec. Director Fin. & Resource,Telephone Calls,4452
http://statistics.data.gov.uk/id/local-authority/47UD,Redditch Borough Council,19/10/2012,172306,UN0920789,0.00,Gamma Business Communications Ltd,5650,Exec. Director Fin. & Resource,Telephone Rental,4451
http://statistics.data.gov.uk/id/local-authority/47UD,Redditch Borough Council,19/10/2012,172306,UN0920789,0.00,Gamma Business Communications Ltd,5650,Exec. Director Fin. & Resource,Telephone Calls,4452
http://statistics.data.gov.uk/id/local-authority/47UD,Redditch Borough Council,19/10/2012,172306,UN0920789,345.04,Gamma Business Communications Ltd,5650,Exec. Director Fin. & Resource,Telephone Rental,4451
http://statistics.data.gov.uk/id/local-authority/47UD,Redditch Borough Council,19/10/2012,172306,UN0920789,0.00,Gamma Business Communications Ltd,5650,Executive Director Lec,Telephone Calls,4452
http://statistics.data.gov.uk/id/local-authority/47UD,Redditch Borough Council,19/10/2012,172306,UN0920789,10.70,Gamma Business Communications Ltd,5650,Executive Director Lec,Telephone Rental,4451
http://statistics.data.gov.uk/id/local-authority/47UD,Redditch Borough Council,19/10/2012,172306,UN0920789,0.02,Gamma Business Communications Ltd,5650,Executive Director Lec,Telephone Calls,4452
http://statistics.data.gov.uk/id/local-authority/47UD,Redditch Borough Council,19/10/2012,172306,UN0920789,14.00,Gamma Business Communications Ltd,5650,Executive Director Lec,Telephone Rental,4451
http://statistics.data.gov.uk/id/local-authority/47UD,Redditch Borough Council,19/10/2012,172306,UN0920789,0.40,Gamma Business Communications Ltd,5650,Executive Director Lec,Telephone Calls,4452
http://statistics.data.gov.uk/id/local-authority/47UD,Redditch Borough Council,19/10/2012,172306,UN0920789,10.70,Gamma Business Communications Ltd,5650,Executive Director Lec,Telephone Rental,4451
http://statistics.data.gov.uk/id/local-authority/47UD,Redditch Borough Council,19/10/2012,172306,UN0920789,0.00,Gamma Business Communications Ltd,5650,Executive Director Lec,Telephone Calls,4452
http://statistics.data.gov.uk/id/local-authority/47UD,Redditch Borough Council,19/10/2012,172306,UN0920789,0.00,Gamma Business Communications Ltd,5650,Executive Director Lec,Telephone Rental,4451
http://statistics.data.gov.uk/id/local-authority/47UD,Redditch Borough Council,19/10/2012,172306,UN0920789,0.18,Gamma Business Communications Ltd,5650,Housing Revenue Account,Telephone Calls,4452
http://statistics.data.gov.uk/id/local-authority/47UD,Redditch Borough Council,19/10/2012,172306,UN0920789,10.70,Gamma Business Communications Ltd,5650,Housing Revenue Account,Telephone Rental,4451
http://statistics.data.gov.uk/id/local-authority/47UD,Redditch Borough Council,19/10/2012,172306,UN0920789,0.37,Gamma Business Communications Ltd,5650,Housing Repairs Account,Telephone Calls,4452
http://statistics.data.gov.uk/id/local-authority/47UD,Redditch Borough Council,19/10/2012,172306,UN0920789,10.70,Gamma Business Communications Ltd,5650,Housing Repairs Account,Telephone Rental,4451
http://statistics.data.gov.uk/id/local-authority/47UD,Redditch Borough Council,19/10/2012,172306,UN0920789,10.36,Gamma Business Communications Ltd,5650,Surestart Project,Telephone Calls,4452
http://statistics.data.gov.uk/id/local-authority/47UD,Redditch Borough Council,19/10/2012,172306,UN0920789,10.70,Gamma Business Communications Ltd,5650,Surestart Project,Telephone Rental,4451
http://statistics.data.gov.uk/id/local-authority/47UD,Redditch Borough Council,19/10/2012,172306,UN0920789,1.11,Gamma Business Communications Ltd,5650,Surestart Project,Telephone Calls,4452
http://statistics.data.gov.uk/id/local-authority/47UD,Redditch Borough Council,19/10/2012,172306,UN0920789,10.70,Gamma Business Communications Ltd,5650,Surestart Project,Telephone Rental,4451
http://statistics.data.gov.uk/id/local-authority/47UD,Redditch Borough Council,19/10/2012,172306,UN0920789,0.00,Gamma Business Communications Ltd,5650,Exec. Director Fin. & Resource,Telephone Calls,4452
http://statistics.data.gov.uk/id/local-authority/47UD,Redditch Borough Council,19/10/2012,172306,UN0920789,250.12,Gamma Business Communications Ltd,5650,Exec. Director Fin. & Resource,Telephone Rental,4451
http://statistics.data.gov.uk/id/local-authority/47UD,Redditch Borough Council,19/10/2012,172306,UN0920789,0.00,Gamma Business Communications Ltd,5650,Executive Director Lec,Telephone Calls,4452
http://statistics.data.gov.uk/id/local-authority/47UD,Redditch Borough Council,19/10/2012,172306,UN0920789,10.70,Gamma Business Communications Ltd,5650,Executive Director Lec,Telephone Rental,4451
http://statistics.data.gov.uk/id/local-authority/47UD,Redditch Borough Council,19/10/2012,172306,UN0920789,0.00,Gamma Business Communications Ltd,5650,Chief Executive,Telephone Calls,4452
http://statistics.data.gov.uk/id/local-authority/47UD,Redditch Borough Council,19/10/2012,172306,UN0920789,10.70,Gamma Business Communications Ltd,5650,Chief Executive,Telephone Rental,4451
http://statistics.data.gov.uk/id/local-authority/47UD,Redditch Borough Council,19/10/2012,172306,UN0920789,0.09,Gamma Business Communications Ltd,5650,Chief Executive,Telephone Calls,4452
http://statistics.data.gov.uk/id/local-authority/47UD,Redditch Borough Council,19/10/2012,172306,UN0920789,10.70,Gamma Business Communications Ltd,5650,Chief Executive,Telephone Rental,4451
http://statistics.data.gov.uk/id/local-authority/47UD,Redditch Borough Council,19/10/2012,172306,UN0920789,3.02,Gamma Business Communications Ltd,5650,Executive Director Lec,Telephone Calls,4452
http://statistics.data.gov.uk/id/local-authority/47UD,Redditch Borough Council,19/10/2012,172306,UN0920789,17.70,Gamma Business Communications Ltd,5650,Executive Director Lec,Telephone Rental,4451
http://statistics.data.gov.uk/id/local-authority/47UD,Redditch Borough Council,19/10/2012,172306,UN0920789,0.00,Gamma Business Communications Ltd,5650,Chief Executive,Telephone Calls,4452
http://statistics.data.gov.uk/id/local-authority/47UD,Redditch Borough Council,19/10/2012,172306,UN0920789,10.70,Gamma Business Communications Ltd,5650,Chief Executive,Telephone Rental,4451
http://statistics.data.gov.uk/id/local-authority/47UD,Redditch Borough Council,19/10/2012,172306,UN0920789,0.00,Gamma Business Communications Ltd,5650,Executive Director Lec,Telephone Calls,4452
http://statistics.data.gov.uk/id/local-authority/47UD,Redditch Borough Council,19/10/2012,172306,UN0920789,10.70,Gamma Business Communications Ltd,5650,Executive Director Lec,Telephone Rental,4451
http://statistics.data.gov.uk/id/local-authority/47UD,Redditch Borough Council,19/10/2012,172306,UN0920789,0.61,Gamma Business Communications Ltd,5650,Executive Director Lec,Telephone Calls,4452
http://statistics.data.gov.uk/id/local-authority/47UD,Redditch Borough Council,19/10/2012,172306,UN0920789,14.00,Gamma Business Communications Ltd,5650,Executive Director Lec,Telephone Rental,4451
http://statistics.data.gov.uk/id/local-authority/47UD,Redditch Borough Council,19/10/2012,172306,UN0920789,42.32,Gamma Business Communications Ltd,5650,Executive Director Lec,Telephone Calls,4452
http://statistics.data.gov.uk/id/local-authority/47UD,Redditch Borough Council,19/10/2012,172306,UN0920789,16.00,Gamma Business Communications Ltd,5650,Executive Director Lec,Telephone Rental,4451
http://statistics.data.gov.uk/id/local-authority/47UD,Redditch Borough Council,19/10/2012,172306,UN0920789,0.69,Gamma Business Communications Ltd,5650,Executive Director Lec,Telephone Calls,4452
http://statistics.data.gov.uk/id/local-authority/47UD,Redditch Borough Council,19/10/2012,172306,UN0920789,10.70,Gamma Business Communications Ltd,5650,Executive Director Lec,Telephone Rental,4451
http://statistics.data.gov.uk/id/local-authority/47UD,Redditch Borough Council,19/10/2012,172306,UN0920789,0.00,Gamma Business Communications Ltd,5650,Exec. Director Fin. & Resource,Telephone Calls,4452
http://statistics.data.gov.uk/id/local-authority/47UD,Redditch Borough Council,19/10/2012,172306,UN0920789,0.00,Gamma Business Communications Ltd,5650,Exec. Director Fin. & Resource,Telephone Rental,4451
http://statistics.data.gov.uk/id/local-authority/47UD,Redditch Borough Council,19/10/2012,172306,UN0920789,0.00,Gamma Business Communications Ltd,5650,Exec. Director Fin. & Resource,Telephone Calls,4452
http://statistics.data.gov.uk/id/local-authority/47UD,Redditch Borough Council,19/10/2012,172306,UN0920789,10.70,Gamma Business Communications Ltd,5650,Exec. Director Fin. & Resource,Telephone Rental,4451
http://statistics.data.gov.uk/id/local-authority/47UD,Redditch Borough Council,19/10/2012,172306,UN0920789,0.00,Gamma Business Communications Ltd,5650,Exec. Director Fin. & Resource,Telephone Calls,4452
http://statistics.data.gov.uk/id/local-authority/47UD,Redditch Borough Council,19/10/2012,172306,UN0920789,10.70,Gamma Business Communications Ltd,5650,Exec. Director Fin. & Resource,Telephone Rental,4451
http://statistics.data.gov.uk/id/local-authority/47UD,Redditch Borough Council,19/10/2012,172306,UN0920789,9.45,Gamma Business Communications Ltd,5650,Executive Director Lec,Telephone Calls,4452
http://statistics.data.gov.uk/id/local-authority/47UD,Redditch Borough Council,19/10/2012,172306,UN0920789,14.00,Gamma Business Communications Ltd,5650,Executive Director Lec,Telephone Rental,4451
http://statistics.data.gov.uk/id/local-authority/47UD,Redditch Borough Council,19/10/2012,172306,UN0920789,47.17,Gamma Business Communications Ltd,5650,Executive Director Lec,Telephone Calls,4452
http://statistics.data.gov.uk/id/local-authority/47UD,Redditch Borough Council,19/10/2012,172306,UN0920789,90.00,Gamma Business Communications Ltd,5650,Executive Director Lec,Telephone Rental,4451
http://statistics.data.gov.uk/id/local-authority/47UD,Redditch Borough Council,19/10/2012,172306,UN0920789,0.00,Gamma Business Communications Ltd,5650,Executive Director Lec,Telephone Calls,4452
http://statistics.data.gov.uk/id/local-authority/47UD,Redditch Borough Council,19/10/2012,172306,UN0920789,10.70,Gamma Business Communications Ltd,5650,Executive Director Lec,Telephone Rental,4451
http://statistics.data.gov.uk/id/local-authority/47UD,Redditch Borough Council,19/10/2012,172306,UN0920789,0.00,Gamma Business Communications Ltd,5650,Exec. Director Fin. & Resource,Telephone Calls,4452
http://statistics.data.gov.uk/id/local-authority/47UD,Redditch Borough Council,19/10/2012,172306,UN0920789,10.70,Gamma Business Communications Ltd,5650,Exec. Director Fin. & Resource,Telephone Rental,4451
http://statistics.data.gov.uk/id/local-authority/47UD,Redditch Borough Council,19/10/2012,172306,UN0920789,0.00,Gamma Business Communications Ltd,5650,Exec. Director Fin. & Resource,Telephone Calls,4452
http://statistics.data.gov.uk/id/local-authority/47UD,Redditch Borough Council,19/10/2012,172306,UN0920789,10.70,Gamma Business Communications Ltd,5650,Exec. Director Fin. & Resource,Telephone Rental,4451
http://statistics.data.gov.uk/id/local-authority/47UD,Redditch Borough Council,19/10/2012,172306,UN0920789,0.00,Gamma Business Communications Ltd,5650,Chief Executive,Telephone Calls,4452
http://statistics.data.gov.uk/id/local-authority/47UD,Redditch Borough Council,19/10/2012,172306,UN0920789,24.30,Gamma Business Communications Ltd,5650,Chief Executive,Telephone Rental,4451
http://statistics.data.gov.uk/id/local-authority/47UD,Redditch Borough Council,19/10/2012,172306,UN0920789,99.37,Gamma Business Communications Ltd,5650,Executive Director Lec,Telephone Calls,4452
http://statistics.data.gov.uk/id/local-authority/47UD,Redditch Borough Council,19/10/2012,172306,UN0920789,16.92,Gamma Business Communications Ltd,5650,Executive Director Lec,Telephone Rental,4451
http://statistics.data.gov.uk/id/local-authority/47UD,Redditch Borough Council,19/10/2012,172306,UN0920789,1.35,Gamma Business Communications Ltd,5650,Executive Director Lec,Telephone Calls,4452
http://statistics.data.gov.uk/id/local-authority/47UD,Redditch Borough Council,19/10/2012,172306,UN0920789,10.70,Gamma Business Communications Ltd,5650,Executive Director Lec,Telephone Rental,4451
http://statistics.data.gov.uk/id/local-authority/47UD,Redditch Borough Council,19/10/2012,172306,UN0920789,0.80,Gamma Business Communications Ltd,5650,Executive Director Lec,Telephone Calls,4452
http://statistics.data.gov.uk/id/local-authority/47UD,Redditch Borough Council,19/10/2012,172306,UN0920789,14.00,Gamma Business Communications Ltd,5650,Executive Director Lec,Telephone Rental,4451
http://statistics.data.gov.uk/id/local-authority/47UD,Redditch Borough Council,19/10/2012,172306,UN0920789,0.00,Gamma Business Communications Ltd,5650,Housing Revenue Account,Telephone Calls,4452
http://statistics.data.gov.uk/id/local-authority/47UD,Redditch Borough Council,19/10/2012,172306,UN0920789,10.70,Gamma Business Communications Ltd,5650,Housing Revenue Account,Telephone Rental,4451
http://statistics.data.gov.uk/id/local-authority/47UD,Redditch Borough Council,19/10/2012,172306,UN0920789,1.10,Gamma Business Communications Ltd,5650,Executive Director Lec,Telephone Calls,4452
http://statistics.data.gov.uk/id/local-authority/47UD,Redditch Borough Council,19/10/2012,172306,UN0920789,10.70,Gamma Business Communications Ltd,5650,Executive Director Lec,Telephone Rental,4451
http://statistics.data.gov.uk/id/local-authority/47UD,Redditch Borough Council,19/10/2012,172306,UN0920789,0.52,Gamma Business Communications Ltd,5650,Surestart Project,Telephone Calls,4452
http://statistics.data.gov.uk/id/local-authority/47UD,Redditch Borough Council,19/10/2012,172306,UN0920789,21.40,Gamma Business Communications Ltd,5650,Surestart Project,Telephone Rental,4451
http://statistics.data.gov.uk/id/local-authority/47UD,Redditch Borough Council,19/10/2012,172306,UN0920789,0.00,Gamma Business Communications Ltd,5650,Executive Director Lec,Telephone Calls,4452
http://statistics.data.gov.uk/id/local-authority/47UD,Redditch Borough Council,19/10/2012,172306,UN0920789,10.70,Gamma Business Communications Ltd,5650,Executive Director Lec,Telephone Rental,4451
http://statistics.data.gov.uk/id/local-authority/47UD,Redditch Borough Council,19/10/2012,172306,UN0920789,0.90,Gamma Business Communications Ltd,5650,Executive Director Lec,Telephone Calls,4452
http://statistics.data.gov.uk/id/local-authority/47UD,Redditch Borough Council,19/10/2012,172306,UN0920789,14.00,Gamma Business Communications Ltd,5650,Executive Director Lec,Telephone Rental,4451
http://statistics.data.gov.uk/id/local-authority/47UD,Redditch Borough Council,19/10/2012,172306,UN0920789,0.02,Gamma Business Communications Ltd,5650,Executive Director Lec,Telephone Calls,4452
http://statistics.data.gov.uk/id/local-authority/47UD,Redditch Borough Council,19/10/2012,172306,UN0920789,14.00,Gamma Business Communications Ltd,5650,Executive Director Lec,Telephone Rental,4451
http://statistics.data.gov.uk/id/local-authority/47UD,Redditch Borough Council,19/10/2012,172306,UN0920789,0.00,Gamma Business Communications Ltd,5650,Executive Director Lec,Telephone Calls,4452
http://statistics.data.gov.uk/id/local-authority/47UD,Redditch Borough Council,19/10/2012,172306,UN0920789,14.00,Gamma Business Communications Ltd,5650,Executive Director Lec,Telephone Rental,4451
http://statistics.data.gov.uk/id/local-authority/47UD,Redditch Borough Council,19/10/2012,172306,UN0920789,0.32,Gamma Business Communications Ltd,5650,Executive Director Lec,Telephone Calls,4452
http://statistics.data.gov.uk/id/local-authority/47UD,Redditch Borough Council,19/10/2012,172306,UN0920789,14.00,Gamma Business Communications Ltd,5650,Executive Director Lec,Telephone Rental,4451
http://statistics.data.gov.uk/id/local-authority/47UD,Redditch Borough Council,19/10/2012,172306,UN0920789,0.00,Gamma Business Communications Ltd,5650,Executive Director Lec,Telephone Calls,4452
http://statistics.data.gov.uk/id/local-authority/47UD,Redditch Borough Council,19/10/2012,172306,UN0920789,10.70,Gamma Business Communications Ltd,5650,Executive Director Lec,Telephone Rental,4451
http://statistics.data.gov.uk/id/local-authority/47UD,Redditch Borough Council,19/10/2012,172306,UN0920789,8.98,Gamma Business Communications Ltd,5650,Executive Director Lec,Telephone Calls,4452
http://statistics.data.gov.uk/id/local-authority/47UD,Redditch Borough Council,19/10/2012,172306,UN0920789,10.70,Gamma Business Communications Ltd,5650,Executive Director Lec,Telephone Rental,4451
http://statistics.data.gov.uk/id/local-authority/47UD,Redditch Borough Council,19/10/2012,172306,UN0920789,0.02,Gamma Business Communications Ltd,5650,Executive Director Lec,Telephone Calls,4452
http://statistics.data.gov.uk/id/local-authority/47UD,Redditch Borough Council,19/10/2012,172306,UN0920789,10.70,Gamma Business Communications Ltd,5650,Executive Director Lec,Telephone Rental,4451
http://statistics.data.gov.uk/id/local-authority/47UD,Redditch Borough Council,19/10/2012,172306,UN0920789,9.88,Gamma Business Communications Ltd,5650,Executive Director Lec,Telephone Calls,4452
http://statistics.data.gov.uk/id/local-authority/47UD,Redditch Borough Council,19/10/2012,172306,UN0920789,27.62,Gamma Business Communications Ltd,5650,Executive Director Lec,Telephone Rental,4451
http://statistics.data.gov.uk/id/local-authority/47UD,Redditch Borough Council,19/10/2012,172306,UN0920789,0.00,Gamma Business Communications Ltd,5650,Chief Executive,Telephone Calls,4452
http://statistics.data.gov.uk/id/local-authority/47UD,Redditch Borough Council,19/10/2012,172306,UN0920789,10.70,Gamma Business Communications Ltd,5650,Chief Executive,Telephone Rental,4451
http://statistics.data.gov.uk/id/local-authority/47UD,Redditch Borough Council,19/10/2012,172306,UN0920789,0.00,Gamma Business Communications Ltd,5650,Executive Director Lec,Telephone Calls,4452
http://statistics.data.gov.uk/id/local-authority/47UD,Redditch Borough Council,19/10/2012,172306,UN0920789,10.70,Gamma Business Communications Ltd,5650,Executive Director Lec,Telephone Rental,4451
http://statistics.data.gov.uk/id/local-authority/47UD,Redditch Borough Council,19/10/2012,172306,UN0920789,3.91,Gamma Business Communications Ltd,5650,Executive Director Lec,Telephone Calls,4452
http://statistics.data.gov.uk/id/local-authority/47UD,Redditch Borough Council,19/10/2012,172306,UN0920789,10.70,Gamma Business Communications Ltd,5650,Executive Director Lec,Telephone Rental,4451
http://statistics.data.gov.uk/id/local-authority/47UD,Redditch Borough Council,19/10/2012,172306,UN0920789,0.00,Gamma Business Communications Ltd,5650,Executive Director Lec,Telephone Calls,4452
http://statistics.data.gov.uk/id/local-authority/47UD,Redditch Borough Council,19/10/2012,172306,UN0920789,10.70,Gamma Business Communications Ltd,5650,Executive Director Lec,Telephone Rental,4451
http://statistics.data.gov.uk/id/local-authority/47UD,Redditch Borough Council,19/10/2012,172306,UN0920789,0.00,Gamma Business Communications Ltd,5650,Exec. Director Fin. & Resource,Telephone Calls,4452
http://statistics.data.gov.uk/id/local-authority/47UD,Redditch Borough Council,19/10/2012,172306,UN0920789,10.70,Gamma Business Communications Ltd,5650,Exec. Director Fin. & Resource,Telephone Rental,4451
http://statistics.data.gov.uk/id/local-authority/47UD,Redditch Borough Council,19/10/2012,172306,UN0920789,0.00,Gamma Business Communications Ltd,5650,Executive Director Lec,Telephone Calls,4452
http://statistics.data.gov.uk/id/local-authority/47UD,Redditch Borough Council,19/10/2012,172306,UN0920789,10.70,Gamma Business Communications Ltd,5650,Executive Director Lec,Telephone Rental,4451
http://statistics.data.gov.uk/id/local-authority/47UD,Redditch Borough Council,19/10/2012,172306,UN0920789,0.00,Gamma Business Communications Ltd,5650,Executive Director Lec,Telephone Calls,4452
http://statistics.data.gov.uk/id/local-authority/47UD,Redditch Borough Council,19/10/2012,172306,UN0920789,10.70,Gamma Business Communications Ltd,5650,Executive Director Lec,Telephone Rental,4451
http://statistics.data.gov.uk/id/local-authority/47UD,Redditch Borough Council,19/10/2012,172306,UN0920789,0.00,Gamma Business Communications Ltd,5650,Housing Revenue Account,Telephone Calls,4452
http://statistics.data.gov.uk/id/local-authority/47UD,Redditch Borough Council,19/10/2012,172306,UN0920789,10.70,Gamma Business Communications Ltd,5650,Housing Revenue Account,Telephone Rental,4451
http://statistics.data.gov.uk/id/local-authority/47UD,Redditch Borough Council,19/10/2012,172306,UN0920789,0.07,Gamma Business Communications Ltd,5650,Executive Director Lec,Telephone Calls,4452
http://statistics.data.gov.uk/id/local-authority/47UD,Redditch Borough Council,19/10/2012,172306,UN0920789,14.00,Gamma Business Communications Ltd,5650,Executive Director Lec,Telephone Rental,4451
http://statistics.data.gov.uk/id/local-authority/47UD,Redditch Borough Council,19/10/2012,172306,UN0920789,3.00,Gamma Business Communications Ltd,5650,Surestart Project,Telephone Calls,4452
http://statistics.data.gov.uk/id/local-authority/47UD,Redditch Borough Council,19/10/2012,172306,UN0920789,10.70,Gamma Business Communications Ltd,5650,Surestart Project,Telephone Rental,4451
http://statistics.data.gov.uk/id/local-authority/47UD,Redditch Borough Council,19/10/2012,172306,UN0920789,1.47,Gamma Business Communications Ltd,5650,Surestart Project,Telephone Calls,4452
http://statistics.data.gov.uk/id/local-authority/47UD,Redditch Borough Council,19/10/2012,172306,UN0920789,10.70,Gamma Business Communications Ltd,5650,Surestart Project,Telephone Rental,4451
http://statistics.data.gov.uk/id/local-authority/47UD,Redditch Borough Council,19/10/2012,172306,UN0920789,0.00,Gamma Business Communications Ltd,5650,Chief Executive,Telephone Calls,4452
http://statistics.data.gov.uk/id/local-authority/47UD,Redditch Borough Council,19/10/2012,172306,UN0920789,0.00,Gamma Business Communications Ltd,5650,Chief Executive,Telephone Rental,4451
http://statistics.data.gov.uk/id/local-authority/47UD,Redditch Borough Council,19/10/2012,172306,UN0920789,0.03,Gamma Business Communications Ltd,5650,Executive Director Lec,Telephone Calls,4452
http://statistics.data.gov.uk/id/local-authority/47UD,Redditch Borough Council,19/10/2012,172306,UN0920789,14.00,Gamma Business Communications Ltd,5650,Executive Director Lec,Telephone Rental,4451
http://statistics.data.gov.uk/id/local-authority/47UD,Redditch Borough Council,19/10/2012,172306,UN0920789,0.01,Gamma Business Communications Ltd,5650,Executive Director Lec,Telephone Calls,4452
http://statistics.data.gov.uk/id/local-authority/47UD,Redditch Borough Council,19/10/2012,172306,UN0920789,14.00,Gamma Business Communications Ltd,5650,Executive Director Lec,Telephone Rental,4451
http://statistics.data.gov.uk/id/local-authority/47UD,Redditch Borough Council,19/10/2012,172306,UN0920789,0.00,Gamma Business Communications Ltd,5650,Executive Director Lec,Telephone Calls,4452
http://statistics.data.gov.uk/id/local-authority/47UD,Redditch Borough Council,19/10/2012,172306,UN0920789,0.00,Gamma Business Communications Ltd,5650,Executive Director Lec,Telephone Rental,4451
http://statistics.data.gov.uk/id/local-authority/47UD,Redditch Borough Council,19/10/2012,172306,UN0920789,0.00,Gamma Business Communications Ltd,5650,Chief Executive,Telephone Calls,4452
http://statistics.data.gov.uk/id/local-authority/47UD,Redditch Borough Council,19/10/2012,172306,UN0920789,0.00,Gamma Business Communications Ltd,5650,Chief Executive,Telephone Rental,4451
http://statistics.data.gov.uk/id/local-authority/47UD,Redditch Borough Council,19/10/2012,172306,UN0920789,0.14,Gamma Business Communications Ltd,5650,Exec. Director Fin. & Resource,Telephone Calls,4452
http://statistics.data.gov.uk/id/local-authority/47UD,Redditch Borough Council,19/10/2012,172306,UN0920789,10.70,Gamma Business Communications Ltd,5650,Exec. Director Fin. & Resource,Telephone Rental,4451
http://statistics.data.gov.uk/id/local-authority/47UD,Redditch Borough Council,19/10/2012,172306,UN0920789,20.78,Gamma Business Communications Ltd,5650,Executive Director Lec,Telephone Calls,4452
http://statistics.data.gov.uk/id/local-authority/47UD,Redditch Borough Council,19/10/2012,172306,UN0920789,42.80,Gamma Business Communications Ltd,5650,Executive Director Lec,Telephone Rental,4451
http://statistics.data.gov.uk/id/local-authority/47UD,Redditch Borough Council,19/10/2012,172306,UN0920789,0.08,Gamma Business Communications Ltd,5650,Executive Director Lec,Telephone Calls,4452
http://statistics.data.gov.uk/id/local-authority/47UD,Redditch Borough Council,19/10/2012,172306,UN0920789,14.00,Gamma Business Communications Ltd,5650,Executive Director Lec,Telephone Rental,4451
http://statistics.data.gov.uk/id/local-authority/47UD,Redditch Borough Council,19/10/2012,172306,UN0920789,8.18,Gamma Business Communications Ltd,5650,Executive Director Lec,Telephone Calls,4452
http://statistics.data.gov.uk/id/local-authority/47UD,Redditch Borough Council,19/10/2012,172306,UN0920789,30.00,Gamma Business Communications Ltd,5650,Executive Director Lec,Telephone Rental,4451
http://statistics.data.gov.uk/id/local-authority/47UD,Redditch Borough Council,19/10/2012,172306,UN0920789,0.00,Gamma Business Communications Ltd,5650,Executive Director Lec,Telephone Calls,4452
http://statistics.data.gov.uk/id/local-authority/47UD,Redditch Borough Council,19/10/2012,172306,UN0920789,10.70,Gamma Business Communications Ltd,5650,Executive Director Lec,Telephone Rental,4451
http://statistics.data.gov.uk/id/local-authority/47UD,Redditch Borough Council,19/10/2012,172306,UN0920789,0.00,Gamma Business Communications Ltd,5650,Executive Director Lec,Telephone Calls,4452
http://statistics.data.gov.uk/id/local-authority/47UD,Redditch Borough Council,19/10/2012,172306,UN0920789,10.70,Gamma Business Communications Ltd,5650,Executive Director Lec,Telephone Rental,4451
http://statistics.data.gov.uk/id/local-authority/47UD,Redditch Borough Council,19/10/2012,172306,UN0920789,1.00,Gamma Business Communications Ltd,5650,Housing Revenue Account,Telephone Calls,4452
http://statistics.data.gov.uk/id/local-authority/47UD,Redditch Borough Council,19/10/2012,172306,UN0920789,10.70,Gamma Business Communications Ltd,5650,Housing Revenue Account,Telephone Rental,4451
http://statistics.data.gov.uk/id/local-authority/47UD,Redditch Borough Council,19/10/2012,172306,UN0920789,21.40,Gamma Business Communications Ltd,5650,Executive Director Lec,Telephone Calls,4452
http://statistics.data.gov.uk/id/local-authority/47UD,Redditch Borough Council,19/10/2012,172306,UN0920789,77.72,Gamma Business Communications Ltd,5650,Executive Director Lec,Telephone Rental,4451
http://statistics.data.gov.uk/id/local-authority/47UD,Redditch Borough Council,19/10/2012,172306,UN0920789,0.12,Gamma Business Communications Ltd,5650,Executive Director Lec,Telephone Calls,4452
http://statistics.data.gov.uk/id/local-authority/47UD,Redditch Borough Council,19/10/2012,172306,UN0920789,12.70,Gamma Business Communications Ltd,5650,Executive Director Lec,Telephone Rental,4451
http://statistics.data.gov.uk/id/local-authority/47UD,Redditch Borough Council,19/10/2012,172306,UN0920789,0.00,Gamma Business Communications Ltd,5650,Surestart Project,Telephone Calls,4452
http://statistics.data.gov.uk/id/local-authority/47UD,Redditch Borough Council,19/10/2012,172306,UN0920789,10.70,Gamma Business Communications Ltd,5650,Surestart Project,Telephone Rental,4451
http://statistics.data.gov.uk/id/local-authority/47UD,Redditch Borough Council,19/10/2012,172306,UN0920789,0.00,Gamma Business Communications Ltd,5650,Executive Director Lec,Telephone Calls,4452
http://statistics.data.gov.uk/id/local-authority/47UD,Redditch Borough Council,19/10/2012,172306,UN0920789,10.70,Gamma Business Communications Ltd,5650,Executive Director Lec,Telephone Rental,4451
http://statistics.data.gov.uk/id/local-authority/47UD,Redditch Borough Council,19/10/2012,172306,UN0920789,12.07,Gamma Business Communications Ltd,5650,Executive Director Lec,Telephone Calls,4452
http://statistics.data.gov.uk/id/local-authority/47UD,Redditch Borough Council,19/10/2012,172306,UN0920789,77.10,Gamma Business Communications Ltd,5650,Executive Director Lec,Telephone Rental,4451
http://statistics.data.gov.uk/id/local-authority/47UD,Redditch Borough Council,19/10/2012,172306,UN0920789,0.36,Gamma Business Communications Ltd,5650,Executive Director Lec,Telephone Calls,4452
http://statistics.data.gov.uk/id/local-authority/47UD,Redditch Borough Council,19/10/2012,172306,UN0920789,14.00,Gamma Business Communications Ltd,5650,Executive Director Lec,Telephone Rental,4451
http://statistics.data.gov.uk/id/local-authority/47UD,Redditch Borough Council,19/10/2012,172306,UN0920789,0.39,Gamma Business Communications Ltd,5650,Executive Director Lec,Telephone Calls,4452
http://statistics.data.gov.uk/id/local-authority/47UD,Redditch Borough Council,19/10/2012,172306,UN0920789,14.00,Gamma Business Communications Ltd,5650,Executive Director Lec,Telephone Rental,4451
http://statistics.data.gov.uk/id/local-authority/47UD,Redditch Borough Council,19/10/2012,172306,UN0920789,0.00,Gamma Business Communications Ltd,5650,Chief Executive,Telephone Calls,4452
http://statistics.data.gov.uk/id/local-authority/47UD,Redditch Borough Council,19/10/2012,172306,UN0920789,10.70,Gamma Business Communications Ltd,5650,Chief Executive,Telephone Rental,4451
http://statistics.data.gov.uk/id/local-authority/47UD,Redditch Borough Council,19/10/2012,172306,UN0920789,0.29,Gamma Business Communications Ltd,5650,Executive Director Lec,Telephone Calls,4452
http://statistics.data.gov.uk/id/local-authority/47UD,Redditch Borough Council,19/10/2012,172306,UN0920789,14.00,Gamma Business Communications Ltd,5650,Executive Director Lec,Telephone Rental,4451
http://statistics.data.gov.uk/id/local-authority/47UD,Redditch Borough Council,19/10/2012,172306,UN0920789,0.40,Gamma Business Communications Ltd,5650,Executive Director Lec,Telephone Calls,4452
http://statistics.data.gov.uk/id/local-authority/47UD,Redditch Borough Council,19/10/2012,172306,UN0920789,14.00,Gamma Business Communications Ltd,5650,Executive Director Lec,Telephone Rental,4451
http://statistics.data.gov.uk/id/local-authority/47UD,Redditch Borough Council,19/10/2012,172306,UN0920789,0.39,Gamma Business Communications Ltd,5650,Executive Director Lec,Telephone Calls,4452
http://statistics.data.gov.uk/id/local-authority/47UD,Redditch Borough Council,19/10/2012,172306,UN0920789,10.70,Gamma Business Communications Ltd,5650,Executive Director Lec,Telephone Rental,4451
http://statistics.data.gov.uk/id/local-authority/47UD,Redditch Borough Council,19/10/2012,172306,UN0920789,0.00,Gamma Business Communications Ltd,5650,Chief Executive,Telephone Calls,4452
http://statistics.data.gov.uk/id/local-authority/47UD,Redditch Borough Council,19/10/2012,172306,UN0920789,10.70,Gamma Business Communications Ltd,5650,Chief Executive,Telephone Rental,4451
http://statistics.data.gov.uk/id/local-authority/47UD,Redditch Borough Council,19/10/2012,172306,UN0920789,0.00,Gamma Business Communications Ltd,5650,Chief Executive,Telephone Calls,4452
http://statistics.data.gov.uk/id/local-authority/47UD,Redditch Borough Council,19/10/2012,172306,UN0920789,10.70,Gamma Business Communications Ltd,5650,Chief Executive,Telephone Rental,4451
http://statistics.data.gov.uk/id/local-authority/47UD,Redditch Borough Council,19/10/2012,172306,UN0920789,0.00,Gamma Business Communications Ltd,5650,Chief Executive,Telephone Calls,4452
http://statistics.data.gov.uk/id/local-authority/47UD,Redditch Borough Council,19/10/2012,172306,UN0920789,10.70,Gamma Business Communications Ltd,5650,Chief Executive,Telephone Rental,4451
http://statistics.data.gov.uk/id/local-authority/47UD,Redditch Borough Council,19/10/2012,172306,UN0920789,0.00,Gamma Business Communications Ltd,5650,Chief Executive,Telephone Calls,4452
http://statistics.data.gov.uk/id/local-authority/47UD,Redditch Borough Council,19/10/2012,172306,UN0920789,10.70,Gamma Business Communications Ltd,5650,Chief Executive,Telephone Rental,4451
http://statistics.data.gov.uk/id/local-authority/47UD,Redditch Borough Council,19/10/2012,172306,UN0920789,0.00,Gamma Business Communications Ltd,5650,Executive Director Lec,Telephone Calls,4452
http://statistics.data.gov.uk/id/local-authority/47UD,Redditch Borough Council,19/10/2012,172306,UN0920789,33.62,Gamma Business Communications Ltd,5650,Executive Director Lec,Telephone Rental,4451
http://statistics.data.gov.uk/id/local-authority/47UD,Redditch Borough Council,19/10/2012,172306,UN0920789,0.00,Gamma Business Communications Ltd,5650,Executive Director Lec,Telephone Calls,4452
http://statistics.data.gov.uk/id/local-authority/47UD,Redditch Borough Council,19/10/2012,172306,UN0920789,10.70,Gamma Business Communications Ltd,5650,Executive Director Lec,Telephone Rental,4451
http://statistics.data.gov.uk/id/local-authority/47UD,Redditch Borough Council,19/10/2012,172306,UN0920789,1.68,Gamma Business Communications Ltd,5650,Executive Director Lec,Telephone Calls,4452
http://statistics.data.gov.uk/id/local-authority/47UD,Redditch Borough Council,19/10/2012,172306,UN0920789,10.70,Gamma Business Communications Ltd,5650,Executive Director Lec,Telephone Rental,4451
http://statistics.data.gov.uk/id/local-authority/47UD,Redditch Borough Council,19/10/2012,172306,UN0920789,0.00,Gamma Business Communications Ltd,5650,Executive Director Lec,Telephone Calls,4452
http://statistics.data.gov.uk/id/local-authority/47UD,Redditch Borough Council,19/10/2012,172306,UN0920789,10.70,Gamma Business Communications Ltd,5650,Executive Director Lec,Telephone Rental,4451
http://statistics.data.gov.uk/id/local-authority/47UD,Redditch Borough Council,19/10/2012,172306,UN0920789,0.00,Gamma Business Communications Ltd,5650,Executive Director Lec,Telephone Calls,4452
http://statistics.data.gov.uk/id/local-authority/47UD,Redditch Borough Council,19/10/2012,172306,UN0920789,10.70,Gamma Business Communications Ltd,5650,Executive Director Lec,Telephone Rental,4451
http://statistics.data.gov.uk/id/local-authority/47UD,Redditch Borough Council,19/10/2012,172306,UN0920789,1.24,Gamma Business Communications Ltd,5650,Executive Director Lec,Telephone Calls,4452
http://statistics.data.gov.uk/id/local-authority/47UD,Redditch Borough Council,19/10/2012,172306,UN0920789,18.90,Gamma Business Communications Ltd,5650,Executive Director Lec,Telephone Rental,4451
http://statistics.data.gov.uk/id/local-authority/47UD,Redditch Borough Council,19/10/2012,172306,UN0920789,0.16,Gamma Business Communications Ltd,5650,Executive Director Lec,Telephone Calls,4452
http://statistics.data.gov.uk/id/local-authority/47UD,Redditch Borough Council,19/10/2012,172306,UN0920789,14.00,Gamma Business Communications Ltd,5650,Executive Director Lec,Telephone Rental,4451
http://statistics.data.gov.uk/id/local-authority/47UD,Redditch Borough Council,19/10/2012,172306,UN0920789,0.42,Gamma Business Communications Ltd,5650,Executive Director Lec,Telephone Calls,4452
http://statistics.data.gov.uk/id/local-authority/47UD,Redditch Borough Council,19/10/2012,172306,UN0920789,14.00,Gamma Business Communications Ltd,5650,Executive Director Lec,Telephone Rental,4451
http://statistics.data.gov.uk/id/local-authority/47UD,Redditch Borough Council,19/10/2012,172306,UN0920789,0.18,Gamma Business Communications Ltd,5650,Executive Director Lec,Telephone Calls,4452
http://statistics.data.gov.uk/id/local-authority/47UD,Redditch Borough Council,19/10/2012,172306,UN0920789,14.00,Gamma Business Communications Ltd,5650,Executive Director Lec,Telephone Rental,4451
http://statistics.data.gov.uk/id/local-authority/47UD,Redditch Borough Council,19/10/2012,172306,UN0920789,0.09,Gamma Business Communications Ltd,5650,Executive Director Lec,Telephone Calls,4452
http://statistics.data.gov.uk/id/local-authority/47UD,Redditch Borough Council,19/10/2012,172306,UN0920789,14.00,Gamma Business Communications Ltd,5650,Executive Director Lec,Telephone Rental,4451
http://statistics.data.gov.uk/id/local-authority/47UD,Redditch Borough Council,19/10/2012,172306,UN0920789,0.00,Gamma Business Communications Ltd,5650,Executive Director Lec,Telephone Calls,4452
http://statistics.data.gov.uk/id/local-authority/47UD,Redditch Borough Council,19/10/2012,172306,UN0920789,14.00,Gamma Business Communications Ltd,5650,Executive Director Lec,Telephone Rental,4451
http://statistics.data.gov.uk/id/local-authority/47UD,Redditch Borough Council,26/10/2012,172499,E3001010,"1,143.34",Gamma Business Communications Ltd,5650,Exec. Director Fin. & Resource,Electricity,3300
http://statistics.data.gov.uk/id/local-authority/47UD,Redditch Borough Council,26/10/2012,172499,E3001010,61.56,Gamma Business Communications Ltd,5650,Housing Revenue Account,Electricity,3300
http://statistics.data.gov.uk/id/local-authority/47UD,Redditch Borough Council,26/10/2012,172499,E3001010,46.11,Gamma Business Communications Ltd,5650,Housing Revenue Account,Electricity,3300
http://statistics.data.gov.uk/id/local-authority/47UD,Redditch Borough Council,26/10/2012,172499,E3001010,134.97,Gamma Business Communications Ltd,5650,Housing Revenue Account,Electricity,3300
http://statistics.data.gov.uk/id/local-authority/47UD,Redditch Borough Council,26/10/2012,172499,E3001010,10.51,Gamma Business Communications Ltd,5650,Executive Director Lec,Electricity,3300
http://statistics.data.gov.uk/id/local-authority/47UD,Redditch Borough Council,26/10/2012,172499,E3001010,"1,204.87",Gamma Business Communications Ltd,5650,Executive Director Lec,Electricity,3300
http://statistics.data.gov.uk/id/local-authority/47UD,Redditch Borough Council,26/10/2012,172499,E3001010,219.89,Gamma Business Communications Ltd,5650,Exec. Director Fin. & Resource,Electricity,3300
http://statistics.data.gov.uk/id/local-authority/47UD,Redditch Borough Council,26/10/2012,172499,E3001010,250.61,Gamma Business Communications Ltd,5650,Executive Director Lec,Electricity,3300
http://statistics.data.gov.uk/id/local-authority/47UD,Redditch Borough Council,26/10/2012,172499,E3001010,597.46,Gamma Business Communications Ltd,5650,Housing Revenue Account,Electricity,3300
http://statistics.data.gov.uk/id/local-authority/47UD,Redditch Borough Council,26/10/2012,172499,E3001010,79.54,Gamma Business Communications Ltd,5650,Housing Revenue Account,Electricity,3300
http://statistics.data.gov.uk/id/local-authority/47UD,Redditch Borough Council,26/10/2012,172499,E3001010,362.48,Gamma Business Communications Ltd,5650,Housing Revenue Account,Electricity,3300
http://statistics.data.gov.uk/id/local-authority/47UD,Redditch Borough Council,26/10/2012,172499,E3001010,256.02,Gamma Business Communications Ltd,5650,Housing Revenue Account,Electricity,3300
http://statistics.data.gov.uk/id/local-authority/47UD,Redditch Borough Council,26/10/2012,172499,E3001010,428.54,Gamma Business Communications Ltd,5650,Housing Revenue Account,Electricity,3300
http://statistics.data.gov.uk/id/local-authority/47UD,Redditch Borough Council,26/10/2012,172499,E3001010,63.88,Gamma Business Communications Ltd,5650,Housing Revenue Account,Electricity,3300
http://statistics.data.gov.uk/id/local-authority/47UD,Redditch Borough Council,26/10/2012,172499,E3001010,20.55,Gamma Business Communications Ltd,5650,Exec. Director Fin. & Resource,Electricity,3300
http://statistics.data.gov.uk/id/local-authority/47UD,Redditch Borough Council,26/10/2012,172499,E3001010,18.04,Gamma Business Communications Ltd,5650,Housing Revenue Account,Electricity,3300
http://statistics.data.gov.uk/id/local-authority/47UD,Redditch Borough Council,26/10/2012,172499,E3001010,58.68,Gamma Business Communications Ltd,5650,Housing Revenue Account,Electricity,3300
http://statistics.data.gov.uk/id/local-authority/47UD,Redditch Borough Council,26/10/2012,172499,E3001010,32.09,Gamma Business Communications Ltd,5650,Housing Revenue Account,Electricity,3300
http://statistics.data.gov.uk/id/local-authority/47UD,Redditch Borough Council,26/10/2012,172499,E3001010,29.77,Gamma Business Communications Ltd,5650,Housing Revenue Account,Electricity,3300
http://statistics.data.gov.uk/id/local-authority/47UD,Redditch Borough Council,26/10/2012,172499,E3001010,242.66,Gamma Business Communications Ltd,5650,Housing Revenue Account,Electricity,3300
http://statistics.data.gov.uk/id/local-authority/47UD,Redditch Borough Council,26/10/2012,172499,E3001010,727.41,Gamma Business Communications Ltd,5650,Executive Director Lec,Electricity,3300
http://statistics.data.gov.uk/id/local-authority/47UD,Redditch Borough Council,26/10/2012,172499,E3001010,641.38,Gamma Business Communications Ltd,5650,Housing Revenue Account,Electricity,3300
http://statistics.data.gov.uk/id/local-authority/47UD,Redditch Borough Council,26/10/2012,172499,E3001010,16.34,Gamma Business Communications Ltd,5650,Exec. Director Prrh,Electricity,3300
http://statistics.data.gov.uk/id/local-authority/47UD,Redditch Borough Council,26/10/2012,172499,E3001010,38.30,Gamma Business Communications Ltd,5650,Housing Revenue Account,Electricity,3300
http://statistics.data.gov.uk/id/local-authority/47UD,Redditch Borough Council,26/10/2012,172499,E3001010,36.44,Gamma Business Communications Ltd,5650,Housing Revenue Account,Electricity,3300
http://statistics.data.gov.uk/id/local-authority/47UD,Redditch Borough Council,26/10/2012,172499,E3001010,54.60,Gamma Business Communications Ltd,5650,Housing Revenue Account,Electricity,3300
http://statistics.data.gov.uk/id/local-authority/47UD,Redditch Borough Council,26/10/2012,172499,E3001010,"2,207.07",Gamma Business Communications Ltd,5650,Housing Revenue Account,Electricity,3300
http://statistics.data.gov.uk/id/local-authority/47UD,Redditch Borough Council,26/10/2012,172499,E3001010,"6,701.52",Gamma Business Communications Ltd,5650,Exec. Director Fin. & Resource,Electricity,3300
http://statistics.data.gov.uk/id/local-authority/47UD,Redditch Borough Council,26/10/2012,172499,E3001010,-43.67,Gamma Business Communications Ltd,5650,Exec. Director Prrh,Electricity,3300
http://statistics.data.gov.uk/id/local-authority/47UD,Redditch Borough Council,26/10/2012,172499,E3001010,-15.00,Gamma Business Communications Ltd,5650,Exec. Director Prrh,Electricity,3300
http://statistics.data.gov.uk/id/local-authority/47UD,Redditch Borough Council,26/10/2012,172499,E3001010,29.60,Gamma Business Communications Ltd,5650,Housing Revenue Account,Electricity,3300
http://statistics.data.gov.uk/id/local-authority/47UD,Redditch Borough Council,26/10/2012,172499,E3001010,8.99,Gamma Business Communications Ltd,5650,Executive Director Lec,Electricity,3300
http://statistics.data.gov.uk/id/local-authority/47UD,Redditch Borough Council,26/10/2012,172499,E3001010,33.41,Gamma Business Communications Ltd,5650,Housing Revenue Account,Electricity,3300
http://statistics.data.gov.uk/id/local-authority/47UD,Redditch Borough Council,26/10/2012,172561,E3001010C,"-1,143.34",Gamma Business Communications Ltd,5650,Exec. Director Fin. & Resource,Electricity,3300
http://statistics.data.gov.uk/id/local-authority/47UD,Redditch Borough Council,26/10/2012,172561,E3001010C,-61.56,Gamma Business Communications Ltd,5650,Housing Revenue Account,Electricity,3300
http://statistics.data.gov.uk/id/local-authority/47UD,Redditch Borough Council,26/10/2012,172561,E3001010C,-46.11,Gamma Business Communications Ltd,5650,Housing Revenue Account,Electricity,3300
http://statistics.data.gov.uk/id/local-authority/47UD,Redditch Borough Council,26/10/2012,172561,E3001010C,-134.97,Gamma Business Communications Ltd,5650,Housing Revenue Account,Electricity,3300
http://statistics.data.gov.uk/id/local-authority/47UD,Redditch Borough Council,26/10/2012,172561,E3001010C,-10.51,Gamma Business Communications Ltd,5650,Executive Director Lec,Electricity,3300
http://statistics.data.gov.uk/id/local-authority/47UD,Redditch Borough Council,26/10/2012,172561,E3001010C,"-1,204.87",Gamma Business Communications Ltd,5650,Executive Director Lec,Electricity,3300
http://statistics.data.gov.uk/id/local-authority/47UD,Redditch Borough Council,26/10/2012,172561,E3001010C,-219.89,Gamma Business Communications Ltd,5650,Exec. Director Fin. & Resource,Electricity,3300
http://statistics.data.gov.uk/id/local-authority/47UD,Redditch Borough Council,26/10/2012,172561,E3001010C,-250.61,Gamma Business Communications Ltd,5650,Executive Director Lec,Electricity,3300
http://statistics.data.gov.uk/id/local-authority/47UD,Redditch Borough Council,26/10/2012,172561,E3001010C,-597.46,Gamma Business Communications Ltd,5650,Housing Revenue Account,Electricity,3300
http://statistics.data.gov.uk/id/local-authority/47UD,Redditch Borough Council,26/10/2012,172561,E3001010C,-79.54,Gamma Business Communications Ltd,5650,Housing Revenue Account,Electricity,3300
http://statistics.data.gov.uk/id/local-authority/47UD,Redditch Borough Council,26/10/2012,172561,E3001010C,-362.48,Gamma Business Communications Ltd,5650,Housing Revenue Account,Electricity,3300
http://statistics.data.gov.uk/id/local-authority/47UD,Redditch Borough Council,26/10/2012,172561,E3001010C,-256.02,Gamma Business Communications Ltd,5650,Housing Revenue Account,Electricity,3300
http://statistics.data.gov.uk/id/local-authority/47UD,Redditch Borough Council,26/10/2012,172561,E3001010C,-428.54,Gamma Business Communications Ltd,5650,Housing Revenue Account,Electricity,3300
http://statistics.data.gov.uk/id/local-authority/47UD,Redditch Borough Council,26/10/2012,172561,E3001010C,-63.88,Gamma Business Communications Ltd,5650,Housing Revenue Account,Electricity,3300
http://statistics.data.gov.uk/id/local-authority/47UD,Redditch Borough Council,26/10/2012,172561,E3001010C,-20.55,Gamma Business Communications Ltd,5650,Exec. Director Fin. & Resource,Electricity,3300
http://statistics.data.gov.uk/id/local-authority/47UD,Redditch Borough Council,26/10/2012,172561,E3001010C,-18.04,Gamma Business Communications Ltd,5650,Housing Revenue Account,Electricity,3300
http://statistics.data.gov.uk/id/local-authority/47UD,Redditch Borough Council,26/10/2012,172561,E3001010C,-58.68,Gamma Business Communications Ltd,5650,Housing Revenue Account,Electricity,3300
http://statistics.data.gov.uk/id/local-authority/47UD,Redditch Borough Council,26/10/2012,172561,E3001010C,-32.09,Gamma Business Communications Ltd,5650,Housing Revenue Account,Electricity,3300
http://statistics.data.gov.uk/id/local-authority/47UD,Redditch Borough Council,26/10/2012,172561,E3001010C,-29.77,Gamma Business Communications Ltd,5650,Housing Revenue Account,Electricity,3300
http://statistics.data.gov.uk/id/local-authority/47UD,Redditch Borough Council,26/10/2012,172561,E3001010C,-242.66,Gamma Business Communications Ltd,5650,Housing Revenue Account,Electricity,3300
http://statistics.data.gov.uk/id/local-authority/47UD,Redditch Borough Council,26/10/2012,172561,E3001010C,-727.41,Gamma Business Communications Ltd,5650,Executive Director Lec,Electricity,3300
http://statistics.data.gov.uk/id/local-authority/47UD,Redditch Borough Council,26/10/2012,172561,E3001010C,-641.38,Gamma Business Communications Ltd,5650,Housing Revenue Account,Electricity,3300
http://statistics.data.gov.uk/id/local-authority/47UD,Redditch Borough Council,26/10/2012,172561,E3001010C,-16.34,Gamma Business Communications Ltd,5650,Exec. Director Prrh,Electricity,3300
http://statistics.data.gov.uk/id/local-authority/47UD,Redditch Borough Council,26/10/2012,172561,E3001010C,-38.30,Gamma Business Communications Ltd,5650,Housing Revenue Account,Electricity,3300
http://statistics.data.gov.uk/id/local-authority/47UD,Redditch Borough Council,26/10/2012,172561,E3001010C,-36.44,Gamma Business Communications Ltd,5650,Housing Revenue Account,Electricity,3300
http://statistics.data.gov.uk/id/local-authority/47UD,Redditch Borough Council,26/10/2012,172561,E3001010C,-54.60,Gamma Business Communications Ltd,5650,Housing Revenue Account,Electricity,3300
http://statistics.data.gov.uk/id/local-authority/47UD,Redditch Borough Council,26/10/2012,172561,E3001010C,"-2,207.07",Gamma Business Communications Ltd,5650,Housing Revenue Account,Electricity,3300
http://statistics.data.gov.uk/id/local-authority/47UD,Redditch Borough Council,26/10/2012,172561,E3001010C,"-6,701.52",Gamma Business Communications Ltd,5650,Exec. Director Fin. & Resource,Electricity,3300
http://statistics.data.gov.uk/id/local-authority/47UD,Redditch Borough Council,26/10/2012,172561,E3001010C,43.67,Gamma Business Communications Ltd,5650,Exec. Director Prrh,Electricity,3300
http://statistics.data.gov.uk/id/local-authority/47UD,Redditch Borough Council,26/10/2012,172561,E3001010C,15.00,Gamma Business Communications Ltd,5650,Exec. Director Prrh,Electricity,3300
http://statistics.data.gov.uk/id/local-authority/47UD,Redditch Borough Council,26/10/2012,172561,E3001010C,-29.60,Gamma Business Communications Ltd,5650,Housing Revenue Account,Electricity,3300
http://statistics.data.gov.uk/id/local-authority/47UD,Redditch Borough Council,26/10/2012,172561,E3001010C,-8.99,Gamma Business Communications Ltd,5650,Executive Director Lec,Electricity,3300
http://statistics.data.gov.uk/id/local-authority/47UD,Redditch Borough Council,26/10/2012,172561,E3001010C,-33.41,Gamma Business Communications Ltd,5650,Housing Revenue Account,Electricity,3300
http://statistics.data.gov.uk/id/local-authority/47UD,Redditch Borough Council,19/10/2012,172351,V008499857757,8.51,Everything Everywhere Ltd,5658,Surestart Project,Mobile Phone,4455
http://statistics.data.gov.uk/id/local-authority/47UD,Redditch Borough Council,19/10/2012,172351,V008499857757,28.05,Everything Everywhere Ltd,5658,Exec. Director Fin. & Resource,Mobile Phone,4455
http://statistics.data.gov.uk/id/local-authority/47UD,Redditch Borough Council,19/10/2012,172351,V008499857757,0.80,Everything Everywhere Ltd,5658,Executive Director Lec,Mobile Phone,4455
http://statistics.data.gov.uk/id/local-authority/47UD,Redditch Borough Council,19/10/2012,172351,V008499857757,8.51,Everything Everywhere Ltd,5658,Surestart Project,Mobile Phone,4455
http://statistics.data.gov.uk/id/local-authority/47UD,Redditch Borough Council,19/10/2012,172351,V008499857757,8.51,Everything Everywhere Ltd,5658,Surestart Project,Mobile Phone,4455
http://statistics.data.gov.uk/id/local-authority/47UD,Redditch Borough Council,19/10/2012,172351,V008499857757,8.51,Everything Everywhere Ltd,5658,Surestart Project,Mobile Phone,4455
http://statistics.data.gov.uk/id/local-authority/47UD,Redditch Borough Council,19/10/2012,172351,V008499857757,0.74,Everything Everywhere Ltd,5658,Executive Director Lec,Mobile Phone,4455
http://statistics.data.gov.uk/id/local-authority/47UD,Redditch Borough Council,19/10/2012,172351,V008499857757,1.56,Everything Everywhere Ltd,5658,Exec. Director Fin. & Resource,Mobile Phone,4455
http://statistics.data.gov.uk/id/local-authority/47UD,Redditch Borough Council,19/10/2012,172351,V008499857757,18.89,Everything Everywhere Ltd,5658,Exec. Director Fin. & Resource,Mobile Phone,4455
http://statistics.data.gov.uk/id/local-authority/47UD,Redditch Borough Council,19/10/2012,172351,V008499857757,15.50,Everything Everywhere Ltd,5658,Exec. Director Fin. & Resource,Mobile Phone,4455
http://statistics.data.gov.uk/id/local-authority/47UD,Redditch Borough Council,19/10/2012,172351,V008499857757,9.20,Everything Everywhere Ltd,5658,Executive Director Lec,Mobile Phone,4455
http://statistics.data.gov.uk/id/local-authority/47UD,Redditch Borough Council,19/10/2012,172351,V008499857757,12.77,Everything Everywhere Ltd,5658,Exec. Director Fin. & Resource,Mobile Phone,4455
http://statistics.data.gov.uk/id/local-authority/47UD,Redditch Borough Council,19/10/2012,172351,V008499857757,12.77,Everything Everywhere Ltd,5658,Exec. Director Fin. & Resource,Mobile Phone,4455
http://statistics.data.gov.uk/id/local-authority/47UD,Redditch Borough Council,19/10/2012,172351,V008499857757,1.35,Everything Everywhere Ltd,5658,Executive Director Lec,Mobile Phone,4455
http://statistics.data.gov.uk/id/local-authority/47UD,Redditch Borough Council,19/10/2012,172351,V008499857757,12.77,Everything Everywhere Ltd,5658,Executive Director Lec,Mobile Phone,4455
http://statistics.data.gov.uk/id/local-authority/47UD,Redditch Borough Council,19/10/2012,172351,V008499857757,12.77,Everything Everywhere Ltd,5658,Exec. Director Prrh,Mobile Phone,4455
http://statistics.data.gov.uk/id/local-authority/47UD,Redditch Borough Council,19/10/2012,172351,V008499857757,2.76,Everything Everywhere Ltd,5658,Housing Repairs Account,Mobile Phone,4455
http://statistics.data.gov.uk/id/local-authority/47UD,Redditch Borough Council,19/10/2012,172351,V008499857757,4.74,Everything Everywhere Ltd,5658,Exec. Director Prrh,Mobile Phone,4455
http://statistics.data.gov.uk/id/local-authority/47UD,Redditch Borough Council,19/10/2012,172351,V008499857757,0.10,Everything Everywhere Ltd,5658,Exec. Director Prrh,Mobile Phone,4455
http://statistics.data.gov.uk/id/local-authority/47UD,Redditch Borough Council,19/10/2012,172351,V008499857757,0.00,Everything Everywhere Ltd,5658,Exec. Director Prrh,Mobile Phone,4455
http://statistics.data.gov.uk/id/local-authority/47UD,Redditch Borough Council,19/10/2012,172351,V008499857757,7.33,Everything Everywhere Ltd,5658,Executive Director Lec,Mobile Phone,4455
http://statistics.data.gov.uk/id/local-authority/47UD,Redditch Borough Council,19/10/2012,172351,V008499857757,11.66,Everything Everywhere Ltd,5658,Executive Director Lec,Mobile Phone,4455
http://statistics.data.gov.uk/id/local-authority/47UD,Redditch Borough Council,19/10/2012,172351,V008499857757,0.34,Everything Everywhere Ltd,5658,Surestart Project,Mobile Phone,4455
http://statistics.data.gov.uk/id/local-authority/47UD,Redditch Borough Council,19/10/2012,172351,V008499857757,15.91,Everything Everywhere Ltd,5658,Executive Director Lec,Mobile Phone,4455
http://statistics.data.gov.uk/id/local-authority/47UD,Redditch Borough Council,19/10/2012,172351,V008499857757,5.37,Everything Everywhere Ltd,5658,Surestart Project,Mobile Phone,4455
http://statistics.data.gov.uk/id/local-authority/47UD,Redditch Borough Council,19/10/2012,172351,V008499857757,2.17,Everything Everywhere Ltd,5658,Exec. Director Fin. & Resource,Mobile Phone,4455
http://statistics.data.gov.uk/id/local-authority/47UD,Redditch Borough Council,19/10/2012,172351,V008499857757,29.41,Everything Everywhere Ltd,5658,Housing Repairs Account,Mobile Phone,4455
http://statistics.data.gov.uk/id/local-authority/47UD,Redditch Borough Council,19/10/2012,172351,V008499857757,5.88,Everything Everywhere Ltd,5658,Executive Director Lec,Mobile Phone,4455
http://statistics.data.gov.uk/id/local-authority/47UD,Redditch Borough Council,19/10/2012,172351,V008499857757,0.60,Everything Everywhere Ltd,5658,Executive Director Lec,Mobile Phone,4455
http://statistics.data.gov.uk/id/local-authority/47UD,Redditch Borough Council,19/10/2012,172351,V008499857757,1.23,Everything Everywhere Ltd,5658,Executive Director Lec,Mobile Phone,4455
http://statistics.data.gov.uk/id/local-authority/47UD,Redditch Borough Council,19/10/2012,172351,V008499857757,1.16,Everything Everywhere Ltd,5658,Executive Director Lec,Mobile Phone,4455
http://statistics.data.gov.uk/id/local-authority/47UD,Redditch Borough Council,19/10/2012,172351,V008499857757,0.76,Everything Everywhere Ltd,5658,Executive Director Lec,Mobile Phone,4455
http://statistics.data.gov.uk/id/local-authority/47UD,Redditch Borough Council,19/10/2012,172351,V008499857757,1.60,Everything Everywhere Ltd,5658,Executive Director Lec,Mobile Phone,4455
http://statistics.data.gov.uk/id/local-authority/47UD,Redditch Borough Council,19/10/2012,172351,V008499857757,0.82,Everything Everywhere Ltd,5658,Executive Director Lec,Mobile Phone,4455
http://statistics.data.gov.uk/id/local-authority/47UD,Redditch Borough Council,19/10/2012,172351,V008499857757,0.71,Everything Everywhere Ltd,5658,Executive Director Lec,Mobile Phone,4455
http://statistics.data.gov.uk/id/local-authority/47UD,Redditch Borough Council,19/10/2012,172351,V008499857757,0.53,Everything Everywhere Ltd,5658,Executive Director Lec,Mobile Phone,4455
http://statistics.data.gov.uk/id/local-authority/47UD,Redditch Borough Council,19/10/2012,172351,V008499857757,0.30,Everything Everywhere Ltd,5658,Executive Director Lec,Mobile Phone,4455
http://statistics.data.gov.uk/id/local-authority/47UD,Redditch Borough Council,19/10/2012,172351,V008499857757,1.84,Everything Everywhere Ltd,5658,Executive Director Lec,Mobile Phone,4455
http://statistics.data.gov.uk/id/local-authority/47UD,Redditch Borough Council,19/10/2012,172351,V008499857757,0.17,Everything Everywhere Ltd,5658,Executive Director Lec,Mobile Phone,4455
http://statistics.data.gov.uk/id/local-authority/47UD,Redditch Borough Council,19/10/2012,172351,V008499857757,9.38,Everything Everywhere Ltd,5658,Executive Director Lec,Mobile Phone,4455
http://statistics.data.gov.uk/id/local-authority/47UD,Redditch Borough Council,19/10/2012,172351,V008499857757,4.64,Everything Everywhere Ltd,5658,Executive Director Lec,Mobile Phone,4455
http://statistics.data.gov.uk/id/local-authority/47UD,Redditch Borough Council,19/10/2012,172351,V008499857757,0.73,Everything Everywhere Ltd,5658,Executive Director Lec,Mobile Phone,4455
http://statistics.data.gov.uk/id/local-authority/47UD,Redditch Borough Council,19/10/2012,172351,V008499857757,0.85,Everything Everywhere Ltd,5658,Executive Director Lec,Mobile Phone,4455
http://statistics.data.gov.uk/id/local-authority/47UD,Redditch Borough Council,19/10/2012,172351,V008499857757,0.50,Everything Everywhere Ltd,5658,Executive Director Lec,Mobile Phone,4455
http://statistics.data.gov.uk/id/local-authority/47UD,Redditch Borough Council,19/10/2012,172351,V008499857757,3.78,Everything Everywhere Ltd,5658,Executive Director Lec,Mobile Phone,4455
http://statistics.data.gov.uk/id/local-authority/47UD,Redditch Borough Council,19/10/2012,172351,V008499857757,11.53,Everything Everywhere Ltd,5658,Executive Director Lec,Mobile Phone,4455
http://statistics.data.gov.uk/id/local-authority/47UD,Redditch Borough Council,19/10/2012,172351,V008499857757,0.33,Everything Everywhere Ltd,5658,Executive Director Lec,Mobile Phone,4455
http://statistics.data.gov.uk/id/local-authority/47UD,Redditch Borough Council,19/10/2012,172351,V008499857757,0.87,Everything Everywhere Ltd,5658,Executive Director Lec,Mobile Phone,4455
http://statistics.data.gov.uk/id/local-authority/47UD,Redditch Borough Council,19/10/2012,172351,V008499857757,10.36,Everything Everywhere Ltd,5658,Executive Director Lec,Mobile Phone,4455
http://statistics.data.gov.uk/id/local-authority/47UD,Redditch Borough Council,19/10/2012,172351,V008499857757,0.47,Everything Everywhere Ltd,5658,Executive Director Lec,Mobile Phone,4455
http://statistics.data.gov.uk/id/local-authority/47UD,Redditch Borough Council,19/10/2012,172351,V008499857757,10.25,Everything Everywhere Ltd,5658,Housing Repairs Account,Mobile Phone,4455
http://statistics.data.gov.uk/id/local-authority/47UD,Redditch Borough Council,19/10/2012,172351,V008499857757,2.99,Everything Everywhere Ltd,5658,Housing Repairs Account,Mobile Phone,4455
http://statistics.data.gov.uk/id/local-authority/47UD,Redditch Borough Council,19/10/2012,172351,V008499857757,3.54,Everything Everywhere Ltd,5658,Housing Repairs Account,Mobile Phone,4455
http://statistics.data.gov.uk/id/local-authority/47UD,Redditch Borough Council,19/10/2012,172351,V008499857757,89.28,Everything Everywhere Ltd,5658,Exec. Director Prrh,Mobile Phone,4455
http://statistics.data.gov.uk/id/local-authority/47UD,Redditch Borough Council,19/10/2012,172351,V008499857757,17.00,Everything Everywhere Ltd,5658,Executive Director Lec,Mobile Phone,4455
http://statistics.data.gov.uk/id/local-authority/47UD,Redditch Borough Council,19/10/2012,172351,V008499857757,17.00,Everything Everywhere Ltd,5658,Executive Director Lec,Mobile Phone,4455
http://statistics.data.gov.uk/id/local-authority/47UD,Redditch Borough Council,19/10/2012,172351,V008499857757,17.00,Everything Everywhere Ltd,5658,Exec. Director Prrh,Mobile Phone,4455
http://statistics.data.gov.uk/id/local-authority/47UD,Redditch Borough Council,19/10/2012,172351,V008499857757,6.12,Everything Everywhere Ltd,5658,Executive Director Lec,Mobile Phone,4455
http://statistics.data.gov.uk/id/local-authority/47UD,Redditch Borough Council,19/10/2012,172351,V008499857757,0.00,Everything Everywhere Ltd,5658,Executive Director Lec,Mobile Phone,4455
http://statistics.data.gov.uk/id/local-authority/47UD,Redditch Borough Council,19/10/2012,172351,V008499857757,2.52,Everything Everywhere Ltd,5658,Housing Repairs Account,Mobile Phone,4455
http://statistics.data.gov.uk/id/local-authority/47UD,Redditch Borough Council,19/10/2012,172351,V008499857757,0.09,Everything Everywhere Ltd,5658,Executive Director Lec,Mobile Phone,4455
http://statistics.data.gov.uk/id/local-authority/47UD,Redditch Borough Council,19/10/2012,172351,V008499857757,1.02,Everything Everywhere Ltd,5658,Executive Director Lec,Mobile Phone,4455
http://statistics.data.gov.uk/id/local-authority/47UD,Redditch Borough Council,19/10/2012,172351,V008499857757,0.28,Everything Everywhere Ltd,5658,Executive Director Lec,Mobile Phone,4455
http://statistics.data.gov.uk/id/local-authority/47UD,Redditch Borough Council,19/10/2012,172351,V008499857757,3.03,Everything Everywhere Ltd,5658,Executive Director Lec,Mobile Phone,4455
http://statistics.data.gov.uk/id/local-authority/47UD,Redditch Borough Council,19/10/2012,172351,V008499857757,0.00,Everything Everywhere Ltd,5658,Executive Director Lec,Mobile Phone,4455
http://statistics.data.gov.uk/id/local-authority/47UD,Redditch Borough Council,19/10/2012,172351,V008499857757,5.76,Everything Everywhere Ltd,5658,Executive Director Lec,Mobile Phone,4455
http://statistics.data.gov.uk/id/local-authority/47UD,Redditch Borough Council,19/10/2012,172351,V008499857757,0.05,Everything Everywhere Ltd,5658,Executive Director Lec,Mobile Phone,4455
http://statistics.data.gov.uk/id/local-authority/47UD,Redditch Borough Council,19/10/2012,172351,V008499857757,4.52,Everything Everywhere Ltd,5658,Executive Director Lec,Mobile Phone,4455
http://statistics.data.gov.uk/id/local-authority/47UD,Redditch Borough Council,19/10/2012,172351,V008499857757,6.24,Everything Everywhere Ltd,5658,Executive Director Lec,Mobile Phone,4455
http://statistics.data.gov.uk/id/local-authority/47UD,Redditch Borough Council,19/10/2012,172351,V008499857757,9.03,Everything Everywhere Ltd,5658,Exec. Director Fin. & Resource,Mobile Phone,4455
http://statistics.data.gov.uk/id/local-authority/47UD,Redditch Borough Council,19/10/2012,172351,V008499857757,26.73,Everything Everywhere Ltd,5658,Exec. Director Prrh,Mobile Phone,4455
http://statistics.data.gov.uk/id/local-authority/47UD,Redditch Borough Council,19/10/2012,172351,V008499857757,0.04,Everything Everywhere Ltd,5658,Exec. Director Prrh,Mobile Phone,4455
http://statistics.data.gov.uk/id/local-authority/47UD,Redditch Borough Council,19/10/2012,172351,V008499857757,2.17,Everything Everywhere Ltd,5658,Housing Revenue Account,Mobile Phone,4455
http://statistics.data.gov.uk/id/local-authority/47UD,Redditch Borough Council,19/10/2012,172351,V008499857757,6.76,Everything Everywhere Ltd,5658,Executive Director Lec,Mobile Phone,4455
http://statistics.data.gov.uk/id/local-authority/47UD,Redditch Borough Council,19/10/2012,172351,V008499857757,0.85,Everything Everywhere Ltd,5658,Exec. Director Fin. & Resource,Mobile Phone,4455
http://statistics.data.gov.uk/id/local-authority/47UD,Redditch Borough Council,19/10/2012,172351,V008499857757,9.32,Everything Everywhere Ltd,5658,Exec. Director Prrh,Mobile Phone,4455
http://statistics.data.gov.uk/id/local-authority/47UD,Redditch Borough Council,19/10/2012,172351,V008499857757,5.62,Everything Everywhere Ltd,5658,Executive Director Lec,Mobile Phone,4455
http://statistics.data.gov.uk/id/local-authority/47UD,Redditch Borough Council,19/10/2012,172351,V008499857757,1.01,Everything Everywhere Ltd,5658,Executive Director Lec,Mobile Phone,4455
http://statistics.data.gov.uk/id/local-authority/47UD,Redditch Borough Council,19/10/2012,172351,V008499857757,1.37,Everything Everywhere Ltd,5658,Housing Repairs Account,Mobile Phone,4455
http://statistics.data.gov.uk/id/local-authority/47UD,Redditch Borough Council,19/10/2012,172351,V008499857757,1.22,Everything Everywhere Ltd,5658,Housing Repairs Account,Mobile Phone,4455
http://statistics.data.gov.uk/id/local-authority/47UD,Redditch Borough Council,19/10/2012,172351,V008499857757,18.02,Everything Everywhere Ltd,5658,Exec. Director Prrh,Mobile Phone,4455
http://statistics.data.gov.uk/id/local-authority/47UD,Redditch Borough Council,19/10/2012,172351,V008499857757,19.01,Everything Everywhere Ltd,5658,Executive Director Lec,Mobile Phone,4455
http://statistics.data.gov.uk/id/local-authority/47UD,Redditch Borough Council,19/10/2012,172351,V008499857757,2.79,Everything Everywhere Ltd,5658,Housing Revenue Account,Mobile Phone,4455
http://statistics.data.gov.uk/id/local-authority/47UD,Redditch Borough Council,19/10/2012,172351,V008499857757,0.46,Everything Everywhere Ltd,5658,Executive Director Lec,Mobile Phone,4455
http://statistics.data.gov.uk/id/local-authority/47UD,Redditch Borough Council,19/10/2012,172351,V008499857757,0.89,Everything Everywhere Ltd,5658,Executive Director Lec,Mobile Phone,4455
http://statistics.data.gov.uk/id/local-authority/47UD,Redditch Borough Council,19/10/2012,172351,V008499857757,8.35,Everything Everywhere Ltd,5658,Exec. Director Prrh,Mobile Phone,4455
http://statistics.data.gov.uk/id/local-authority/47UD,Redditch Borough Council,19/10/2012,172351,V008499857757,2.11,Everything Everywhere Ltd,5658,Executive Director Lec,Mobile Phone,4455
http://statistics.data.gov.uk/id/local-authority/47UD,Redditch Borough Council,19/10/2012,172351,V008499857757,2.17,Everything Everywhere Ltd,5658,Housing Revenue Account,Mobile Phone,4455
http://statistics.data.gov.uk/id/local-authority/47UD,Redditch Borough Council,19/10/2012,172351,V008499857757,1.56,Everything Everywhere Ltd,5658,Housing Revenue Account,Mobile Phone,4455
http://statistics.data.gov.uk/id/local-authority/47UD,Redditch Borough Council,19/10/2012,172351,V008499857757,8.48,Everything Everywhere Ltd,5658,Exec. Director Prrh,Mobile Phone,4455
http://statistics.data.gov.uk/id/local-authority/47UD,Redditch Borough Council,19/10/2012,172351,V008499857757,18.30,Everything Everywhere Ltd,5658,Housing Revenue Account,Mobile Phone,4455
http://statistics.data.gov.uk/id/local-authority/47UD,Redditch Borough Council,19/10/2012,172351,V008499857757,21.75,Everything Everywhere Ltd,5658,Exec. Director Fin. & Resource,Mobile Phone,4455
http://statistics.data.gov.uk/id/local-authority/47UD,Redditch Borough Council,19/10/2012,172351,V008499857757,11.24,Everything Everywhere Ltd,5658,Executive Director Lec,Mobile Phone,4455
http://statistics.data.gov.uk/id/local-authority/47UD,Redditch Borough Council,19/10/2012,172351,V008499857757,0.67,Everything Everywhere Ltd,5658,Executive Director Lec,Mobile Phone,4455
http://statistics.data.gov.uk/id/local-authority/47UD,Redditch Borough Council,19/10/2012,172351,V008499857757,5.54,Everything Everywhere Ltd,5658,Executive Director Lec,Mobile Phone,4455
http://statistics.data.gov.uk/id/local-authority/47UD,Redditch Borough Council,19/10/2012,172351,V008499857757,0.25,Everything Everywhere Ltd,5658,Exec. Director Prrh,Mobile Phone,4455
http://statistics.data.gov.uk/id/local-authority/47UD,Redditch Borough Council,19/10/2012,172351,V008499857757,13.45,Everything Everywhere Ltd,5658,Executive Director Lec,Mobile Phone,4455
http://statistics.data.gov.uk/id/local-authority/47UD,Redditch Borough Council,19/10/2012,172351,V008499857757,9.34,Everything Everywhere Ltd,5658,Housing Revenue Account,Mobile Phone,4455
http://statistics.data.gov.uk/id/local-authority/47UD,Redditch Borough Council,19/10/2012,172351,V008499857757,8.93,Everything Everywhere Ltd,5658,Housing Revenue Account,Mobile Phone,4455
http://statistics.data.gov.uk/id/local-authority/47UD,Redditch Borough Council,19/10/2012,172351,V008499857757,2.36,Everything Everywhere Ltd,5658,Housing Revenue Account,Mobile Phone,4455
http://statistics.data.gov.uk/id/local-authority/47UD,Redditch Borough Council,19/10/2012,172351,V008499857757,15.21,Everything Everywhere Ltd,5658,Housing Revenue Account,Mobile Phone,4455
http://statistics.data.gov.uk/id/local-authority/47UD,Redditch Borough Council,19/10/2012,172351,V008499857757,3.48,Everything Everywhere Ltd,5658,Housing Revenue Account,Mobile Phone,4455
http://statistics.data.gov.uk/id/local-authority/47UD,Redditch Borough Council,19/10/2012,172351,V008499857757,1.13,Everything Everywhere Ltd,5658,Housing Revenue Account,Mobile Phone,4455
http://statistics.data.gov.uk/id/local-authority/47UD,Redditch Borough Council,19/10/2012,172351,V008499857757,3.96,Everything Everywhere Ltd,5658,Housing Revenue Account,Mobile Phone,4455
http://statistics.data.gov.uk/id/local-authority/47UD,Redditch Borough Council,19/10/2012,172351,V008499857757,1.21,Everything Everywhere Ltd,5658,Exec. Director Fin. & Resource,Mobile Phone,4455
http://statistics.data.gov.uk/id/local-authority/47UD,Redditch Borough Council,19/10/2012,172351,V008499857757,5.34,Everything Everywhere Ltd,5658,Housing Revenue Account,Mobile Phone,4455
http://statistics.data.gov.uk/id/local-authority/47UD,Redditch Borough Council,19/10/2012,172351,V008499857757,2.26,Everything Everywhere Ltd,5658,Housing Revenue Account,Mobile Phone,4455
http://statistics.data.gov.uk/id/local-authority/47UD,Redditch Borough Council,19/10/2012,172351,V008499857757,6.15,Everything Everywhere Ltd,5658,Housing Revenue Account,Mobile Phone,4455
http://statistics.data.gov.uk/id/local-authority/47UD,Redditch Borough Council,19/10/2012,172351,V008499857757,2.29,Everything Everywhere Ltd,5658,Housing Revenue Account,Mobile Phone,4455
http://statistics.data.gov.uk/id/local-authority/47UD,Redditch Borough Council,19/10/2012,172351,V008499857757,0.80,Everything Everywhere Ltd,5658,Housing Revenue Account,Mobile Phone,4455
http://statistics.data.gov.uk/id/local-authority/47UD,Redditch Borough Council,19/10/2012,172351,V008499857757,13.10,Everything Everywhere Ltd,5658,Housing Revenue Account,Mobile Phone,4455
http://statistics.data.gov.uk/id/local-authority/47UD,Redditch Borough Council,19/10/2012,172351,V008499857757,20.73,Everything Everywhere Ltd,5658,Exec. Director Fin. & Resource,Mobile Phone,4455
http://statistics.data.gov.uk/id/local-authority/47UD,Redditch Borough Council,19/10/2012,172351,V008499857757,1.20,Everything Everywhere Ltd,5658,Surestart Project,Mobile Phone,4455
http://statistics.data.gov.uk/id/local-authority/47UD,Redditch Borough Council,19/10/2012,172351,V008499857757,6.02,Everything Everywhere Ltd,5658,Executive Director Lec,Mobile Phone,4455
http://statistics.data.gov.uk/id/local-authority/47UD,Redditch Borough Council,19/10/2012,172351,V008499857757,2.82,Everything Everywhere Ltd,5658,Housing Repairs Account,Mobile Phone,4455
http://statistics.data.gov.uk/id/local-authority/47UD,Redditch Borough Council,19/10/2012,172351,V008499857757,0.71,Everything Everywhere Ltd,5658,Housing Repairs Account,Mobile Phone,4455
http://statistics.data.gov.uk/id/local-authority/47UD,Redditch Borough Council,19/10/2012,172351,V008499857757,23.87,Everything Everywhere Ltd,5658,Housing Repairs Account,Mobile Phone,4455
http://statistics.data.gov.uk/id/local-authority/47UD,Redditch Borough Council,19/10/2012,172351,V008499857757,0.78,Everything Everywhere Ltd,5658,Housing Repairs Account,Mobile Phone,4455
http://statistics.data.gov.uk/id/local-authority/47UD,Redditch Borough Council,19/10/2012,172351,V008499857757,22.26,Everything Everywhere Ltd,5658,Housing Repairs Account,Mobile Phone,4455
http://statistics.data.gov.uk/id/local-authority/47UD,Redditch Borough Council,19/10/2012,172351,V008499857757,0.93,Everything Everywhere Ltd,5658,Housing Repairs Account,Mobile Phone,4455
http://statistics.data.gov.uk/id/local-authority/47UD,Redditch Borough Council,19/10/2012,172351,V008499857757,10.34,Everything Everywhere Ltd,5658,Housing Repairs Account,Mobile Phone,4455
http://statistics.data.gov.uk/id/local-authority/47UD,Redditch Borough Council,19/10/2012,172351,V008499857757,12.53,Everything Everywhere Ltd,5658,Housing Repairs Account,Mobile Phone,4455
http://statistics.data.gov.uk/id/local-authority/47UD,Redditch Borough Council,19/10/2012,172351,V008499857757,0.61,Everything Everywhere Ltd,5658,Housing Repairs Account,Mobile Phone,4455
http://statistics.data.gov.uk/id/local-authority/47UD,Redditch Borough Council,19/10/2012,172351,V008499857757,0.45,Everything Everywhere Ltd,5658,Housing Repairs Account,Mobile Phone,4455
http://statistics.data.gov.uk/id/local-authority/47UD,Redditch Borough Council,19/10/2012,172351,V008499857757,7.36,Everything Everywhere Ltd,5658,Housing Repairs Account,Mobile Phone,4455
http://statistics.data.gov.uk/id/local-authority/47UD,Redditch Borough Council,19/10/2012,172351,V008499857757,2.01,Everything Everywhere Ltd,5658,Housing Revenue Account,Mobile Phone,4455
http://statistics.data.gov.uk/id/local-authority/47UD,Redditch Borough Council,19/10/2012,172351,V008499857757,15.91,Everything Everywhere Ltd,5658,Executive Director Lec,Mobile Phone,4455
http://statistics.data.gov.uk/id/local-authority/47UD,Redditch Borough Council,19/10/2012,172351,V008499857757,3.08,Everything Everywhere Ltd,5658,Exec. Director Prrh,Mobile Phone,4455
http://statistics.data.gov.uk/id/local-authority/47UD,Redditch Borough Council,19/10/2012,172351,V008499857757,5.48,Everything Everywhere Ltd,5658,Executive Director Lec,Mobile Phone,4455
http://statistics.data.gov.uk/id/local-authority/47UD,Redditch Borough Council,19/10/2012,172351,V008499857757,14.38,Everything Everywhere Ltd,5658,Executive Director Lec,Mobile Phone,4455
http://statistics.data.gov.uk/id/local-authority/47UD,Redditch Borough Council,19/10/2012,172351,V008499857757,41.26,Everything Everywhere Ltd,5658,Executive Director Lec,Mobile Phone,4455
http://statistics.data.gov.uk/id/local-authority/47UD,Redditch Borough Council,19/10/2012,172351,V008499857757,9.92,Everything Everywhere Ltd,5658,Executive Director Lec,Mobile Phone,4455
http://statistics.data.gov.uk/id/local-authority/47UD,Redditch Borough Council,19/10/2012,172351,V008499857757,1.41,Everything Everywhere Ltd,5658,Housing Revenue Account,Mobile Phone,4455
http://statistics.data.gov.uk/id/local-authority/47UD,Redditch Borough Council,19/10/2012,172351,V008499857757,1.07,Everything Everywhere Ltd,5658,Executive Director Lec,Mobile Phone,4455
http://statistics.data.gov.uk/id/local-authority/47UD,Redditch Borough Council,19/10/2012,172351,V008499857757,20.07,Everything Everywhere Ltd,5658,Executive Director Lec,Mobile Phone,4455
http://statistics.data.gov.uk/id/local-authority/47UD,Redditch Borough Council,19/10/2012,172351,V008499857757,8.57,Everything Everywhere Ltd,5658,Executive Director Lec,Mobile Phone,4455
http://statistics.data.gov.uk/id/local-authority/47UD,Redditch Borough Council,19/10/2012,172351,V008499857757,0.21,Everything Everywhere Ltd,5658,Executive Director Lec,Mobile Phone,4455
http://statistics.data.gov.uk/id/local-authority/47UD,Redditch Borough Council,19/10/2012,172351,V008499857757,0.94,Everything Everywhere Ltd,5658,Executive Director Lec,Mobile Phone,4455
http://statistics.data.gov.uk/id/local-authority/47UD,Redditch Borough Council,19/10/2012,172351,V008499857757,4.35,Everything Everywhere Ltd,5658,Exec. Director Prrh,Mobile Phone,4455
http://statistics.data.gov.uk/id/local-authority/47UD,Redditch Borough Council,19/10/2012,172351,V008499857757,8.62,Everything Everywhere Ltd,5658,Housing Repairs Account,Mobile Phone,4455
http://statistics.data.gov.uk/id/local-authority/47UD,Redditch Borough Council,19/10/2012,172351,V008499857757,0.96,Everything Everywhere Ltd,5658,Housing Repairs Account,Mobile Phone,4455
http://statistics.data.gov.uk/id/local-authority/47UD,Redditch Borough Council,19/10/2012,172351,V008499857757,16.12,Everything Everywhere Ltd,5658,Housing Repairs Account,Mobile Phone,4455
http://statistics.data.gov.uk/id/local-authority/47UD,Redditch Borough Council,19/10/2012,172351,V008499857757,10.53,Everything Everywhere Ltd,5658,Housing Repairs Account,Mobile Phone,4455
http://statistics.data.gov.uk/id/local-authority/47UD,Redditch Borough Council,19/10/2012,172351,V008499857757,0.00,Everything Everywhere Ltd,5658,Housing Repairs Account,Mobile Phone,4455
http://statistics.data.gov.uk/id/local-authority/47UD,Redditch Borough Council,19/10/2012,172351,V008499857757,6.55,Everything Everywhere Ltd,5658,Housing Repairs Account,Mobile Phone,4455
http://statistics.data.gov.uk/id/local-authority/47UD,Redditch Borough Council,19/10/2012,172351,V008499857757,26.84,Everything Everywhere Ltd,5658,Surestart Project,Mobile Phone,4455
http://statistics.data.gov.uk/id/local-authority/47UD,Redditch Borough Council,19/10/2012,172351,V008499857757,2.37,Everything Everywhere Ltd,5658,Surestart Project,Mobile Phone,4455
http://statistics.data.gov.uk/id/local-authority/47UD,Redditch Borough Council,19/10/2012,172351,V008499857757,31.34,Everything Everywhere Ltd,5658,Surestart Project,Mobile Phone,4455
http://statistics.data.gov.uk/id/local-authority/47UD,Redditch Borough Council,19/10/2012,172351,V008499857757,23.23,Everything Everywhere Ltd,5658,Surestart Project,Mobile Phone,4455
http://statistics.data.gov.uk/id/local-authority/47UD,Redditch Borough Council,19/10/2012,172351,V008499857757,15.78,Everything Everywhere Ltd,5658,Surestart Project,Mobile Phone,4455
http://statistics.data.gov.uk/id/local-authority/47UD,Redditch Borough Council,19/10/2012,172351,V008499857757,9.56,Everything Everywhere Ltd,5658,Surestart Project,Mobile Phone,4455
http://statistics.data.gov.uk/id/local-authority/47UD,Redditch Borough Council,19/10/2012,172351,V008499857757,9.07,Everything Everywhere Ltd,5658,Executive Director Lec,Mobile Phone,4455
http://statistics.data.gov.uk/id/local-authority/47UD,Redditch Borough Council,19/10/2012,172351,V008499857757,16.64,Everything Everywhere Ltd,5658,Housing Revenue Account,Mobile Phone,4455
http://statistics.data.gov.uk/id/local-authority/47UD,Redditch Borough Council,19/10/2012,172351,V008499857757,2.60,Everything Everywhere Ltd,5658,Housing Revenue Account,Mobile Phone,4455
http://statistics.data.gov.uk/id/local-authority/47UD,Redditch Borough Council,19/10/2012,172351,V008499857757,9.16,Everything Everywhere Ltd,5658,Housing Repairs Account,Mobile Phone,4455
http://statistics.data.gov.uk/id/local-authority/47UD,Redditch Borough Council,19/10/2012,172351,V008499857757,3.91,Everything Everywhere Ltd,5658,Exec. Director Fin. & Resource,Mobile Phone,4455
http://statistics.data.gov.uk/id/local-authority/47UD,Redditch Borough Council,19/10/2012,172351,V008499857757,4.20,Everything Everywhere Ltd,5658,Housing Repairs Account,Mobile Phone,4455
http://statistics.data.gov.uk/id/local-authority/47UD,Redditch Borough Council,19/10/2012,172351,V008499857757,3.31,Everything Everywhere Ltd,5658,Housing Repairs Account,Mobile Phone,4455
http://statistics.data.gov.uk/id/local-authority/47UD,Redditch Borough Council,19/10/2012,172351,V008499857757,3.80,Everything Everywhere Ltd,5658,Housing Repairs Account,Mobile Phone,4455
http://statistics.data.gov.uk/id/local-authority/47UD,Redditch Borough Council,19/10/2012,172351,V008499857757,1.47,Everything Everywhere Ltd,5658,Housing Repairs Account,Mobile Phone,4455
http://statistics.data.gov.uk/id/local-authority/47UD,Redditch Borough Council,19/10/2012,172351,V008499857757,0.02,Everything Everywhere Ltd,5658,Exec. Director Fin. & Resource,Mobile Phone,4455
http://statistics.data.gov.uk/id/local-authority/47UD,Redditch Borough Council,19/10/2012,172351,V008499857757,0.62,Everything Everywhere Ltd,5658,Exec. Director Fin. & Resource,Mobile Phone,4455
http://statistics.data.gov.uk/id/local-authority/47UD,Redditch Borough Council,19/10/2012,172351,V008499857757,108.42,Everything Everywhere Ltd,5658,Executive Director Lec,Mobile Phone,4455
http://statistics.data.gov.uk/id/local-authority/47UD,Redditch Borough Council,19/10/2012,172351,V008499857757,1.15,Everything Everywhere Ltd,5658,Executive Director Lec,Mobile Phone,4455
http://statistics.data.gov.uk/id/local-authority/47UD,Redditch Borough Council,19/10/2012,172351,V008499857757,15.85,Everything Everywhere Ltd,5658,Housing Repairs Account,Mobile Phone,4455
http://statistics.data.gov.uk/id/local-authority/47UD,Redditch Borough Council,19/10/2012,172351,V008499857757,6.58,Everything Everywhere Ltd,5658,Housing Repairs Account,Mobile Phone,4455
http://statistics.data.gov.uk/id/local-authority/47UD,Redditch Borough Council,19/10/2012,172351,V008499857757,3.72,Everything Everywhere Ltd,5658,Housing Repairs Account,Mobile Phone,4455
http://statistics.data.gov.uk/id/local-authority/47UD,Redditch Borough Council,19/10/2012,172351,V008499857757,1.55,Everything Everywhere Ltd,5658,Exec. Director Fin. & Resource,Mobile Phone,4455
http://statistics.data.gov.uk/id/local-authority/47UD,Redditch Borough Council,19/10/2012,172351,V008499857757,1.69,Everything Everywhere Ltd,5658,Executive Director Lec,Mobile Phone,4455
http://statistics.data.gov.uk/id/local-authority/47UD,Redditch Borough Council,19/10/2012,172351,V008499857757,0.49,Everything Everywhere Ltd,5658,Executive Director Lec,Mobile Phone,4455
http://statistics.data.gov.uk/id/local-authority/47UD,Redditch Borough Council,19/10/2012,172351,V008499857757,0.50,Everything Everywhere Ltd,5658,Executive Director Lec,Mobile Phone,4455
http://statistics.data.gov.uk/id/local-authority/47UD,Redditch Borough Council,19/10/2012,172351,V008499857757,11.62,Everything Everywhere Ltd,5658,Executive Director Lec,Mobile Phone,4455
http://statistics.data.gov.uk/id/local-authority/47UD,Redditch Borough Council,19/10/2012,172351,V008499857757,10.38,Everything Everywhere Ltd,5658,Executive Director Lec,Mobile Phone,4455
http://statistics.data.gov.uk/id/local-authority/47UD,Redditch Borough Council,19/10/2012,172351,V008499857757,23.40,Everything Everywhere Ltd,5658,Executive Director Lec,Mobile Phone,4455
http://statistics.data.gov.uk/id/local-authority/47UD,Redditch Borough Council,19/10/2012,172351,V008499857757,20.44,Everything Everywhere Ltd,5658,Exec. Director Prrh,Mobile Phone,4455
http://statistics.data.gov.uk/id/local-authority/47UD,Redditch Borough Council,19/10/2012,172351,V008499857757,20.00,Everything Everywhere Ltd,5658,Exec. Director Prrh,Mobile Phone,4455
http://statistics.data.gov.uk/id/local-authority/47UD,Redditch Borough Council,19/10/2012,172351,V008499857757,20.44,Everything Everywhere Ltd,5658,Exec. Director Fin. & Resource,Mobile Phone,4455
http://statistics.data.gov.uk/id/local-authority/47UD,Redditch Borough Council,19/10/2012,172351,V008499857757,21.04,Everything Everywhere Ltd,5658,Exec. Director Prrh,Mobile Phone,4455
http://statistics.data.gov.uk/id/local-authority/47UD,Redditch Borough Council,19/10/2012,172351,V008499857757,24.34,Everything Everywhere Ltd,5658,Chief Executive,Mobile Phone,4455
http://statistics.data.gov.uk/id/local-authority/47UD,Redditch Borough Council,19/10/2012,172351,V008499857757,55.08,Everything Everywhere Ltd,5658,Exec. Director Prrh,Mobile Phone,4455
http://statistics.data.gov.uk/id/local-authority/47UD,Redditch Borough Council,19/10/2012,172351,V008499857757,20.00,Everything Everywhere Ltd,5658,Exec. Director Fin. & Resource,Mobile Phone,4455
http://statistics.data.gov.uk/id/local-authority/47UD,Redditch Borough Council,19/10/2012,172351,V008499857757,11.47,Everything Everywhere Ltd,5658,Exec. Director Fin. & Resource,Mobile Phone,4455
http://statistics.data.gov.uk/id/local-authority/47UD,Redditch Borough Council,19/10/2012,172351,V008499857757,0.07,Everything Everywhere Ltd,5658,Housing Revenue Account,Mobile Phone,4455
http://statistics.data.gov.uk/id/local-authority/47UD,Redditch Borough Council,19/10/2012,172351,V008499857757,17.47,Everything Everywhere Ltd,5658,Executive Director Lec,Mobile Phone,4455
http://statistics.data.gov.uk/id/local-authority/47UD,Redditch Borough Council,19/10/2012,172351,V008499857757,13.99,Everything Everywhere Ltd,5658,Executive Director Lec,Mobile Phone,4455
http://statistics.data.gov.uk/id/local-authority/47UD,Redditch Borough Council,19/10/2012,172351,V008499857757,5.80,Everything Everywhere Ltd,5658,Housing Repairs Account,Mobile Phone,4455
http://statistics.data.gov.uk/id/local-authority/47UD,Redditch Borough Council,19/10/2012,172351,V008499857757,22.15,Everything Everywhere Ltd,5658,Executive Director Lec,Mobile Phone,4455
http://statistics.data.gov.uk/id/local-authority/47UD,Redditch Borough Council,19/10/2012,172351,V008499857757,0.00,Everything Everywhere Ltd,5658,Executive Director Lec,Mobile Phone,4455
http://statistics.data.gov.uk/id/local-authority/47UD,Redditch Borough Council,19/10/2012,172351,V008499857757,8.89,Everything Everywhere Ltd,5658,Exec. Director Prrh,Mobile Phone,4455
http://statistics.data.gov.uk/id/local-authority/47UD,Redditch Borough Council,19/10/2012,172351,V008499857757,1.21,Everything Everywhere Ltd,5658,Executive Director Lec,Mobile Phone,4455
http://statistics.data.gov.uk/id/local-authority/47UD,Redditch Borough Council,19/10/2012,172351,V008499857757,0.90,Everything Everywhere Ltd,5658,Executive Director Lec,Mobile Phone,4455
http://statistics.data.gov.uk/id/local-authority/47UD,Redditch Borough Council,19/10/2012,172351,V008499857757,2.68,Everything Everywhere Ltd,5658,Housing Revenue Account,Mobile Phone,4455
http://statistics.data.gov.uk/id/local-authority/47UD,Redditch Borough Council,19/10/2012,172351,V008499857757,6.77,Everything Everywhere Ltd,5658,Housing Revenue Account,Mobile Phone,4455
http://statistics.data.gov.uk/id/local-authority/47UD,Redditch Borough Council,19/10/2012,172351,V008499857757,16.15,Everything Everywhere Ltd,5658,Executive Director Lec,Mobile Phone,4455
http://statistics.data.gov.uk/id/local-authority/47UD,Redditch Borough Council,19/10/2012,172351,V008499857757,2.41,Everything Everywhere Ltd,5658,Housing Revenue Account,Mobile Phone,4455
http://statistics.data.gov.uk/id/local-authority/47UD,Redditch Borough Council,19/10/2012,172351,V008499857757,4.73,Everything Everywhere Ltd,5658,Housing Revenue Account,Mobile Phone,4455
http://statistics.data.gov.uk/id/local-authority/47UD,Redditch Borough Council,19/10/2012,172351,V008499857757,17.19,Everything Everywhere Ltd,5658,Exec. Director Fin. & Resource,Mobile Phone,4455
